Body Name,Date Paid,Transaction Number,amount,Supplier Name,Supplier Type,Expense Area,Cost Centre Description,Expense Type
Cambridgeshire County Council,29-May-18,51300000621,-173000,THE RIVERSIDE GROUP LTD#2,CARE ESTABLISHMENT,Control Accounts,Control Accounts - Payables,Migration Only - Marked as Do Not Use
Cambridgeshire County Council,25-May-18,51300145089,-18743.86,LGSS LAW LTD#3,TRADE SUPPLIER,Strategic Management - Adults,Service Director - OP and MH,External Legal Fees
Cambridgeshire County Council,04-May-18,51300010872,-10226.47,CBRE GLOBAL INVESTMENT PARTNERS LTD,TRADE SUPPLIER,Control Accounts,Control Accounts - Payables,Migration Only - Marked as Do Not Use
Cambridgeshire County Council,31-May-18,51300042046,-7200,HAYS SPECIALIST RECRUITMENT,COMPANY,Estates,Estates,Advertising / Publicity (non Recruitment)
Cambridgeshire County Council,06-May-18,65300000431,-5305.17,ALDERWOOD LLA LTD,CARE ESTABLISHMENT,LD - Hunts Locality,LD - Huntigndonshire - Special Needs,Residential Care
Cambridgeshire County Council,13-May-18,65300003897,-5305.17,ALDERWOOD LLA LTD,CARE ESTABLISHMENT,LD - Hunts Locality,LD - Huntigndonshire - Special Needs,Residential Care
Cambridgeshire County Council,14-May-18,51300098998,-4655,BROOKDALE HEALTHCARE LIMITED#1,CARE ESTABLISHMENT,LD - Hunts Locality,LD - Huntigndonshire - Special Needs,Rehabilitation And Respite Care
Cambridgeshire County Council,14-May-18,51300107398,-4655,BROOKDALE HEALTHCARE LIMITED#1,CARE ESTABLISHMENT,LD - Hunts Locality,LD - Huntigndonshire - Care,Rehabilitation And Respite Care
Cambridgeshire County Council,14-May-18,51300107408,-4655,BROOKDALE HEALTHCARE LIMITED#1,CARE ESTABLISHMENT,LD - Hunts Locality,LD - Huntigndonshire - Care,Rehabilitation And Respite Care
Cambridgeshire County Council,14-May-18,51300107393,-4655,BROOKDALE HEALTHCARE LIMITED#1,CARE ESTABLISHMENT,LD - Hunts Locality,LD - Huntigndonshire - Care,Rehabilitation And Respite Care
Cambridgeshire County Council,14-May-18,51300107403,-4655,BROOKDALE HEALTHCARE LIMITED#1,CARE ESTABLISHMENT,LD - Hunts Locality,LD - Huntigndonshire - Special Needs,Rehabilitation And Respite Care
Cambridgeshire County Council,14-May-18,51300098996,-4655,BROOKDALE HEALTHCARE LIMITED#1,CARE ESTABLISHMENT,LD - Hunts Locality,LD - Huntigndonshire - Special Needs,Rehabilitation And Respite Care
Cambridgeshire County Council,14-May-18,51300098994,-4655,BROOKDALE HEALTHCARE LIMITED#1,CARE ESTABLISHMENT,LD - Hunts Locality,LD - Huntigndonshire - Care,Rehabilitation And Respite Care
Cambridgeshire County Council,14-May-18,51300098993,-4655,BROOKDALE HEALTHCARE LIMITED#1,CARE ESTABLISHMENT,LD - Hunts Locality,LD - Huntigndonshire - Care,Rehabilitation And Respite Care
Cambridgeshire County Council,14-May-18,51300098999,-4655,BROOKDALE HEALTHCARE LIMITED#1,CARE ESTABLISHMENT,LD - Hunts Locality,LD - Huntigndonshire - Care,Rehabilitation And Respite Care
Cambridgeshire County Council,14-May-18,51300099007,-4655,BROOKDALE HEALTHCARE LIMITED#1,CARE ESTABLISHMENT,LD - Hunts Locality,LD - Huntigndonshire - Care,Rehabilitation And Respite Care
Cambridgeshire County Council,14-May-18,51300107394,-4655,BROOKDALE HEALTHCARE LIMITED#1,CARE ESTABLISHMENT,LD - Hunts Locality,LD - Huntigndonshire - Care,Rehabilitation And Respite Care
Cambridgeshire County Council,14-May-18,51300107396,-4655,BROOKDALE HEALTHCARE LIMITED#1,CARE ESTABLISHMENT,LD - Hunts Locality,LD - Huntigndonshire - Care,Rehabilitation And Respite Care
Cambridgeshire County Council,14-May-18,51300098991,-4655,BROOKDALE HEALTHCARE LIMITED#1,CARE ESTABLISHMENT,LD - Hunts Locality,LD - Huntigndonshire - Special Needs,Rehabilitation And Respite Care
Cambridgeshire County Council,14-May-18,51300107399,-4655,BROOKDALE HEALTHCARE LIMITED#1,CARE ESTABLISHMENT,LD - Hunts Locality,LD - Huntigndonshire - Special Needs,Rehabilitation And Respite Care
Cambridgeshire County Council,14-May-18,51300099001,-4655,BROOKDALE HEALTHCARE LIMITED#1,CARE ESTABLISHMENT,LD - Hunts Locality,LD - Huntigndonshire - Special Needs,Rehabilitation And Respite Care
Cambridgeshire County Council,14-May-18,51300099003,-4655,BROOKDALE HEALTHCARE LIMITED#1,CARE ESTABLISHMENT,LD - Hunts Locality,LD - Huntigndonshire - Special Needs,Rehabilitation And Respite Care
Cambridgeshire County Council,14-May-18,51300107404,-4655,BROOKDALE HEALTHCARE LIMITED#1,CARE ESTABLISHMENT,LD - Hunts Locality,LD - Huntigndonshire - Special Needs,Rehabilitation And Respite Care
Cambridgeshire County Council,14-May-18,51300107411,-4655,BROOKDALE HEALTHCARE LIMITED#1,CARE ESTABLISHMENT,LD - Hunts Locality,LD - Huntigndonshire - Special Needs,Rehabilitation And Respite Care
Cambridgeshire County Council,25-May-18,51300114596,-4655,BROOKDALE HEALTHCARE LIMITED#1,CARE ESTABLISHMENT,LD - Hunts Locality,LD - Huntigndonshire - Special Needs,Rehabilitation And Respite Care
Cambridgeshire County Council,25-May-18,51300142382,-4655,BROOKDALE HEALTHCARE LIMITED#1,CARE ESTABLISHMENT,LD - Hunts Locality,LD - Huntigndonshire - Special Needs,Rehabilitation And Respite Care
Cambridgeshire County Council,25-May-18,51300142361,-4655,BROOKDALE HEALTHCARE LIMITED#1,CARE ESTABLISHMENT,LD - Hunts Locality,LD - Huntigndonshire - Special Needs,Rehabilitation And Respite Care
Cambridgeshire County Council,25-May-18,51300114602,-4655,BROOKDALE HEALTHCARE LIMITED#1,CARE ESTABLISHMENT,LD - Hunts Locality,LD - Huntigndonshire - Special Needs,Rehabilitation And Respite Care
Cambridgeshire County Council,25-May-18,51300114584,-4655,BROOKDALE HEALTHCARE LIMITED#1,CARE ESTABLISHMENT,LD - Hunts Locality,LD - Huntigndonshire - Special Needs,Rehabilitation And Respite Care
Cambridgeshire County Council,25-May-18,51300114589,-4655,BROOKDALE HEALTHCARE LIMITED#1,CARE ESTABLISHMENT,LD - Hunts Locality,LD - Huntigndonshire - Special Needs,Rehabilitation And Respite Care
Cambridgeshire County Council,25-May-18,51300114603,-4655,BROOKDALE HEALTHCARE LIMITED#1,CARE ESTABLISHMENT,LD - Hunts Locality,LD - Huntigndonshire - Care,Rehabilitation And Respite Care
Cambridgeshire County Council,25-May-18,51300114588,-4655,BROOKDALE HEALTHCARE LIMITED#1,CARE ESTABLISHMENT,LD - Hunts Locality,LD - Huntigndonshire - Care,Rehabilitation And Respite Care
Cambridgeshire County Council,25-May-18,51300142370,-4655,BROOKDALE HEALTHCARE LIMITED#1,CARE ESTABLISHMENT,LD - Hunts Locality,LD - Huntigndonshire - Special Needs,Rehabilitation And Respite Care
Cambridgeshire County Council,25-May-18,51300142366,-4655,BROOKDALE HEALTHCARE LIMITED#1,CARE ESTABLISHMENT,LD - Hunts Locality,LD - Huntigndonshire - Care,Rehabilitation And Respite Care
Cambridgeshire County Council,25-May-18,51300114601,-4655,BROOKDALE HEALTHCARE LIMITED#1,CARE ESTABLISHMENT,LD - Hunts Locality,LD - Huntigndonshire - Care,Rehabilitation And Respite Care
Cambridgeshire County Council,25-May-18,51300142383,-4655,BROOKDALE HEALTHCARE LIMITED#1,CARE ESTABLISHMENT,LD - Hunts Locality,LD - Huntigndonshire - Care,Rehabilitation And Respite Care
Cambridgeshire County Council,25-May-18,51300142375,-4655,BROOKDALE HEALTHCARE LIMITED#1,CARE ESTABLISHMENT,LD - Hunts Locality,LD - Huntigndonshire - Care,Rehabilitation And Respite Care
Cambridgeshire County Council,25-May-18,51300142367,-4655,BROOKDALE HEALTHCARE LIMITED#1,CARE ESTABLISHMENT,LD - Hunts Locality,LD - Huntigndonshire - Special Needs,Rehabilitation And Respite Care
Cambridgeshire County Council,25-May-18,51300114599,-4655,BROOKDALE HEALTHCARE LIMITED#1,CARE ESTABLISHMENT,LD - Hunts Locality,LD - Huntigndonshire - Special Needs,Rehabilitation And Respite Care
Cambridgeshire County Council,25-May-18,51300114590,-4655,BROOKDALE HEALTHCARE LIMITED#1,CARE ESTABLISHMENT,LD - Hunts Locality,LD - Huntigndonshire - Special Needs,Rehabilitation And Respite Care
Cambridgeshire County Council,25-May-18,51300142374,-4655,BROOKDALE HEALTHCARE LIMITED#1,CARE ESTABLISHMENT,LD - Hunts Locality,LD - Huntigndonshire - Special Needs,Rehabilitation And Respite Care
Cambridgeshire County Council,25-May-18,51300142384,-4655,BROOKDALE HEALTHCARE LIMITED#1,CARE ESTABLISHMENT,LD - Hunts Locality,LD - Huntigndonshire - Special Needs,Rehabilitation And Respite Care
Cambridgeshire County Council,14-May-18,51300106875,-4484.48,AFFINITY TRUST#1,CARE ESTABLISHMENT,LD - Fenland Locality,LD - Fenland - Special Needs,Domiciliary Care
Cambridgeshire County Council,14-May-18,51300106885,-4484.48,AFFINITY TRUST#1,CARE ESTABLISHMENT,LD - Fenland Locality,LD - Fenland - Special Needs,Domiciliary Care
Cambridgeshire County Council,14-May-18,51300106883,-4484.48,AFFINITY TRUST#1,CARE ESTABLISHMENT,LD - Fenland Locality,LD - Fenland - Special Needs,Domiciliary Care
Cambridgeshire County Council,14-May-18,51300106877,-4484.48,AFFINITY TRUST#1,CARE ESTABLISHMENT,LD - Fenland Locality,LD - Fenland - Special Needs,Domiciliary Care
Cambridgeshire County Council,06-May-18,65300008579,-3647.87,SENSE NATIONAL DEAF & BLIND,CARE ESTABLISHMENT,LD - Fenland Locality,LD - Fenland - Special Needs,Residential Care
Cambridgeshire County Council,13-May-18,65300001743,-3647.87,SENSE NATIONAL DEAF & BLIND,CARE ESTABLISHMENT,LD - Fenland Locality,LD - Fenland - Special Needs,Residential Care
Cambridgeshire County Council,04-May-18,51300098792,-3579.88,HESLEY CARE LIMITED,CARE ESTABLISHMENT,LD - Hunts Locality,LD - Huntigndonshire - Special Needs,Residential Care
Cambridgeshire County Council,04-May-18,51300098804,-3579.88,HESLEY CARE LIMITED,CARE ESTABLISHMENT,LD - Hunts Locality,LD - Huntigndonshire - Special Needs,Residential Care
Cambridgeshire County Council,04-May-18,51300098816,-3579.88,HESLEY CARE LIMITED,CARE ESTABLISHMENT,LD - Hunts Locality,LD - Huntigndonshire - Special Needs,Residential Care
Cambridgeshire County Council,04-May-18,51300098884,-3579.88,HESLEY CARE LIMITED,CARE ESTABLISHMENT,LD - Hunts Locality,LD - Huntigndonshire - Special Needs,Residential Care
Cambridgeshire County Council,04-May-18,51300098765,-3579.88,HESLEY CARE LIMITED,CARE ESTABLISHMENT,LD - Hunts Locality,LD - Huntigndonshire - Special Needs,Residential Care
Cambridgeshire County Council,04-May-18,51300098872,-3579.88,HESLEY CARE LIMITED,CARE ESTABLISHMENT,LD - Hunts Locality,LD - Huntigndonshire - Special Needs,Residential Care
Cambridgeshire County Council,04-May-18,51300098768,-3579.88,HESLEY CARE LIMITED,CARE ESTABLISHMENT,LD - Hunts Locality,LD - Huntigndonshire - Special Needs,Residential Care
Cambridgeshire County Council,04-May-18,51300098774,-3579.88,HESLEY CARE LIMITED,CARE ESTABLISHMENT,LD - Hunts Locality,LD - Huntigndonshire - Special Needs,Residential Care
Cambridgeshire County Council,04-May-18,51300098845,-3579.88,HESLEY CARE LIMITED,CARE ESTABLISHMENT,LD - Hunts Locality,LD - Huntigndonshire - Special Needs,Residential Care
Cambridgeshire County Council,04-May-18,51300098848,-3579.88,HESLEY CARE LIMITED,CARE ESTABLISHMENT,LD - Hunts Locality,LD - Huntigndonshire - Special Needs,Residential Care
Cambridgeshire County Council,04-May-18,51300098840,-3579.88,HESLEY CARE LIMITED,CARE ESTABLISHMENT,LD - Hunts Locality,LD - Huntigndonshire - Special Needs,Residential Care
Cambridgeshire County Council,04-May-18,51300098889,-3579.88,HESLEY CARE LIMITED,CARE ESTABLISHMENT,LD - Hunts Locality,LD - Huntigndonshire - Special Needs,Residential Care
Cambridgeshire County Council,04-May-18,51300098788,-3579.88,HESLEY CARE LIMITED,CARE ESTABLISHMENT,LD - Hunts Locality,LD - Huntigndonshire - Special Needs,Residential Care
Cambridgeshire County Council,04-May-18,51300098890,-3579.88,HESLEY CARE LIMITED,CARE ESTABLISHMENT,LD - Hunts Locality,LD - Huntigndonshire - Special Needs,Residential Care
Cambridgeshire County Council,04-May-18,51300098830,-3579.88,HESLEY CARE LIMITED,CARE ESTABLISHMENT,LD - Hunts Locality,LD - Huntigndonshire - Special Needs,Residential Care
Cambridgeshire County Council,04-May-18,51300098824,-3579.88,HESLEY CARE LIMITED,CARE ESTABLISHMENT,LD - Hunts Locality,LD - Huntigndonshire - Special Needs,Residential Care
Cambridgeshire County Council,04-May-18,51300098789,-3579.88,HESLEY CARE LIMITED,CARE ESTABLISHMENT,LD - Hunts Locality,LD - Huntigndonshire - Special Needs,Residential Care
Cambridgeshire County Council,04-May-18,51300098866,-3579.88,HESLEY CARE LIMITED,CARE ESTABLISHMENT,LD - Hunts Locality,LD - Huntigndonshire - Special Needs,Residential Care
Cambridgeshire County Council,04-May-18,51300098760,-3579.88,HESLEY CARE LIMITED,CARE ESTABLISHMENT,LD - Hunts Locality,LD - Huntigndonshire - Special Needs,Residential Care
Cambridgeshire County Council,04-May-18,51300098871,-3579.88,HESLEY CARE LIMITED,CARE ESTABLISHMENT,LD - Hunts Locality,LD - Huntigndonshire - Special Needs,Residential Care
Cambridgeshire County Council,04-May-18,51300098763,-3579.88,HESLEY CARE LIMITED,CARE ESTABLISHMENT,LD - Hunts Locality,LD - Huntigndonshire - Special Needs,Residential Care
Cambridgeshire County Council,04-May-18,51300098847,-3579.88,HESLEY CARE LIMITED,CARE ESTABLISHMENT,LD - Hunts Locality,LD - Huntigndonshire - Special Needs,Residential Care
Cambridgeshire County Council,04-May-18,51300098821,-3579.88,HESLEY CARE LIMITED,CARE ESTABLISHMENT,LD - Hunts Locality,LD - Huntigndonshire - Special Needs,Residential Care
Cambridgeshire County Council,04-May-18,51300098860,-3579.88,HESLEY CARE LIMITED,CARE ESTABLISHMENT,LD - Hunts Locality,LD - Huntigndonshire - Special Needs,Residential Care
Cambridgeshire County Council,04-May-18,51300098759,-3579.88,HESLEY CARE LIMITED,CARE ESTABLISHMENT,LD - Hunts Locality,LD - Huntigndonshire - Special Needs,Residential Care
Cambridgeshire County Council,04-May-18,51300098825,-3579.88,HESLEY CARE LIMITED,CARE ESTABLISHMENT,LD - Hunts Locality,LD - Huntigndonshire - Special Needs,Residential Care
Cambridgeshire County Council,04-May-18,51300098797,-3579.88,HESLEY CARE LIMITED,CARE ESTABLISHMENT,LD - Hunts Locality,LD - Huntigndonshire - Special Needs,Residential Care
Cambridgeshire County Council,04-May-18,51300098892,-3579.88,HESLEY CARE LIMITED,CARE ESTABLISHMENT,LD - Hunts Locality,LD - Huntigndonshire - Special Needs,Residential Care
Cambridgeshire County Council,04-May-18,51300098834,-3579.88,HESLEY CARE LIMITED,CARE ESTABLISHMENT,LD - Hunts Locality,LD - Huntigndonshire - Special Needs,Residential Care
Cambridgeshire County Council,04-May-18,51300098769,-3579.88,HESLEY CARE LIMITED,CARE ESTABLISHMENT,LD - Hunts Locality,LD - Huntigndonshire - Special Needs,Residential Care
Cambridgeshire County Council,04-May-18,51300098786,-3579.88,HESLEY CARE LIMITED,CARE ESTABLISHMENT,LD - Hunts Locality,LD - Huntigndonshire - Special Needs,Residential Care
Cambridgeshire County Council,04-May-18,51300098787,-3579.88,HESLEY CARE LIMITED,CARE ESTABLISHMENT,LD - Hunts Locality,LD - Huntigndonshire - Special Needs,Residential Care
Cambridgeshire County Council,04-May-18,51300098844,-3579.88,HESLEY CARE LIMITED,CARE ESTABLISHMENT,LD - Hunts Locality,LD - Huntigndonshire - Special Needs,Residential Care
Cambridgeshire County Council,04-May-18,51300098801,-3579.88,HESLEY CARE LIMITED,CARE ESTABLISHMENT,LD - Hunts Locality,LD - Huntigndonshire - Special Needs,Residential Care
Cambridgeshire County Council,04-May-18,51300098833,-3579.88,HESLEY CARE LIMITED,CARE ESTABLISHMENT,LD - Hunts Locality,LD - Huntigndonshire - Special Needs,Residential Care
Cambridgeshire County Council,04-May-18,51300098881,-3579.88,HESLEY CARE LIMITED,CARE ESTABLISHMENT,LD - Hunts Locality,LD - Huntigndonshire - Special Needs,Residential Care
Cambridgeshire County Council,04-May-18,51300098836,-3579.88,HESLEY CARE LIMITED,CARE ESTABLISHMENT,LD - Hunts Locality,LD - Huntigndonshire - Special Needs,Residential Care
Cambridgeshire County Council,04-May-18,51300098850,-3579.88,HESLEY CARE LIMITED,CARE ESTABLISHMENT,LD - Hunts Locality,LD - Huntigndonshire - Special Needs,Residential Care
Cambridgeshire County Council,04-May-18,51300098846,-3579.88,HESLEY CARE LIMITED,CARE ESTABLISHMENT,LD - Hunts Locality,LD - Huntigndonshire - Special Needs,Residential Care
Cambridgeshire County Council,04-May-18,51300098805,-3579.88,HESLEY CARE LIMITED,CARE ESTABLISHMENT,LD - Hunts Locality,LD - Huntigndonshire - Special Needs,Residential Care
Cambridgeshire County Council,04-May-18,51300098885,-3579.88,HESLEY CARE LIMITED,CARE ESTABLISHMENT,LD - Hunts Locality,LD - Huntigndonshire - Special Needs,Residential Care
Cambridgeshire County Council,04-May-18,51300098865,-3579.88,HESLEY CARE LIMITED,CARE ESTABLISHMENT,LD - Hunts Locality,LD - Huntigndonshire - Special Needs,Residential Care
Cambridgeshire County Council,04-May-18,51300098870,-3579.88,HESLEY CARE LIMITED,CARE ESTABLISHMENT,LD - Hunts Locality,LD - Huntigndonshire - Special Needs,Residential Care
Cambridgeshire County Council,04-May-18,51300098809,-3579.88,HESLEY CARE LIMITED,CARE ESTABLISHMENT,LD - Hunts Locality,LD - Huntigndonshire - Special Needs,Residential Care
Cambridgeshire County Council,04-May-18,51300098799,-3579.88,HESLEY CARE LIMITED,CARE ESTABLISHMENT,LD - Hunts Locality,LD - Huntigndonshire - Special Needs,Residential Care
Cambridgeshire County Council,04-May-18,51300098879,-3579.88,HESLEY CARE LIMITED,CARE ESTABLISHMENT,LD - Hunts Locality,LD - Huntigndonshire - Special Needs,Residential Care
Cambridgeshire County Council,04-May-18,51300098814,-3579.88,HESLEY CARE LIMITED,CARE ESTABLISHMENT,LD - Hunts Locality,LD - Huntigndonshire - Special Needs,Residential Care
Cambridgeshire County Council,04-May-18,51300098818,-3579.88,HESLEY CARE LIMITED,CARE ESTABLISHMENT,LD - Hunts Locality,LD - Huntigndonshire - Special Needs,Residential Care
Cambridgeshire County Council,04-May-18,51300098838,-3579.88,HESLEY CARE LIMITED,CARE ESTABLISHMENT,LD - Hunts Locality,LD - Huntigndonshire - Special Needs,Residential Care
Cambridgeshire County Council,04-May-18,51300098773,-3579.88,HESLEY CARE LIMITED,CARE ESTABLISHMENT,LD - Hunts Locality,LD - Huntigndonshire - Special Needs,Residential Care
Cambridgeshire County Council,04-May-18,51300098876,-3579.88,HESLEY CARE LIMITED,CARE ESTABLISHMENT,LD - Hunts Locality,LD - Huntigndonshire - Special Needs,Residential Care
Cambridgeshire County Council,04-May-18,51300098778,-3579.88,HESLEY CARE LIMITED,CARE ESTABLISHMENT,LD - Hunts Locality,LD - Huntigndonshire - Special Needs,Residential Care
Cambridgeshire County Council,04-May-18,51300098878,-3579.88,HESLEY CARE LIMITED,CARE ESTABLISHMENT,LD - Hunts Locality,LD - Huntigndonshire - Special Needs,Residential Care
Cambridgeshire County Council,04-May-18,51300098826,-3579.88,HESLEY CARE LIMITED,CARE ESTABLISHMENT,LD - Hunts Locality,LD - Huntigndonshire - Special Needs,Residential Care
Cambridgeshire County Council,04-May-18,51300098873,-3579.88,HESLEY CARE LIMITED,CARE ESTABLISHMENT,LD - Hunts Locality,LD - Huntigndonshire - Special Needs,Residential Care
Cambridgeshire County Council,04-May-18,51300098882,-3579.88,HESLEY CARE LIMITED,CARE ESTABLISHMENT,LD - Hunts Locality,LD - Huntigndonshire - Special Needs,Residential Care
Cambridgeshire County Council,04-May-18,51300098837,-3579.88,HESLEY CARE LIMITED,CARE ESTABLISHMENT,LD - Hunts Locality,LD - Huntigndonshire - Special Needs,Residential Care
Cambridgeshire County Council,04-May-18,51300098855,-3579.88,HESLEY CARE LIMITED,CARE ESTABLISHMENT,LD - Hunts Locality,LD - Huntigndonshire - Special Needs,Residential Care
Cambridgeshire County Council,04-May-18,51300098793,-3579.88,HESLEY CARE LIMITED,CARE ESTABLISHMENT,LD - Hunts Locality,LD - Huntigndonshire - Special Needs,Residential Care
Cambridgeshire County Council,04-May-18,51300098770,-3579.88,HESLEY CARE LIMITED,CARE ESTABLISHMENT,LD - Hunts Locality,LD - Huntigndonshire - Special Needs,Residential Care
Cambridgeshire County Council,04-May-18,51300098832,-3579.88,HESLEY CARE LIMITED,CARE ESTABLISHMENT,LD - Hunts Locality,LD - Huntigndonshire - Special Needs,Residential Care
Cambridgeshire County Council,04-May-18,51300098828,-3579.88,HESLEY CARE LIMITED,CARE ESTABLISHMENT,LD - Hunts Locality,LD - Huntigndonshire - Special Needs,Residential Care
Cambridgeshire County Council,04-May-18,51300098891,-3579.88,HESLEY CARE LIMITED,CARE ESTABLISHMENT,LD - Hunts Locality,LD - Huntigndonshire - Special Needs,Residential Care
Cambridgeshire County Council,14-May-18,51300107406,-3325,BROOKDALE HEALTHCARE LIMITED#1,CARE ESTABLISHMENT,LD - Hunts Locality,LD - Huntigndonshire - Special Needs,Rehabilitation And Respite Care
Cambridgeshire County Council,14-May-18,51300098988,-3325,BROOKDALE HEALTHCARE LIMITED#1,CARE ESTABLISHMENT,LD - Hunts Locality,LD - Huntigndonshire - Care,Rehabilitation And Respite Care
Cambridgeshire County Council,25-May-18,51300114591,-3325,BROOKDALE HEALTHCARE LIMITED#1,CARE ESTABLISHMENT,LD - Hunts Locality,LD - Huntigndonshire - Care,Rehabilitation And Respite Care
Cambridgeshire County Council,25-May-18,51300142380,-3325,BROOKDALE HEALTHCARE LIMITED#1,CARE ESTABLISHMENT,LD - Hunts Locality,LD - Huntigndonshire - Special Needs,Rehabilitation And Respite Care
Cambridgeshire County Council,06-May-18,65300007636,-3132.31,CONGREGATION OF THE DAUGHTERS OF THE CROSS OF LIEGE (ST ELIZABETHS CENTRE),CARE ESTABLISHMENT,LD - Hunts Locality,LD - Huntigndonshire - Special Needs,Residential Care
Cambridgeshire County Council,13-May-18,65300000497,-3132.31,CONGREGATION OF THE DAUGHTERS OF THE CROSS OF LIEGE (ST ELIZABETHS CENTRE),CARE ESTABLISHMENT,LD - Hunts Locality,LD - Huntigndonshire - Special Needs,Residential Care
Cambridgeshire County Council,14-May-18,51300102516,-3089.8,AFFINITY TRUST#1,CARE ESTABLISHMENT,LD - Fenland Locality,LD - Fenland - Care,Domiciliary Care
Cambridgeshire County Council,14-May-18,51300102511,-3089.8,AFFINITY TRUST#1,CARE ESTABLISHMENT,LD - Fenland Locality,LD - Fenland - Care,Domiciliary Care
Cambridgeshire County Council,14-May-18,51300102513,-3089.8,AFFINITY TRUST#1,CARE ESTABLISHMENT,LD - Fenland Locality,LD - Fenland - Care,Domiciliary Care
Cambridgeshire County Council,14-May-18,51300102507,-3089.8,AFFINITY TRUST#1,CARE ESTABLISHMENT,LD - Fenland Locality,LD - Fenland - Care,Domiciliary Care
Cambridgeshire County Council,06-May-18,65300005468,-2977.44,DECOY FARM,CARE ESTABLISHMENT,LD - East Locality,LD - East Cambs - Special Needs,Residential Care
Cambridgeshire County Council,13-May-18,65300002424,-2977.44,DECOY FARM,CARE ESTABLISHMENT,LD - East Locality,LD - East Cambs - Special Needs,Residential Care
Cambridgeshire County Council,14-May-18,51300100866,-2977.44,DECOY FARM,CARE ESTABLISHMENT,LD - East Locality,LD - East Cambs - Special Needs,Residential Care
Cambridgeshire County Council,14-May-18,51300094409,-2977.44,DECOY FARM,CARE ESTABLISHMENT,LD - East Locality,LD - East Cambs - Special Needs,Residential Care
Cambridgeshire County Council,14-May-18,51300083331,-2977.44,DECOY FARM,CARE ESTABLISHMENT,LD - East Locality,LD - East Cambs - Special Needs,Residential Care
Cambridgeshire County Council,14-May-18,51300094382,-2977.44,DECOY FARM,CARE ESTABLISHMENT,LD - East Locality,LD - East Cambs - Special Needs,Residential Care
Cambridgeshire County Council,14-May-18,51300083316,-2977.44,DECOY FARM,CARE ESTABLISHMENT,LD - East Locality,LD - East Cambs - Special Needs,Residential Care
Cambridgeshire County Council,14-May-18,51300094430,-2977.44,DECOY FARM,CARE ESTABLISHMENT,LD - East Locality,LD - East Cambs - Special Needs,Residential Care
Cambridgeshire County Council,14-May-18,51300094418,-2977.44,DECOY FARM,CARE ESTABLISHMENT,LD - East Locality,LD - East Cambs - Special Needs,Residential Care
Cambridgeshire County Council,14-May-18,51300100838,-2977.44,DECOY FARM,CARE ESTABLISHMENT,LD - East Locality,LD - East Cambs - Special Needs,Residential Care
Cambridgeshire County Council,14-May-18,51300083429,-2977.44,DECOY FARM,CARE ESTABLISHMENT,LD - East Locality,LD - East Cambs - Special Needs,Residential Care
Cambridgeshire County Council,14-May-18,51300091055,-2977.44,DECOY FARM,CARE ESTABLISHMENT,LD - East Locality,LD - East Cambs - Special Needs,Residential Care
Cambridgeshire County Council,14-May-18,51300094395,-2977.44,DECOY FARM,CARE ESTABLISHMENT,LD - East Locality,LD - East Cambs - Special Needs,Residential Care
Cambridgeshire County Council,14-May-18,51300083351,-2977.44,DECOY FARM,CARE ESTABLISHMENT,LD - East Locality,LD - East Cambs - Special Needs,Residential Care
Cambridgeshire County Council,14-May-18,51300083307,-2977.44,DECOY FARM,CARE ESTABLISHMENT,LD - East Locality,LD - East Cambs - Special Needs,Residential Care
Cambridgeshire County Council,14-May-18,51300083375,-2977.44,DECOY FARM,CARE ESTABLISHMENT,LD - East Locality,LD - East Cambs - Special Needs,Residential Care
Cambridgeshire County Council,14-May-18,51300100926,-2977.44,DECOY FARM,CARE ESTABLISHMENT,LD - East Locality,LD - East Cambs - Special Needs,Residential Care
Cambridgeshire County Council,14-May-18,51300094427,-2977.44,DECOY FARM,CARE ESTABLISHMENT,LD - East Locality,LD - East Cambs - Special Needs,Residential Care
Cambridgeshire County Council,14-May-18,51300091041,-2977.44,DECOY FARM,CARE ESTABLISHMENT,LD - East Locality,LD - East Cambs - Special Needs,Residential Care
Cambridgeshire County Council,14-May-18,51300094397,-2977.44,DECOY FARM,CARE ESTABLISHMENT,LD - East Locality,LD - East Cambs - Special Needs,Residential Care
Cambridgeshire County Council,14-May-18,51300100876,-2977.44,DECOY FARM,CARE ESTABLISHMENT,LD - East Locality,LD - East Cambs - Special Needs,Residential Care
Cambridgeshire County Council,14-May-18,51300094416,-2977.44,DECOY FARM,CARE ESTABLISHMENT,LD - East Locality,LD - East Cambs - Special Needs,Residential Care
Cambridgeshire County Council,14-May-18,51300083364,-2977.44,DECOY FARM,CARE ESTABLISHMENT,LD - East Locality,LD - East Cambs - Special Needs,Residential Care
Cambridgeshire County Council,14-May-18,51300100939,-2977.44,DECOY FARM,CARE ESTABLISHMENT,LD - East Locality,LD - East Cambs - Special Needs,Residential Care
Cambridgeshire County Council,14-May-18,51300100818,-2977.44,DECOY FARM,CARE ESTABLISHMENT,LD - East Locality,LD - East Cambs - Special Needs,Residential Care
Cambridgeshire County Council,14-May-18,51300094437,-2977.44,DECOY FARM,CARE ESTABLISHMENT,LD - East Locality,LD - East Cambs - Special Needs,Residential Care
Cambridgeshire County Council,14-May-18,51300094331,-2977.44,DECOY FARM,CARE ESTABLISHMENT,LD - East Locality,LD - East Cambs - Special Needs,Residential Care
Cambridgeshire County Council,14-May-18,51300091040,-2977.44,DECOY FARM,CARE ESTABLISHMENT,LD - East Locality,LD - East Cambs - Special Needs,Residential Care
Cambridgeshire County Council,14-May-18,51300094431,-2977.44,DECOY FARM,CARE ESTABLISHMENT,LD - East Locality,LD - East Cambs - Special Needs,Residential Care
Cambridgeshire County Council,14-May-18,51300100925,-2977.44,DECOY FARM,CARE ESTABLISHMENT,LD - East Locality,LD - East Cambs - Special Needs,Residential Care
Cambridgeshire County Council,14-May-18,51300100920,-2977.44,DECOY FARM,CARE ESTABLISHMENT,LD - East Locality,LD - East Cambs - Special Needs,Residential Care
Cambridgeshire County Council,14-May-18,51300100843,-2977.44,DECOY FARM,CARE ESTABLISHMENT,LD - East Locality,LD - East Cambs - Special Needs,Residential Care
Cambridgeshire County Council,14-May-18,51300083279,-2977.44,DECOY FARM,CARE ESTABLISHMENT,LD - East Locality,LD - East Cambs - Special Needs,Residential Care
Cambridgeshire County Council,14-May-18,51300083389,-2977.44,DECOY FARM,CARE ESTABLISHMENT,LD - East Locality,LD - East Cambs - Special Needs,Residential Care
Cambridgeshire County Council,14-May-18,51300083495,-2977.44,DECOY FARM,CARE ESTABLISHMENT,LD - East Locality,LD - East Cambs - Special Needs,Residential Care
Cambridgeshire County Council,14-May-18,51300100944,-2977.44,DECOY FARM,CARE ESTABLISHMENT,LD - East Locality,LD - East Cambs - Special Needs,Residential Care
Cambridgeshire County Council,14-May-18,51300094435,-2977.44,DECOY FARM,CARE ESTABLISHMENT,LD - East Locality,LD - East Cambs - Special Needs,Residential Care
Cambridgeshire County Council,14-May-18,51300100864,-2977.44,DECOY FARM,CARE ESTABLISHMENT,LD - East Locality,LD - East Cambs - Special Needs,Residential Care
Cambridgeshire County Council,14-May-18,51300083440,-2977.44,DECOY FARM,CARE ESTABLISHMENT,LD - East Locality,LD - East Cambs - Special Needs,Residential Care
Cambridgeshire County Council,14-May-18,51300094375,-2977.44,DECOY FARM,CARE ESTABLISHMENT,LD - East Locality,LD - East Cambs - Special Needs,Residential Care
Cambridgeshire County Council,14-May-18,51300083363,-2977.44,DECOY FARM,CARE ESTABLISHMENT,LD - East Locality,LD - East Cambs - Special Needs,Residential Care
Cambridgeshire County Council,14-May-18,51300083303,-2977.44,DECOY FARM,CARE ESTABLISHMENT,LD - East Locality,LD - East Cambs - Special Needs,Residential Care
Cambridgeshire County Council,14-May-18,51300083486,-2977.44,DECOY FARM,CARE ESTABLISHMENT,LD - East Locality,LD - East Cambs - Special Needs,Residential Care
Cambridgeshire County Council,14-May-18,51300083283,-2977.44,DECOY FARM,CARE ESTABLISHMENT,LD - East Locality,LD - East Cambs - Special Needs,Residential Care
Cambridgeshire County Council,14-May-18,51300100863,-2977.44,DECOY FARM,CARE ESTABLISHMENT,LD - East Locality,LD - East Cambs - Special Needs,Residential Care
Cambridgeshire County Council,14-May-18,51300094408,-2977.44,DECOY FARM,CARE ESTABLISHMENT,LD - East Locality,LD - East Cambs - Special Needs,Residential Care
Cambridgeshire County Council,14-May-18,51300094301,-2977.44,DECOY FARM,CARE ESTABLISHMENT,LD - East Locality,LD - East Cambs - Special Needs,Residential Care
Cambridgeshire County Council,14-May-18,51300100911,-2977.44,DECOY FARM,CARE ESTABLISHMENT,LD - East Locality,LD - East Cambs - Special Needs,Residential Care
Cambridgeshire County Council,14-May-18,51300083488,-2977.44,DECOY FARM,CARE ESTABLISHMENT,LD - East Locality,LD - East Cambs - Special Needs,Residential Care
Cambridgeshire County Council,14-May-18,51300083342,-2977.44,DECOY FARM,CARE ESTABLISHMENT,LD - East Locality,LD - East Cambs - Special Needs,Residential Care
Cambridgeshire County Council,14-May-18,51300083441,-2977.44,DECOY FARM,CARE ESTABLISHMENT,LD - East Locality,LD - East Cambs - Special Needs,Residential Care
Cambridgeshire County Council,14-May-18,51300083476,-2977.44,DECOY FARM,CARE ESTABLISHMENT,LD - East Locality,LD - East Cambs - Special Needs,Residential Care
Cambridgeshire County Council,14-May-18,51300094356,-2977.44,DECOY FARM,CARE ESTABLISHMENT,LD - East Locality,LD - East Cambs - Special Needs,Residential Care
Cambridgeshire County Council,14-May-18,51300094308,-2977.44,DECOY FARM,CARE ESTABLISHMENT,LD - East Locality,LD - East Cambs - Special Needs,Residential Care
Cambridgeshire County Council,14-May-18,51300083473,-2977.44,DECOY FARM,CARE ESTABLISHMENT,LD - East Locality,LD - East Cambs - Special Needs,Residential Care
Cambridgeshire County Council,14-May-18,51300083344,-2977.44,DECOY FARM,CARE ESTABLISHMENT,LD - East Locality,LD - East Cambs - Special Needs,Residential Care
Cambridgeshire County Council,14-May-18,51300094423,-2977.44,DECOY FARM,CARE ESTABLISHMENT,LD - East Locality,LD - East Cambs - Special Needs,Residential Care
Cambridgeshire County Council,14-May-18,51300100871,-2977.44,DECOY FARM,CARE ESTABLISHMENT,LD - East Locality,LD - East Cambs - Special Needs,Residential Care
Cambridgeshire County Council,14-May-18,51300083305,-2977.44,DECOY FARM,CARE ESTABLISHMENT,LD - East Locality,LD - East Cambs - Special Needs,Residential Care
Cambridgeshire County Council,14-May-18,51300083444,-2977.44,DECOY FARM,CARE ESTABLISHMENT,LD - East Locality,LD - East Cambs - Special Needs,Residential Care
Cambridgeshire County Council,14-May-18,51300083417,-2977.44,DECOY FARM,CARE ESTABLISHMENT,LD - East Locality,LD - East Cambs - Special Needs,Residential Care
Cambridgeshire County Council,14-May-18,51300094419,-2977.44,DECOY FARM,CARE ESTABLISHMENT,LD - East Locality,LD - East Cambs - Special Needs,Residential Care
Cambridgeshire County Council,14-May-18,51300094350,-2977.44,DECOY FARM,CARE ESTABLISHMENT,LD - East Locality,LD - East Cambs - Special Needs,Residential Care
Cambridgeshire County Council,14-May-18,51300094362,-2977.44,DECOY FARM,CARE ESTABLISHMENT,LD - East Locality,LD - East Cambs - Special Needs,Residential Care
Cambridgeshire County Council,14-May-18,51300083450,-2977.44,DECOY FARM,CARE ESTABLISHMENT,LD - East Locality,LD - East Cambs - Special Needs,Residential Care
Cambridgeshire County Council,14-May-18,51300083432,-2977.44,DECOY FARM,CARE ESTABLISHMENT,LD - East Locality,LD - East Cambs - Special Needs,Residential Care
Cambridgeshire County Council,14-May-18,51300083470,-2977.44,DECOY FARM,CARE ESTABLISHMENT,LD - East Locality,LD - East Cambs - Special Needs,Residential Care
Cambridgeshire County Council,14-May-18,51300083426,-2977.44,DECOY FARM,CARE ESTABLISHMENT,LD - East Locality,LD - East Cambs - Special Needs,Residential Care
Cambridgeshire County Council,14-May-18,51300094336,-2977.44,DECOY FARM,CARE ESTABLISHMENT,LD - East Locality,LD - East Cambs - Special Needs,Residential Care
Cambridgeshire County Council,14-May-18,51300083366,-2977.44,DECOY FARM,CARE ESTABLISHMENT,LD - East Locality,LD - East Cambs - Special Needs,Residential Care
Cambridgeshire County Council,14-May-18,51300083343,-2977.44,DECOY FARM,CARE ESTABLISHMENT,LD - East Locality,LD - East Cambs - Special Needs,Residential Care
Cambridgeshire County Council,14-May-18,51300083320,-2977.44,DECOY FARM,CARE ESTABLISHMENT,LD - East Locality,LD - East Cambs - Special Needs,Residential Care
Cambridgeshire County Council,14-May-18,51300100933,-2977.44,DECOY FARM,CARE ESTABLISHMENT,LD - East Locality,LD - East Cambs - Special Needs,Residential Care
Cambridgeshire County Council,14-May-18,51300094344,-2977.44,DECOY FARM,CARE ESTABLISHMENT,LD - East Locality,LD - East Cambs - Special Needs,Residential Care
Cambridgeshire County Council,14-May-18,51300083271,-2977.44,DECOY FARM,CARE ESTABLISHMENT,LD - East Locality,LD - East Cambs - Special Needs,Residential Care
Cambridgeshire County Council,14-May-18,51300083464,-2977.44,DECOY FARM,CARE ESTABLISHMENT,LD - East Locality,LD - East Cambs - Special Needs,Residential Care
Cambridgeshire County Council,14-May-18,51300100833,-2977.44,DECOY FARM,CARE ESTABLISHMENT,LD - East Locality,LD - East Cambs - Special Needs,Residential Care
Cambridgeshire County Council,14-May-18,51300083423,-2977.44,DECOY FARM,CARE ESTABLISHMENT,LD - East Locality,LD - East Cambs - Special Needs,Residential Care
Cambridgeshire County Council,14-May-18,51300094444,-2977.44,DECOY FARM,CARE ESTABLISHMENT,LD - East Locality,LD - East Cambs - Special Needs,Residential Care
Cambridgeshire County Council,14-May-18,51300100883,-2977.44,DECOY FARM,CARE ESTABLISHMENT,LD - East Locality,LD - East Cambs - Special Needs,Residential Care
Cambridgeshire County Council,14-May-18,51300083290,-2977.44,DECOY FARM,CARE ESTABLISHMENT,LD - East Locality,LD - East Cambs - Special Needs,Residential Care
Cambridgeshire County Council,14-May-18,51300091050,-2977.44,DECOY FARM,CARE ESTABLISHMENT,LD - East Locality,LD - East Cambs - Special Needs,Residential Care
Cambridgeshire County Council,14-May-18,51300100924,-2977.44,DECOY FARM,CARE ESTABLISHMENT,LD - East Locality,LD - East Cambs - Special Needs,Residential Care
Cambridgeshire County Council,14-May-18,51300100823,-2977.44,DECOY FARM,CARE ESTABLISHMENT,LD - East Locality,LD - East Cambs - Special Needs,Residential Care
Cambridgeshire County Council,14-May-18,51300094306,-2977.44,DECOY FARM,CARE ESTABLISHMENT,LD - East Locality,LD - East Cambs - Special Needs,Residential Care
Cambridgeshire County Council,14-May-18,51300083394,-2977.44,DECOY FARM,CARE ESTABLISHMENT,LD - East Locality,LD - East Cambs - Special Needs,Residential Care
Cambridgeshire County Council,14-May-18,51300094314,-2977.44,DECOY FARM,CARE ESTABLISHMENT,LD - East Locality,LD - East Cambs - Special Needs,Residential Care
Cambridgeshire County Council,14-May-18,51300083302,-2977.44,DECOY FARM,CARE ESTABLISHMENT,LD - East Locality,LD - East Cambs - Special Needs,Residential Care
Cambridgeshire County Council,14-May-18,51300100954,-2977.44,DECOY FARM,CARE ESTABLISHMENT,LD - East Locality,LD - East Cambs - Special Needs,Residential Care
Cambridgeshire County Council,14-May-18,51300083422,-2977.44,DECOY FARM,CARE ESTABLISHMENT,LD - East Locality,LD - East Cambs - Special Needs,Residential Care
Cambridgeshire County Council,14-May-18,51300083277,-2977.44,DECOY FARM,CARE ESTABLISHMENT,LD - East Locality,LD - East Cambs - Special Needs,Residential Care
Cambridgeshire County Council,14-May-18,51300094394,-2977.44,DECOY FARM,CARE ESTABLISHMENT,LD - East Locality,LD - East Cambs - Special Needs,Residential Care
Cambridgeshire County Council,14-May-18,51300100853,-2977.44,DECOY FARM,CARE ESTABLISHMENT,LD - East Locality,LD - East Cambs - Special Needs,Residential Care
Cambridgeshire County Council,14-May-18,51300100855,-2977.44,DECOY FARM,CARE ESTABLISHMENT,LD - East Locality,LD - East Cambs - Special Needs,Residential Care
Cambridgeshire County Council,14-May-18,51300091061,-2977.44,DECOY FARM,CARE ESTABLISHMENT,LD - East Locality,LD - East Cambs - Special Needs,Residential Care
Cambridgeshire County Council,14-May-18,51300094447,-2977.44,DECOY FARM,CARE ESTABLISHMENT,LD - East Locality,LD - East Cambs - Special Needs,Residential Care
Cambridgeshire County Council,14-May-18,51300100900,-2977.44,DECOY FARM,CARE ESTABLISHMENT,LD - East Locality,LD - East Cambs - Special Needs,Residential Care
Cambridgeshire County Council,14-May-18,51300083323,-2977.44,DECOY FARM,CARE ESTABLISHMENT,LD - East Locality,LD - East Cambs - Special Needs,Residential Care
Cambridgeshire County Council,14-May-18,51300094439,-2977.44,DECOY FARM,CARE ESTABLISHMENT,LD - East Locality,LD - East Cambs - Special Needs,Residential Care
Cambridgeshire County Council,14-May-18,51300100859,-2977.44,DECOY FARM,CARE ESTABLISHMENT,LD - East Locality,LD - East Cambs - Special Needs,Residential Care
Cambridgeshire County Council,14-May-18,51300083431,-2977.44,DECOY FARM,CARE ESTABLISHMENT,LD - East Locality,LD - East Cambs - Special Needs,Residential Care
Cambridgeshire County Council,14-May-18,51300094317,-2977.44,DECOY FARM,CARE ESTABLISHMENT,LD - East Locality,LD - East Cambs - Special Needs,Residential Care
Cambridgeshire County Council,14-May-18,51300100898,-2977.44,DECOY FARM,CARE ESTABLISHMENT,LD - East Locality,LD - East Cambs - Special Needs,Residential Care
Cambridgeshire County Council,14-May-18,51300083296,-2977.44,DECOY FARM,CARE ESTABLISHMENT,LD - East Locality,LD - East Cambs - Special Needs,Residential Care
Cambridgeshire County Council,14-May-18,51300100879,-2977.44,DECOY FARM,CARE ESTABLISHMENT,LD - East Locality,LD - East Cambs - Special Needs,Residential Care
Cambridgeshire County Council,14-May-18,51300083413,-2977.44,DECOY FARM,CARE ESTABLISHMENT,LD - East Locality,LD - East Cambs - Special Needs,Residential Care
Cambridgeshire County Council,14-May-18,51300083405,-2977.44,DECOY FARM,CARE ESTABLISHMENT,LD - East Locality,LD - East Cambs - Special Needs,Residential Care
Cambridgeshire County Council,14-May-18,51300083414,-2977.44,DECOY FARM,CARE ESTABLISHMENT,LD - East Locality,LD - East Cambs - Special Needs,Residential Care
Cambridgeshire County Council,14-May-18,51300094410,-2977.44,DECOY FARM,CARE ESTABLISHMENT,LD - East Locality,LD - East Cambs - Special Needs,Residential Care
Cambridgeshire County Council,14-May-18,51300094374,-2977.44,DECOY FARM,CARE ESTABLISHMENT,LD - East Locality,LD - East Cambs - Special Needs,Residential Care
Cambridgeshire County Council,14-May-18,51300083409,-2977.44,DECOY FARM,CARE ESTABLISHMENT,LD - East Locality,LD - East Cambs - Special Needs,Residential Care
Cambridgeshire County Council,14-May-18,51300083327,-2977.44,DECOY FARM,CARE ESTABLISHMENT,LD - East Locality,LD - East Cambs - Special Needs,Residential Care
Cambridgeshire County Council,14-May-18,51300091076,-2977.44,DECOY FARM,CARE ESTABLISHMENT,LD - East Locality,LD - East Cambs - Special Needs,Residential Care
Cambridgeshire County Council,14-May-18,51300091044,-2977.44,DECOY FARM,CARE ESTABLISHMENT,LD - East Locality,LD - East Cambs - Special Needs,Residential Care
Cambridgeshire County Council,14-May-18,51300091067,-2977.44,DECOY FARM,CARE ESTABLISHMENT,LD - East Locality,LD - East Cambs - Special Needs,Residential Care
Cambridgeshire County Council,14-May-18,51300094312,-2977.44,DECOY FARM,CARE ESTABLISHMENT,LD - East Locality,LD - East Cambs - Special Needs,Residential Care
Cambridgeshire County Council,14-May-18,51300100913,-2977.44,DECOY FARM,CARE ESTABLISHMENT,LD - East Locality,LD - East Cambs - Special Needs,Residential Care
Cambridgeshire County Council,14-May-18,51300091038,-2977.44,DECOY FARM,CARE ESTABLISHMENT,LD - East Locality,LD - East Cambs - Special Needs,Residential Care
Cambridgeshire County Council,14-May-18,51300083348,-2977.44,DECOY FARM,CARE ESTABLISHMENT,LD - East Locality,LD - East Cambs - Special Needs,Residential Care
Cambridgeshire County Council,14-May-18,51300083387,-2977.44,DECOY FARM,CARE ESTABLISHMENT,LD - East Locality,LD - East Cambs - Special Needs,Residential Care
Cambridgeshire County Council,14-May-18,51300100841,-2977.44,DECOY FARM,CARE ESTABLISHMENT,LD - East Locality,LD - East Cambs - Special Needs,Residential Care
Cambridgeshire County Council,14-May-18,51300100948,-2977.44,DECOY FARM,CARE ESTABLISHMENT,LD - East Locality,LD - East Cambs - Special Needs,Residential Care
Cambridgeshire County Council,14-May-18,51300100950,-2977.44,DECOY FARM,CARE ESTABLISHMENT,LD - East Locality,LD - East Cambs - Special Needs,Residential Care
Cambridgeshire County Council,14-May-18,51300094372,-2977.44,DECOY FARM,CARE ESTABLISHMENT,LD - East Locality,LD - East Cambs - Special Needs,Residential Care
Cambridgeshire County Council,14-May-18,51300094305,-2977.44,DECOY FARM,CARE ESTABLISHMENT,LD - East Locality,LD - East Cambs - Special Needs,Residential Care
Cambridgeshire County Council,14-May-18,51300083359,-2977.44,DECOY FARM,CARE ESTABLISHMENT,LD - East Locality,LD - East Cambs - Special Needs,Residential Care
Cambridgeshire County Council,14-May-18,51300100923,-2977.44,DECOY FARM,CARE ESTABLISHMENT,LD - East Locality,LD - East Cambs - Special Needs,Residential Care
Cambridgeshire County Council,14-May-18,51300100949,-2977.44,DECOY FARM,CARE ESTABLISHMENT,LD - East Locality,LD - East Cambs - Special Needs,Residential Care
Cambridgeshire County Council,14-May-18,51300100860,-2977.44,DECOY FARM,CARE ESTABLISHMENT,LD - East Locality,LD - East Cambs - Special Needs,Residential Care
Cambridgeshire County Council,14-May-18,51300083365,-2977.44,DECOY FARM,CARE ESTABLISHMENT,LD - East Locality,LD - East Cambs - Special Needs,Residential Care
Cambridgeshire County Council,14-May-18,51300094346,-2977.44,DECOY FARM,CARE ESTABLISHMENT,LD - East Locality,LD - East Cambs - Special Needs,Residential Care
Cambridgeshire County Council,14-May-18,51300083280,-2977.44,DECOY FARM,CARE ESTABLISHMENT,LD - East Locality,LD - East Cambs - Special Needs,Residential Care
Cambridgeshire County Council,14-May-18,51300100915,-2977.44,DECOY FARM,CARE ESTABLISHMENT,LD - East Locality,LD - East Cambs - Special Needs,Residential Care
Cambridgeshire County Council,14-May-18,51300083372,-2977.44,DECOY FARM,CARE ESTABLISHMENT,LD - East Locality,LD - East Cambs - Special Needs,Residential Care
Cambridgeshire County Council,14-May-18,51300094421,-2977.44,DECOY FARM,CARE ESTABLISHMENT,LD - East Locality,LD - East Cambs - Special Needs,Residential Care
Cambridgeshire County Council,14-May-18,51300094373,-2977.44,DECOY FARM,CARE ESTABLISHMENT,LD - East Locality,LD - East Cambs - Special Needs,Residential Care
Cambridgeshire County Council,14-May-18,51300094448,-2977.44,DECOY FARM,CARE ESTABLISHMENT,LD - East Locality,LD - East Cambs - Special Needs,Residential Care
Cambridgeshire County Council,14-May-18,51300100928,-2977.44,DECOY FARM,CARE ESTABLISHMENT,LD - East Locality,LD - East Cambs - Special Needs,Residential Care
Cambridgeshire County Council,14-May-18,51300083435,-2977.44,DECOY FARM,CARE ESTABLISHMENT,LD - East Locality,LD - East Cambs - Special Needs,Residential Care
Cambridgeshire County Council,14-May-18,51300083286,-2977.44,DECOY FARM,CARE ESTABLISHMENT,LD - East Locality,LD - East Cambs - Special Needs,Residential Care
Cambridgeshire County Council,14-May-18,51300100814,-2977.44,DECOY FARM,CARE ESTABLISHMENT,LD - East Locality,LD - East Cambs - Special Needs,Residential Care
Cambridgeshire County Council,14-May-18,51300094442,-2977.44,DECOY FARM,CARE ESTABLISHMENT,LD - East Locality,LD - East Cambs - Special Needs,Residential Care
Cambridgeshire County Council,14-May-18,51300094311,-2977.44,DECOY FARM,CARE ESTABLISHMENT,LD - East Locality,LD - East Cambs - Special Needs,Residential Care
Cambridgeshire County Council,14-May-18,51300083284,-2977.44,DECOY FARM,CARE ESTABLISHMENT,LD - East Locality,LD - East Cambs - Special Needs,Residential Care
Cambridgeshire County Council,14-May-18,51300083361,-2977.44,DECOY FARM,CARE ESTABLISHMENT,LD - East Locality,LD - East Cambs - Special Needs,Residential Care
Cambridgeshire County Council,14-May-18,51300083456,-2977.44,DECOY FARM,CARE ESTABLISHMENT,LD - East Locality,LD - East Cambs - Special Needs,Residential Care
Cambridgeshire County Council,14-May-18,51300100805,-2977.44,DECOY FARM,CARE ESTABLISHMENT,LD - East Locality,LD - East Cambs - Special Needs,Residential Care
Cambridgeshire County Council,14-May-18,51300094368,-2977.44,DECOY FARM,CARE ESTABLISHMENT,LD - East Locality,LD - East Cambs - Special Needs,Residential Care
Cambridgeshire County Council,14-May-18,51300083424,-2977.44,DECOY FARM,CARE ESTABLISHMENT,LD - East Locality,LD - East Cambs - Special Needs,Residential Care
Cambridgeshire County Council,14-May-18,51300083278,-2977.44,DECOY FARM,CARE ESTABLISHMENT,LD - East Locality,LD - East Cambs - Special Needs,Residential Care
Cambridgeshire County Council,14-May-18,51300083325,-2977.44,DECOY FARM,CARE ESTABLISHMENT,LD - East Locality,LD - East Cambs - Special Needs,Residential Care
Cambridgeshire County Council,14-May-18,51300083347,-2977.44,DECOY FARM,CARE ESTABLISHMENT,LD - East Locality,LD - East Cambs - Special Needs,Residential Care
Cambridgeshire County Council,14-May-18,51300083479,-2977.44,DECOY FARM,CARE ESTABLISHMENT,LD - East Locality,LD - East Cambs - Special Needs,Residential Care
Cambridgeshire County Council,14-May-18,51300083357,-2977.44,DECOY FARM,CARE ESTABLISHMENT,LD - East Locality,LD - East Cambs - Special Needs,Residential Care
Cambridgeshire County Council,14-May-18,51300091046,-2977.44,DECOY FARM,CARE ESTABLISHMENT,LD - East Locality,LD - East Cambs - Special Needs,Residential Care
Cambridgeshire County Council,14-May-18,51300094321,-2977.44,DECOY FARM,CARE ESTABLISHMENT,LD - East Locality,LD - East Cambs - Special Needs,Residential Care
Cambridgeshire County Council,14-May-18,51300100921,-2977.44,DECOY FARM,CARE ESTABLISHMENT,LD - East Locality,LD - East Cambs - Special Needs,Residential Care
Cambridgeshire County Council,14-May-18,51300100848,-2977.44,DECOY FARM,CARE ESTABLISHMENT,LD - East Locality,LD - East Cambs - Special Needs,Residential Care
Cambridgeshire County Council,14-May-18,51300094412,-2977.44,DECOY FARM,CARE ESTABLISHMENT,LD - East Locality,LD - East Cambs - Special Needs,Residential Care
Cambridgeshire County Council,14-May-18,51300083399,-2977.44,DECOY FARM,CARE ESTABLISHMENT,LD - East Locality,LD - East Cambs - Special Needs,Residential Care
Cambridgeshire County Council,14-May-18,51300091056,-2977.44,DECOY FARM,CARE ESTABLISHMENT,LD - East Locality,LD - East Cambs - Special Needs,Residential Care
Cambridgeshire County Council,14-May-18,51300091052,-2977.44,DECOY FARM,CARE ESTABLISHMENT,LD - East Locality,LD - East Cambs - Special Needs,Residential Care
Cambridgeshire County Council,14-May-18,51300083453,-2977.44,DECOY FARM,CARE ESTABLISHMENT,LD - East Locality,LD - East Cambs - Special Needs,Residential Care
Cambridgeshire County Council,14-May-18,51300100901,-2977.44,DECOY FARM,CARE ESTABLISHMENT,LD - East Locality,LD - East Cambs - Special Needs,Residential Care
Cambridgeshire County Council,14-May-18,51300083291,-2977.44,DECOY FARM,CARE ESTABLISHMENT,LD - East Locality,LD - East Cambs - Special Needs,Residential Care
Cambridgeshire County Council,14-May-18,51300083373,-2977.44,DECOY FARM,CARE ESTABLISHMENT,LD - East Locality,LD - East Cambs - Special Needs,Residential Care
Cambridgeshire County Council,14-May-18,51300100937,-2977.44,DECOY FARM,CARE ESTABLISHMENT,LD - East Locality,LD - East Cambs - Special Needs,Residential Care
Cambridgeshire County Council,14-May-18,51300094304,-2977.44,DECOY FARM,CARE ESTABLISHMENT,LD - East Locality,LD - East Cambs - Special Needs,Residential Care
Cambridgeshire County Council,14-May-18,51300100839,-2977.44,DECOY FARM,CARE ESTABLISHMENT,LD - East Locality,LD - East Cambs - Special Needs,Residential Care
Cambridgeshire County Council,14-May-18,51300100946,-2977.44,DECOY FARM,CARE ESTABLISHMENT,LD - East Locality,LD - East Cambs - Special Needs,Residential Care
Cambridgeshire County Council,14-May-18,51300083382,-2977.44,DECOY FARM,CARE ESTABLISHMENT,LD - East Locality,LD - East Cambs - Special Needs,Residential Care
Cambridgeshire County Council,14-May-18,51300094303,-2977.44,DECOY FARM,CARE ESTABLISHMENT,LD - East Locality,LD - East Cambs - Special Needs,Residential Care
Cambridgeshire County Council,14-May-18,51300100891,-2977.44,DECOY FARM,CARE ESTABLISHMENT,LD - East Locality,LD - East Cambs - Special Needs,Residential Care
Cambridgeshire County Council,14-May-18,51300100906,-2977.44,DECOY FARM,CARE ESTABLISHMENT,LD - East Locality,LD - East Cambs - Special Needs,Residential Care
Cambridgeshire County Council,14-May-18,51300100931,-2977.44,DECOY FARM,CARE ESTABLISHMENT,LD - East Locality,LD - East Cambs - Special Needs,Residential Care
Cambridgeshire County Council,14-May-18,51300083403,-2977.44,DECOY FARM,CARE ESTABLISHMENT,LD - East Locality,LD - East Cambs - Special Needs,Residential Care
Cambridgeshire County Council,14-May-18,51300083446,-2977.44,DECOY FARM,CARE ESTABLISHMENT,LD - East Locality,LD - East Cambs - Special Needs,Residential Care
Cambridgeshire County Council,14-May-18,51300083332,-2977.44,DECOY FARM,CARE ESTABLISHMENT,LD - East Locality,LD - East Cambs - Special Needs,Residential Care
Cambridgeshire County Council,14-May-18,51300083499,-2977.44,DECOY FARM,CARE ESTABLISHMENT,LD - East Locality,LD - East Cambs - Special Needs,Residential Care
Cambridgeshire County Council,14-May-18,51300100890,-2977.44,DECOY FARM,CARE ESTABLISHMENT,LD - East Locality,LD - East Cambs - Special Needs,Residential Care
Cambridgeshire County Council,14-May-18,51300083326,-2977.44,DECOY FARM,CARE ESTABLISHMENT,LD - East Locality,LD - East Cambs - Special Needs,Residential Care
Cambridgeshire County Council,14-May-18,51300083395,-2977.44,DECOY FARM,CARE ESTABLISHMENT,LD - East Locality,LD - East Cambs - Special Needs,Residential Care
Cambridgeshire County Council,14-May-18,51300100910,-2977.44,DECOY FARM,CARE ESTABLISHMENT,LD - East Locality,LD - East Cambs - Special Needs,Residential Care
Cambridgeshire County Council,14-May-18,51300094398,-2977.44,DECOY FARM,CARE ESTABLISHMENT,LD - East Locality,LD - East Cambs - Special Needs,Residential Care
Cambridgeshire County Council,14-May-18,51300083392,-2977.44,DECOY FARM,CARE ESTABLISHMENT,LD - East Locality,LD - East Cambs - Special Needs,Residential Care
Cambridgeshire County Council,14-May-18,51300094328,-2977.44,DECOY FARM,CARE ESTABLISHMENT,LD - East Locality,LD - East Cambs - Special Needs,Residential Care
Cambridgeshire County Council,14-May-18,51300083285,-2977.44,DECOY FARM,CARE ESTABLISHMENT,LD - East Locality,LD - East Cambs - Special Needs,Residential Care
Cambridgeshire County Council,14-May-18,51300083412,-2977.44,DECOY FARM,CARE ESTABLISHMENT,LD - East Locality,LD - East Cambs - Special Needs,Residential Care
Cambridgeshire County Council,14-May-18,51300083371,-2977.44,DECOY FARM,CARE ESTABLISHMENT,LD - East Locality,LD - East Cambs - Special Needs,Residential Care
Cambridgeshire County Council,14-May-18,51300083448,-2977.44,DECOY FARM,CARE ESTABLISHMENT,LD - East Locality,LD - East Cambs - Special Needs,Residential Care
Cambridgeshire County Council,14-May-18,51300100834,-2977.44,DECOY FARM,CARE ESTABLISHMENT,LD - East Locality,LD - East Cambs - Special Needs,Residential Care
Cambridgeshire County Council,14-May-18,51300091075,-2977.44,DECOY FARM,CARE ESTABLISHMENT,LD - East Locality,LD - East Cambs - Special Needs,Residential Care
Cambridgeshire County Council,14-May-18,51300100810,-2977.44,DECOY FARM,CARE ESTABLISHMENT,LD - East Locality,LD - East Cambs - Special Needs,Residential Care
Cambridgeshire County Council,14-May-18,51300094333,-2977.44,DECOY FARM,CARE ESTABLISHMENT,LD - East Locality,LD - East Cambs - Special Needs,Residential Care
Cambridgeshire County Council,14-May-18,51300083457,-2977.44,DECOY FARM,CARE ESTABLISHMENT,LD - East Locality,LD - East Cambs - Special Needs,Residential Care
Cambridgeshire County Council,14-May-18,51300094422,-2977.44,DECOY FARM,CARE ESTABLISHMENT,LD - East Locality,LD - East Cambs - Special Needs,Residential Care
Cambridgeshire County Council,14-May-18,51300094337,-2977.44,DECOY FARM,CARE ESTABLISHMENT,LD - East Locality,LD - East Cambs - Special Needs,Residential Care
Cambridgeshire County Council,14-May-18,51300100916,-2977.44,DECOY FARM,CARE ESTABLISHMENT,LD - East Locality,LD - East Cambs - Special Needs,Residential Care
Cambridgeshire County Council,14-May-18,51300100877,-2977.44,DECOY FARM,CARE ESTABLISHMENT,LD - East Locality,LD - East Cambs - Special Needs,Residential Care
Cambridgeshire County Council,14-May-18,51300083406,-2977.44,DECOY FARM,CARE ESTABLISHMENT,LD - East Locality,LD - East Cambs - Special Needs,Residential Care
Cambridgeshire County Council,14-May-18,51300100825,-2977.44,DECOY FARM,CARE ESTABLISHMENT,LD - East Locality,LD - East Cambs - Special Needs,Residential Care
Cambridgeshire County Council,14-May-18,51300083415,-2977.44,DECOY FARM,CARE ESTABLISHMENT,LD - East Locality,LD - East Cambs - Special Needs,Residential Care
Cambridgeshire County Council,14-May-18,51300091072,-2977.44,DECOY FARM,CARE ESTABLISHMENT,LD - East Locality,LD - East Cambs - Special Needs,Residential Care
Cambridgeshire County Council,14-May-18,51300094384,-2977.44,DECOY FARM,CARE ESTABLISHMENT,LD - East Locality,LD - East Cambs - Special Needs,Residential Care
Cambridgeshire County Council,14-May-18,51300094363,-2977.44,DECOY FARM,CARE ESTABLISHMENT,LD - East Locality,LD - East Cambs - Special Needs,Residential Care
Cambridgeshire County Council,14-May-18,51300083438,-2977.44,DECOY FARM,CARE ESTABLISHMENT,LD - East Locality,LD - East Cambs - Special Needs,Residential Care
Cambridgeshire County Council,14-May-18,51300100922,-2977.44,DECOY FARM,CARE ESTABLISHMENT,LD - East Locality,LD - East Cambs - Special Needs,Residential Care
Cambridgeshire County Council,14-May-18,51300083308,-2977.44,DECOY FARM,CARE ESTABLISHMENT,LD - East Locality,LD - East Cambs - Special Needs,Residential Care
Cambridgeshire County Council,14-May-18,51300094440,-2977.44,DECOY FARM,CARE ESTABLISHMENT,LD - East Locality,LD - East Cambs - Special Needs,Residential Care
Cambridgeshire County Council,14-May-18,51300100812,-2977.44,DECOY FARM,CARE ESTABLISHMENT,LD - East Locality,LD - East Cambs - Special Needs,Residential Care
Cambridgeshire County Council,14-May-18,51300083362,-2977.44,DECOY FARM,CARE ESTABLISHMENT,LD - East Locality,LD - East Cambs - Special Needs,Residential Care
Cambridgeshire County Council,14-May-18,51300100857,-2977.44,DECOY FARM,CARE ESTABLISHMENT,LD - East Locality,LD - East Cambs - Special Needs,Residential Care
Cambridgeshire County Council,14-May-18,51300083433,-2977.44,DECOY FARM,CARE ESTABLISHMENT,LD - East Locality,LD - East Cambs - Special Needs,Residential Care
Cambridgeshire County Council,14-May-18,51300094441,-2977.44,DECOY FARM,CARE ESTABLISHMENT,LD - East Locality,LD - East Cambs - Special Needs,Residential Care
Cambridgeshire County Council,14-May-18,51300083454,-2977.44,DECOY FARM,CARE ESTABLISHMENT,LD - East Locality,LD - East Cambs - Special Needs,Residential Care
Cambridgeshire County Council,14-May-18,51300083288,-2977.44,DECOY FARM,CARE ESTABLISHMENT,LD - East Locality,LD - East Cambs - Special Needs,Residential Care
Cambridgeshire County Council,14-May-18,51300094426,-2977.44,DECOY FARM,CARE ESTABLISHMENT,LD - East Locality,LD - East Cambs - Special Needs,Residential Care
Cambridgeshire County Council,14-May-18,51300094434,-2977.44,DECOY FARM,CARE ESTABLISHMENT,LD - East Locality,LD - East Cambs - Special Needs,Residential Care
Cambridgeshire County Council,14-May-18,51300100881,-2977.44,DECOY FARM,CARE ESTABLISHMENT,LD - East Locality,LD - East Cambs - Special Needs,Residential Care
Cambridgeshire County Council,14-May-18,51300083418,-2977.44,DECOY FARM,CARE ESTABLISHMENT,LD - East Locality,LD - East Cambs - Special Needs,Residential Care
Cambridgeshire County Council,14-May-18,51300091053,-2977.44,DECOY FARM,CARE ESTABLISHMENT,LD - East Locality,LD - East Cambs - Special Needs,Residential Care
Cambridgeshire County Council,14-May-18,51300094360,-2977.44,DECOY FARM,CARE ESTABLISHMENT,LD - East Locality,LD - East Cambs - Special Needs,Residential Care
Cambridgeshire County Council,14-May-18,51300094365,-2977.44,DECOY FARM,CARE ESTABLISHMENT,LD - East Locality,LD - East Cambs - Special Needs,Residential Care
Cambridgeshire County Council,14-May-18,51300083328,-2977.44,DECOY FARM,CARE ESTABLISHMENT,LD - East Locality,LD - East Cambs - Special Needs,Residential Care
Cambridgeshire County Council,14-May-18,51300083434,-2977.44,DECOY FARM,CARE ESTABLISHMENT,LD - East Locality,LD - East Cambs - Special Needs,Residential Care
Cambridgeshire County Council,14-May-18,51300100878,-2977.44,DECOY FARM,CARE ESTABLISHMENT,LD - East Locality,LD - East Cambs - Special Needs,Residential Care
Cambridgeshire County Council,14-May-18,51300094396,-2977.44,DECOY FARM,CARE ESTABLISHMENT,LD - East Locality,LD - East Cambs - Special Needs,Residential Care
Cambridgeshire County Council,14-May-18,51300094319,-2977.44,DECOY FARM,CARE ESTABLISHMENT,LD - East Locality,LD - East Cambs - Special Needs,Residential Care
Cambridgeshire County Council,14-May-18,51300100917,-2977.44,DECOY FARM,CARE ESTABLISHMENT,LD - East Locality,LD - East Cambs - Special Needs,Residential Care
Cambridgeshire County Council,14-May-18,51300094376,-2977.44,DECOY FARM,CARE ESTABLISHMENT,LD - East Locality,LD - East Cambs - Special Needs,Residential Care
Cambridgeshire County Council,14-May-18,51300094325,-2977.44,DECOY FARM,CARE ESTABLISHMENT,LD - East Locality,LD - East Cambs - Special Needs,Residential Care
Cambridgeshire County Council,14-May-18,51300094400,-2977.44,DECOY FARM,CARE ESTABLISHMENT,LD - East Locality,LD - East Cambs - Special Needs,Residential Care
Cambridgeshire County Council,14-May-18,51300100947,-2977.44,DECOY FARM,CARE ESTABLISHMENT,LD - East Locality,LD - East Cambs - Special Needs,Residential Care
Cambridgeshire County Council,14-May-18,51300100832,-2977.44,DECOY FARM,CARE ESTABLISHMENT,LD - East Locality,LD - East Cambs - Special Needs,Residential Care
Cambridgeshire County Council,14-May-18,51300100821,-2977.44,DECOY FARM,CARE ESTABLISHMENT,LD - East Locality,LD - East Cambs - Special Needs,Residential Care
Cambridgeshire County Council,14-May-18,51300083273,-2977.44,DECOY FARM,CARE ESTABLISHMENT,LD - East Locality,LD - East Cambs - Special Needs,Residential Care
Cambridgeshire County Council,14-May-18,51300083268,-2977.44,DECOY FARM,CARE ESTABLISHMENT,LD - East Locality,LD - East Cambs - Special Needs,Residential Care
Cambridgeshire County Council,14-May-18,51300100957,-2977.44,DECOY FARM,CARE ESTABLISHMENT,LD - East Locality,LD - East Cambs - Special Needs,Residential Care
Cambridgeshire County Council,14-May-18,51300091069,-2977.44,DECOY FARM,CARE ESTABLISHMENT,LD - East Locality,LD - East Cambs - Special Needs,Residential Care
Cambridgeshire County Council,14-May-18,51300083419,-2977.44,DECOY FARM,CARE ESTABLISHMENT,LD - East Locality,LD - East Cambs - Special Needs,Residential Care
Cambridgeshire County Council,14-May-18,51300100958,-2977.44,DECOY FARM,CARE ESTABLISHMENT,LD - East Locality,LD - East Cambs - Special Needs,Residential Care
Cambridgeshire County Council,14-May-18,51300083318,-2977.44,DECOY FARM,CARE ESTABLISHMENT,LD - East Locality,LD - East Cambs - Special Needs,Residential Care
Cambridgeshire County Council,14-May-18,51300094385,-2977.44,DECOY FARM,CARE ESTABLISHMENT,LD - East Locality,LD - East Cambs - Special Needs,Residential Care
Cambridgeshire County Council,14-May-18,51300094320,-2977.44,DECOY FARM,CARE ESTABLISHMENT,LD - East Locality,LD - East Cambs - Special Needs,Residential Care
Cambridgeshire County Council,14-May-18,51300100817,-2977.44,DECOY FARM,CARE ESTABLISHMENT,LD - East Locality,LD - East Cambs - Special Needs,Residential Care
Cambridgeshire County Council,14-May-18,51300083398,-2977.44,DECOY FARM,CARE ESTABLISHMENT,LD - East Locality,LD - East Cambs - Special Needs,Residential Care
Cambridgeshire County Council,14-May-18,51300083439,-2977.44,DECOY FARM,CARE ESTABLISHMENT,LD - East Locality,LD - East Cambs - Special Needs,Residential Care
Cambridgeshire County Council,14-May-18,51300094446,-2977.44,DECOY FARM,CARE ESTABLISHMENT,LD - East Locality,LD - East Cambs - Special Needs,Residential Care
Cambridgeshire County Council,14-May-18,51300094343,-2977.44,DECOY FARM,CARE ESTABLISHMENT,LD - East Locality,LD - East Cambs - Special Needs,Residential Care
Cambridgeshire County Council,14-May-18,51300091058,-2977.44,DECOY FARM,CARE ESTABLISHMENT,LD - East Locality,LD - East Cambs - Special Needs,Residential Care
Cambridgeshire County Council,14-May-18,51300100828,-2977.44,DECOY FARM,CARE ESTABLISHMENT,LD - East Locality,LD - East Cambs - Special Needs,Residential Care
Cambridgeshire County Council,14-May-18,51300091071,-2977.44,DECOY FARM,CARE ESTABLISHMENT,LD - East Locality,LD - East Cambs - Special Needs,Residential Care
Cambridgeshire County Council,14-May-18,51300100854,-2977.44,DECOY FARM,CARE ESTABLISHMENT,LD - East Locality,LD - East Cambs - Special Needs,Residential Care
Cambridgeshire County Council,14-May-18,51300083315,-2977.44,DECOY FARM,CARE ESTABLISHMENT,LD - East Locality,LD - East Cambs - Special Needs,Residential Care
Cambridgeshire County Council,14-May-18,51300100895,-2977.44,DECOY FARM,CARE ESTABLISHMENT,LD - East Locality,LD - East Cambs - Special Needs,Residential Care
Cambridgeshire County Council,14-May-18,51300083468,-2977.44,DECOY FARM,CARE ESTABLISHMENT,LD - East Locality,LD - East Cambs - Special Needs,Residential Care
Cambridgeshire County Council,14-May-18,51300094402,-2977.44,DECOY FARM,CARE ESTABLISHMENT,LD - East Locality,LD - East Cambs - Special Needs,Residential Care
Cambridgeshire County Council,14-May-18,51300094348,-2977.44,DECOY FARM,CARE ESTABLISHMENT,LD - East Locality,LD - East Cambs - Special Needs,Residential Care
Cambridgeshire County Council,14-May-18,51300100905,-2977.44,DECOY FARM,CARE ESTABLISHMENT,LD - East Locality,LD - East Cambs - Special Needs,Residential Care
Cambridgeshire County Council,14-May-18,51300094383,-2977.44,DECOY FARM,CARE ESTABLISHMENT,LD - East Locality,LD - East Cambs - Special Needs,Residential Care
Cambridgeshire County Council,14-May-18,51300100938,-2977.44,DECOY FARM,CARE ESTABLISHMENT,LD - East Locality,LD - East Cambs - Special Needs,Residential Care
Cambridgeshire County Council,14-May-18,51300083472,-2977.44,DECOY FARM,CARE ESTABLISHMENT,LD - East Locality,LD - East Cambs - Special Needs,Residential Care
Cambridgeshire County Council,14-May-18,51300083477,-2977.44,DECOY FARM,CARE ESTABLISHMENT,LD - East Locality,LD - East Cambs - Special Needs,Residential Care
Cambridgeshire County Council,14-May-18,51300100875,-2977.44,DECOY FARM,CARE ESTABLISHMENT,LD - East Locality,LD - East Cambs - Special Needs,Residential Care
Cambridgeshire County Council,14-May-18,51300100804,-2977.44,DECOY FARM,CARE ESTABLISHMENT,LD - East Locality,LD - East Cambs - Special Needs,Residential Care
Cambridgeshire County Council,14-May-18,51300094449,-2977.44,DECOY FARM,CARE ESTABLISHMENT,LD - East Locality,LD - East Cambs - Special Needs,Residential Care
Cambridgeshire County Council,14-May-18,51300100952,-2977.44,DECOY FARM,CARE ESTABLISHMENT,LD - East Locality,LD - East Cambs - Special Needs,Residential Care
Cambridgeshire County Council,14-May-18,51300083388,-2977.44,DECOY FARM,CARE ESTABLISHMENT,LD - East Locality,LD - East Cambs - Special Needs,Residential Care
Cambridgeshire County Council,14-May-18,51300094417,-2977.44,DECOY FARM,CARE ESTABLISHMENT,LD - East Locality,LD - East Cambs - Special Needs,Residential Care
Cambridgeshire County Council,14-May-18,51300083475,-2977.44,DECOY FARM,CARE ESTABLISHMENT,LD - East Locality,LD - East Cambs - Special Needs,Residential Care
Cambridgeshire County Council,14-May-18,51300083321,-2977.44,DECOY FARM,CARE ESTABLISHMENT,LD - East Locality,LD - East Cambs - Special Needs,Residential Care
Cambridgeshire County Council,17-May-18,51300110005,-2977.44,DECOY FARM,CARE ESTABLISHMENT,LD - East Locality,LD - East Cambs - Special Needs,Residential Care
Cambridgeshire County Council,17-May-18,51300109991,-2977.44,DECOY FARM,CARE ESTABLISHMENT,LD - East Locality,LD - East Cambs - Special Needs,Residential Care
Cambridgeshire County Council,17-May-18,51300110003,-2977.44,DECOY FARM,CARE ESTABLISHMENT,LD - East Locality,LD - East Cambs - Special Needs,Residential Care
Cambridgeshire County Council,17-May-18,51300109957,-2977.44,DECOY FARM,CARE ESTABLISHMENT,LD - East Locality,LD - East Cambs - Special Needs,Residential Care
Cambridgeshire County Council,17-May-18,51300110078,-2977.44,DECOY FARM,CARE ESTABLISHMENT,LD - East Locality,LD - East Cambs - Special Needs,Residential Care
Cambridgeshire County Council,17-May-18,51300110007,-2977.44,DECOY FARM,CARE ESTABLISHMENT,LD - East Locality,LD - East Cambs - Special Needs,Residential Care
Cambridgeshire County Council,17-May-18,51300109987,-2977.44,DECOY FARM,CARE ESTABLISHMENT,LD - East Locality,LD - East Cambs - Special Needs,Residential Care
Cambridgeshire County Council,17-May-18,51300110073,-2977.44,DECOY FARM,CARE ESTABLISHMENT,LD - East Locality,LD - East Cambs - Special Needs,Residential Care
Cambridgeshire County Council,17-May-18,51300110002,-2977.44,DECOY FARM,CARE ESTABLISHMENT,LD - East Locality,LD - East Cambs - Special Needs,Residential Care
Cambridgeshire County Council,17-May-18,51300110013,-2977.44,DECOY FARM,CARE ESTABLISHMENT,LD - East Locality,LD - East Cambs - Special Needs,Residential Care
Cambridgeshire County Council,17-May-18,51300110043,-2977.44,DECOY FARM,CARE ESTABLISHMENT,LD - East Locality,LD - East Cambs - Special Needs,Residential Care
Cambridgeshire County Council,17-May-18,51300110084,-2977.44,DECOY FARM,CARE ESTABLISHMENT,LD - East Locality,LD - East Cambs - Special Needs,Residential Care
Cambridgeshire County Council,17-May-18,51300110087,-2977.44,DECOY FARM,CARE ESTABLISHMENT,LD - East Locality,LD - East Cambs - Special Needs,Residential Care
Cambridgeshire County Council,17-May-18,51300109993,-2977.44,DECOY FARM,CARE ESTABLISHMENT,LD - East Locality,LD - East Cambs - Special Needs,Residential Care
Cambridgeshire County Council,17-May-18,51300110076,-2977.44,DECOY FARM,CARE ESTABLISHMENT,LD - East Locality,LD - East Cambs - Special Needs,Residential Care
Cambridgeshire County Council,17-May-18,51300110056,-2977.44,DECOY FARM,CARE ESTABLISHMENT,LD - East Locality,LD - East Cambs - Special Needs,Residential Care
Cambridgeshire County Council,17-May-18,51300110024,-2977.44,DECOY FARM,CARE ESTABLISHMENT,LD - East Locality,LD - East Cambs - Special Needs,Residential Care
Cambridgeshire County Council,17-May-18,51300110009,-2977.44,DECOY FARM,CARE ESTABLISHMENT,LD - East Locality,LD - East Cambs - Special Needs,Residential Care
Cambridgeshire County Council,17-May-18,51300109977,-2977.44,DECOY FARM,CARE ESTABLISHMENT,LD - East Locality,LD - East Cambs - Special Needs,Residential Care
Cambridgeshire County Council,17-May-18,51300110038,-2977.44,DECOY FARM,CARE ESTABLISHMENT,LD - East Locality,LD - East Cambs - Special Needs,Residential Care
Cambridgeshire County Council,17-May-18,51300109979,-2977.44,DECOY FARM,CARE ESTABLISHMENT,LD - East Locality,LD - East Cambs - Special Needs,Residential Care
Cambridgeshire County Council,17-May-18,51300110000,-2977.44,DECOY FARM,CARE ESTABLISHMENT,LD - East Locality,LD - East Cambs - Special Needs,Residential Care
Cambridgeshire County Council,17-May-18,51300109956,-2977.44,DECOY FARM,CARE ESTABLISHMENT,LD - East Locality,LD - East Cambs - Special Needs,Residential Care
Cambridgeshire County Council,17-May-18,51300109999,-2977.44,DECOY FARM,CARE ESTABLISHMENT,LD - East Locality,LD - East Cambs - Special Needs,Residential Care
Cambridgeshire County Council,17-May-18,51300110098,-2977.44,DECOY FARM,CARE ESTABLISHMENT,LD - East Locality,LD - East Cambs - Special Needs,Residential Care
Cambridgeshire County Council,17-May-18,51300110062,-2977.44,DECOY FARM,CARE ESTABLISHMENT,LD - East Locality,LD - East Cambs - Special Needs,Residential Care
Cambridgeshire County Council,17-May-18,51300109971,-2977.44,DECOY FARM,CARE ESTABLISHMENT,LD - East Locality,LD - East Cambs - Special Needs,Residential Care
Cambridgeshire County Council,17-May-18,51300109994,-2977.44,DECOY FARM,CARE ESTABLISHMENT,LD - East Locality,LD - East Cambs - Special Needs,Residential Care
Cambridgeshire County Council,17-May-18,51300110058,-2977.44,DECOY FARM,CARE ESTABLISHMENT,LD - East Locality,LD - East Cambs - Special Needs,Residential Care
Cambridgeshire County Council,17-May-18,51300110067,-2977.44,DECOY FARM,CARE ESTABLISHMENT,LD - East Locality,LD - East Cambs - Special Needs,Residential Care
Cambridgeshire County Council,17-May-18,51300110071,-2977.44,DECOY FARM,CARE ESTABLISHMENT,LD - East Locality,LD - East Cambs - Special Needs,Residential Care
Cambridgeshire County Council,17-May-18,51300109976,-2977.44,DECOY FARM,CARE ESTABLISHMENT,LD - East Locality,LD - East Cambs - Special Needs,Residential Care
Cambridgeshire County Council,17-May-18,51300110001,-2977.44,DECOY FARM,CARE ESTABLISHMENT,LD - East Locality,LD - East Cambs - Special Needs,Residential Care
Cambridgeshire County Council,17-May-18,51300110006,-2977.44,DECOY FARM,CARE ESTABLISHMENT,LD - East Locality,LD - East Cambs - Special Needs,Residential Care
Cambridgeshire County Council,17-May-18,51300110100,-2977.44,DECOY FARM,CARE ESTABLISHMENT,LD - East Locality,LD - East Cambs - Special Needs,Residential Care
Cambridgeshire County Council,17-May-18,51300110020,-2977.44,DECOY FARM,CARE ESTABLISHMENT,LD - East Locality,LD - East Cambs - Special Needs,Residential Care
Cambridgeshire County Council,17-May-18,51300110027,-2977.44,DECOY FARM,CARE ESTABLISHMENT,LD - East Locality,LD - East Cambs - Special Needs,Residential Care
Cambridgeshire County Council,17-May-18,51300109964,-2977.44,DECOY FARM,CARE ESTABLISHMENT,LD - East Locality,LD - East Cambs - Special Needs,Residential Care
Cambridgeshire County Council,17-May-18,51300110048,-2977.44,DECOY FARM,CARE ESTABLISHMENT,LD - East Locality,LD - East Cambs - Special Needs,Residential Care
Cambridgeshire County Council,17-May-18,51300110053,-2977.44,DECOY FARM,CARE ESTABLISHMENT,LD - East Locality,LD - East Cambs - Special Needs,Residential Care
Cambridgeshire County Council,17-May-18,51300110018,-2977.44,DECOY FARM,CARE ESTABLISHMENT,LD - East Locality,LD - East Cambs - Special Needs,Residential Care
Cambridgeshire County Council,17-May-18,51300109997,-2977.44,DECOY FARM,CARE ESTABLISHMENT,LD - East Locality,LD - East Cambs - Special Needs,Residential Care
Cambridgeshire County Council,17-May-18,51300109967,-2977.44,DECOY FARM,CARE ESTABLISHMENT,LD - East Locality,LD - East Cambs - Special Needs,Residential Care
Cambridgeshire County Council,17-May-18,51300109990,-2977.44,DECOY FARM,CARE ESTABLISHMENT,LD - East Locality,LD - East Cambs - Special Needs,Residential Care
Cambridgeshire County Council,17-May-18,51300109958,-2977.44,DECOY FARM,CARE ESTABLISHMENT,LD - East Locality,LD - East Cambs - Special Needs,Residential Care
Cambridgeshire County Council,17-May-18,51300110089,-2977.44,DECOY FARM,CARE ESTABLISHMENT,LD - East Locality,LD - East Cambs - Special Needs,Residential Care
Cambridgeshire County Council,17-May-18,51300110041,-2977.44,DECOY FARM,CARE ESTABLISHMENT,LD - East Locality,LD - East Cambs - Special Needs,Residential Care
Cambridgeshire County Council,17-May-18,51300109986,-2977.44,DECOY FARM,CARE ESTABLISHMENT,LD - East Locality,LD - East Cambs - Special Needs,Residential Care
Cambridgeshire County Council,17-May-18,51300110074,-2977.44,DECOY FARM,CARE ESTABLISHMENT,LD - East Locality,LD - East Cambs - Special Needs,Residential Care
Cambridgeshire County Council,17-May-18,51300110091,-2977.44,DECOY FARM,CARE ESTABLISHMENT,LD - East Locality,LD - East Cambs - Special Needs,Residential Care
Cambridgeshire County Council,17-May-18,51300110072,-2977.44,DECOY FARM,CARE ESTABLISHMENT,LD - East Locality,LD - East Cambs - Special Needs,Residential Care
Cambridgeshire County Council,17-May-18,51300110034,-2977.44,DECOY FARM,CARE ESTABLISHMENT,LD - East Locality,LD - East Cambs - Special Needs,Residential Care
Cambridgeshire County Council,17-May-18,51300110004,-2977.44,DECOY FARM,CARE ESTABLISHMENT,LD - East Locality,LD - East Cambs - Special Needs,Residential Care
Cambridgeshire County Council,17-May-18,51300109984,-2977.44,DECOY FARM,CARE ESTABLISHMENT,LD - East Locality,LD - East Cambs - Special Needs,Residential Care
Cambridgeshire County Council,17-May-18,51300109983,-2977.44,DECOY FARM,CARE ESTABLISHMENT,LD - East Locality,LD - East Cambs - Special Needs,Residential Care
Cambridgeshire County Council,17-May-18,51300110049,-2977.44,DECOY FARM,CARE ESTABLISHMENT,LD - East Locality,LD - East Cambs - Special Needs,Residential Care
Cambridgeshire County Council,17-May-18,51300110092,-2977.44,DECOY FARM,CARE ESTABLISHMENT,LD - East Locality,LD - East Cambs - Special Needs,Residential Care
Cambridgeshire County Council,17-May-18,51300110010,-2977.44,DECOY FARM,CARE ESTABLISHMENT,LD - East Locality,LD - East Cambs - Special Needs,Residential Care
Cambridgeshire County Council,17-May-18,51300110015,-2977.44,DECOY FARM,CARE ESTABLISHMENT,LD - East Locality,LD - East Cambs - Special Needs,Residential Care
Cambridgeshire County Council,17-May-18,51300110081,-2977.44,DECOY FARM,CARE ESTABLISHMENT,LD - East Locality,LD - East Cambs - Special Needs,Residential Care
Cambridgeshire County Council,17-May-18,51300110012,-2977.44,DECOY FARM,CARE ESTABLISHMENT,LD - East Locality,LD - East Cambs - Special Needs,Residential Care
Cambridgeshire County Council,17-May-18,51300110095,-2977.44,DECOY FARM,CARE ESTABLISHMENT,LD - East Locality,LD - East Cambs - Special Needs,Residential Care
Cambridgeshire County Council,17-May-18,51300110016,-2977.44,DECOY FARM,CARE ESTABLISHMENT,LD - East Locality,LD - East Cambs - Special Needs,Residential Care
Cambridgeshire County Council,17-May-18,51300110011,-2977.44,DECOY FARM,CARE ESTABLISHMENT,LD - East Locality,LD - East Cambs - Special Needs,Residential Care
Cambridgeshire County Council,17-May-18,51300110088,-2977.44,DECOY FARM,CARE ESTABLISHMENT,LD - East Locality,LD - East Cambs - Special Needs,Residential Care
Cambridgeshire County Council,17-May-18,51300109970,-2977.44,DECOY FARM,CARE ESTABLISHMENT,LD - East Locality,LD - East Cambs - Special Needs,Residential Care
Cambridgeshire County Council,17-May-18,51300110052,-2977.44,DECOY FARM,CARE ESTABLISHMENT,LD - East Locality,LD - East Cambs - Special Needs,Residential Care
Cambridgeshire County Council,17-May-18,51300110028,-2977.44,DECOY FARM,CARE ESTABLISHMENT,LD - East Locality,LD - East Cambs - Special Needs,Residential Care
Cambridgeshire County Council,17-May-18,51300109952,-2977.44,DECOY FARM,CARE ESTABLISHMENT,LD - East Locality,LD - East Cambs - Special Needs,Residential Care
Cambridgeshire County Council,17-May-18,51300109960,-2977.44,DECOY FARM,CARE ESTABLISHMENT,LD - East Locality,LD - East Cambs - Special Needs,Residential Care
Cambridgeshire County Council,17-May-18,51300109980,-2977.44,DECOY FARM,CARE ESTABLISHMENT,LD - East Locality,LD - East Cambs - Special Needs,Residential Care
Cambridgeshire County Council,17-May-18,51300110036,-2977.44,DECOY FARM,CARE ESTABLISHMENT,LD - East Locality,LD - East Cambs - Special Needs,Residential Care
Cambridgeshire County Council,17-May-18,51300109989,-2977.44,DECOY FARM,CARE ESTABLISHMENT,LD - East Locality,LD - East Cambs - Special Needs,Residential Care
Cambridgeshire County Council,06-May-18,65300002492,-2919.43,AURORA ORCHARD MANOR#1,CARE ESTABLISHMENT,LD - Young Adults Team,LD - Young Adults - Special Needs,Residential Care
Cambridgeshire County Council,13-May-18,65300003627,-2919.43,AURORA ORCHARD MANOR#1,CARE ESTABLISHMENT,LD - Young Adults Team,LD - Young Adults - Special Needs,Residential Care
Cambridgeshire County Council,06-May-18,65300000282,-2887.36,AURORA ORCHARD MANOR#1,CARE ESTABLISHMENT,LD - Young Adults Team,LD - Young Adults - Care,Residential Care
Cambridgeshire County Council,13-May-18,65300008071,-2887.36,AURORA ORCHARD MANOR#1,CARE ESTABLISHMENT,LD - Young Adults Team,LD - Young Adults - Care,Residential Care
Cambridgeshire County Council,25-May-18,51300119745,-2887.36,AURORA ORCHARD MANOR#1,CARE ESTABLISHMENT,LD - Young Adults Team,LD - Young Adults - Care,Residential Care
Cambridgeshire County Council,25-May-18,51300119713,-2887.36,AURORA ORCHARD MANOR#1,CARE ESTABLISHMENT,LD - Young Adults Team,LD - Young Adults - Care,Residential Care
Cambridgeshire County Council,25-May-18,51300119731,-2887.36,AURORA ORCHARD MANOR#1,CARE ESTABLISHMENT,LD - Young Adults Team,LD - Young Adults - Care,Residential Care
Cambridgeshire County Council,25-May-18,51300119714,-2887.36,AURORA ORCHARD MANOR#1,CARE ESTABLISHMENT,LD - Young Adults Team,LD - Young Adults - Care,Residential Care
Cambridgeshire County Council,25-May-18,51300119774,-2887.36,AURORA ORCHARD MANOR#1,CARE ESTABLISHMENT,LD - Young Adults Team,LD - Young Adults - Care,Residential Care
Cambridgeshire County Council,25-May-18,51300119730,-2887.36,AURORA ORCHARD MANOR#1,CARE ESTABLISHMENT,LD - Young Adults Team,LD - Young Adults - Care,Residential Care
Cambridgeshire County Council,25-May-18,51300119757,-2887.36,AURORA ORCHARD MANOR#1,CARE ESTABLISHMENT,LD - Young Adults Team,LD - Young Adults - Care,Residential Care
Cambridgeshire County Council,25-May-18,51300119718,-2887.36,AURORA ORCHARD MANOR#1,CARE ESTABLISHMENT,LD - Young Adults Team,LD - Young Adults - Care,Residential Care
Cambridgeshire County Council,25-May-18,51300119759,-2887.36,AURORA ORCHARD MANOR#1,CARE ESTABLISHMENT,LD - Young Adults Team,LD - Young Adults - Care,Residential Care
Cambridgeshire County Council,25-May-18,51300119741,-2887.36,AURORA ORCHARD MANOR#1,CARE ESTABLISHMENT,LD - Young Adults Team,LD - Young Adults - Care,Residential Care
Cambridgeshire County Council,25-May-18,51300119786,-2887.36,AURORA ORCHARD MANOR#1,CARE ESTABLISHMENT,LD - Young Adults Team,LD - Young Adults - Care,Residential Care
Cambridgeshire County Council,06-May-18,65300002388,-2843.57,CONQUEST CARE HOMES PETERBOROUGH#2,CARE ESTABLISHMENT,LD - Hunts Locality,LD - Huntigndonshire - Special Needs,Residential Care
Cambridgeshire County Council,13-May-18,65300001455,-2843.57,CONQUEST CARE HOMES PETERBOROUGH#2,CARE ESTABLISHMENT,LD - Hunts Locality,LD - Huntigndonshire - Special Needs,Residential Care
Cambridgeshire County Council,06-May-18,65300005353,-2802.09,HEATHERS (JEESAL RESIDENTIAL CARE),CARE ESTABLISHMENT,LD - Fenland Locality,LD - Fenland - Special Needs,Residential Care
Cambridgeshire County Council,13-May-18,65300005020,-2802.09,HEATHERS (JEESAL RESIDENTIAL CARE),CARE ESTABLISHMENT,LD - Fenland Locality,LD - Fenland - Special Needs,Residential Care
Cambridgeshire County Council,14-May-18,51300107258,-2738.09,AFFINITY TRUST#1,CARE ESTABLISHMENT,LD - Hunts Locality,LD - Huntigndonshire - Special Needs,Domiciliary Care
Cambridgeshire County Council,14-May-18,51300107263,-2738.09,AFFINITY TRUST#1,CARE ESTABLISHMENT,LD - Hunts Locality,LD - Huntigndonshire - Special Needs,Domiciliary Care
Cambridgeshire County Council,14-May-18,51300107266,-2738.09,AFFINITY TRUST#1,CARE ESTABLISHMENT,LD - Hunts Locality,LD - Huntigndonshire - Special Needs,Domiciliary Care
Cambridgeshire County Council,14-May-18,51300107262,-2738.09,AFFINITY TRUST#1,CARE ESTABLISHMENT,LD - Hunts Locality,LD - Huntigndonshire - Special Needs,Domiciliary Care
Cambridgeshire County Council,06-May-18,65300009036,-2713.08,VOYAGE#2,CARE ESTABLISHMENT,LD - Hunts Locality,LD - Huntigndonshire - Special Needs,Residential Care
Cambridgeshire County Council,13-May-18,65300002677,-2713.08,VOYAGE#2,CARE ESTABLISHMENT,LD - Hunts Locality,LD - Huntigndonshire - Special Needs,Residential Care
Cambridgeshire County Council,14-May-18,51300102436,-2702.7,AFFINITY TRUST#1,CARE ESTABLISHMENT,LD - Fenland Locality,LD - Fenland - Special Needs,Suppported Living
Cambridgeshire County Council,14-May-18,51300102441,-2702.7,AFFINITY TRUST#1,CARE ESTABLISHMENT,LD - Fenland Locality,LD - Fenland - Special Needs,Suppported Living
Cambridgeshire County Council,14-May-18,51300102435,-2702.7,AFFINITY TRUST#1,CARE ESTABLISHMENT,LD - Fenland Locality,LD - Fenland - Special Needs,Suppported Living
Cambridgeshire County Council,14-May-18,51300102438,-2702.7,AFFINITY TRUST#1,CARE ESTABLISHMENT,LD - Fenland Locality,LD - Fenland - Special Needs,Suppported Living
Cambridgeshire County Council,14-May-18,51300105581,-2700.66,AFFINITY TRUST#1,CARE ESTABLISHMENT,LD - Hunts Locality,LD - Huntigndonshire - Special Needs,Residential Care
Cambridgeshire County Council,14-May-18,51300105579,-2700.66,AFFINITY TRUST#1,CARE ESTABLISHMENT,LD - Hunts Locality,LD - Huntigndonshire - Special Needs,Residential Care
Cambridgeshire County Council,14-May-18,51300105584,-2700.66,AFFINITY TRUST#1,CARE ESTABLISHMENT,LD - Hunts Locality,LD - Huntigndonshire - Special Needs,Residential Care
Cambridgeshire County Council,14-May-18,51300105583,-2700.66,AFFINITY TRUST#1,CARE ESTABLISHMENT,LD - Hunts Locality,LD - Huntigndonshire - Special Needs,Residential Care
Cambridgeshire County Council,14-May-18,51300091074,-2552.09,DECOY FARM,CARE ESTABLISHMENT,LD - East Locality,LD - East Cambs - Special Needs,Residential Care
Cambridgeshire County Council,14-May-18,51300100912,-2552.09,DECOY FARM,CARE ESTABLISHMENT,LD - East Locality,LD - East Cambs - Special Needs,Residential Care
Cambridgeshire County Council,14-May-18,51300094358,-2552.09,DECOY FARM,CARE ESTABLISHMENT,LD - East Locality,LD - East Cambs - Special Needs,Residential Care
Cambridgeshire County Council,14-May-18,51300083330,-2552.09,DECOY FARM,CARE ESTABLISHMENT,LD - East Locality,LD - East Cambs - Special Needs,Residential Care
Cambridgeshire County Council,17-May-18,51300110045,-2552.09,DECOY FARM,CARE ESTABLISHMENT,LD - East Locality,LD - East Cambs - Special Needs,Residential Care
Cambridgeshire County Council,14-May-18,51300102256,-2466.57,AFFINITY TRUST#1,CARE ESTABLISHMENT,LD - Fenland Locality,LD - Fenland - Special Needs,Suppported Living
Cambridgeshire County Council,14-May-18,51300102254,-2466.57,AFFINITY TRUST#1,CARE ESTABLISHMENT,LD - Fenland Locality,LD - Fenland - Special Needs,Suppported Living
Cambridgeshire County Council,14-May-18,51300102257,-2466.57,AFFINITY TRUST#1,CARE ESTABLISHMENT,LD - Fenland Locality,LD - Fenland - Special Needs,Suppported Living
Cambridgeshire County Council,14-May-18,51300102258,-2466.57,AFFINITY TRUST#1,CARE ESTABLISHMENT,LD - Fenland Locality,LD - Fenland - Special Needs,Suppported Living
Cambridgeshire County Council,06-May-18,65300009077,-2371.61,RAPKYNS CARE CENTRE,CARE ESTABLISHMENT,LD - Hunts Locality,LD - Huntigndonshire - Special Needs,Nursing Care
Cambridgeshire County Council,13-May-18,65300007215,-2371.61,RAPKYNS CARE CENTRE,CARE ESTABLISHMENT,LD - Hunts Locality,LD - Huntigndonshire - Special Needs,Nursing Care
Cambridgeshire County Council,06-May-18,65300005288,-2345.39,CONQUEST CARE HOMES PETERBOROUGH#2,CARE ESTABLISHMENT,LD - Hunts Locality,LD - Huntigndonshire - Special Needs,Residential Care
Cambridgeshire County Council,13-May-18,65300008673,-2345.39,CONQUEST CARE HOMES PETERBOROUGH#2,CARE ESTABLISHMENT,LD - Hunts Locality,LD - Huntigndonshire - Special Needs,Residential Care
Cambridgeshire County Council,25-May-18,51300113053,-2337.29,DIMENSIONS (UK) LTD#1,CARE ESTABLISHMENT,LD - South Locality,LD - South Cambs - Special Needs,Suppported Living
Cambridgeshire County Council,25-May-18,51300097346,-2337.29,DIMENSIONS (UK) LTD#1,CARE ESTABLISHMENT,LD - South Locality,LD - South Cambs - Special Needs,Suppported Living
Cambridgeshire County Council,25-May-18,51300113052,-2337.29,DIMENSIONS (UK) LTD#1,CARE ESTABLISHMENT,LD - South Locality,LD - South Cambs - Special Needs,Suppported Living
Cambridgeshire County Council,25-May-18,51300105365,-2337.29,DIMENSIONS (UK) LTD#1,CARE ESTABLISHMENT,LD - South Locality,LD - South Cambs - Special Needs,Suppported Living
Cambridgeshire County Council,25-May-18,51300134576,-2337.29,DIMENSIONS (UK) LTD#1,CARE ESTABLISHMENT,LD - South Locality,LD - South Cambs - Special Needs,Suppported Living
Cambridgeshire County Council,25-May-18,51300105363,-2337.29,DIMENSIONS (UK) LTD#1,CARE ESTABLISHMENT,LD - South Locality,LD - South Cambs - Special Needs,Suppported Living
Cambridgeshire County Council,25-May-18,51300097348,-2337.29,DIMENSIONS (UK) LTD#1,CARE ESTABLISHMENT,LD - South Locality,LD - South Cambs - Special Needs,Suppported Living
Cambridgeshire County Council,25-May-18,51300134574,-2337.29,DIMENSIONS (UK) LTD#1,CARE ESTABLISHMENT,LD - South Locality,LD - South Cambs - Special Needs,Suppported Living
Cambridgeshire County Council,25-May-18,51300134594,-2337.29,DIMENSIONS (UK) LTD#1,CARE ESTABLISHMENT,LD - South Locality,LD - South Cambs - Special Needs,Suppported Living
Cambridgeshire County Council,25-May-18,51300134592,-2337.29,DIMENSIONS (UK) LTD#1,CARE ESTABLISHMENT,LD - South Locality,LD - South Cambs - Special Needs,Suppported Living
Cambridgeshire County Council,25-May-18,51300097362,-2337.29,DIMENSIONS (UK) LTD#1,CARE ESTABLISHMENT,LD - South Locality,LD - South Cambs - Special Needs,Suppported Living
Cambridgeshire County Council,25-May-18,51300105367,-2337.29,DIMENSIONS (UK) LTD#1,CARE ESTABLISHMENT,LD - City Locality,LD - City - Special Needs,Suppported Living
Cambridgeshire County Council,25-May-18,51300113038,-2337.29,DIMENSIONS (UK) LTD#1,CARE ESTABLISHMENT,LD - City Locality,LD - City - Special Needs,Suppported Living
Cambridgeshire County Council,25-May-18,51300097350,-2337.29,DIMENSIONS (UK) LTD#1,CARE ESTABLISHMENT,LD - City Locality,LD - City - Special Needs,Suppported Living
Cambridgeshire County Council,25-May-18,51300113042,-2337.29,DIMENSIONS (UK) LTD#1,CARE ESTABLISHMENT,LD - City Locality,LD - City - Special Needs,Suppported Living
Cambridgeshire County Council,25-May-18,51300097341,-2337.29,DIMENSIONS (UK) LTD#1,CARE ESTABLISHMENT,LD - City Locality,LD - City - Special Needs,Suppported Living
Cambridgeshire County Council,25-May-18,51300105362,-2337.29,DIMENSIONS (UK) LTD#1,CARE ESTABLISHMENT,LD - City Locality,LD - City - Special Needs,Suppported Living
Cambridgeshire County Council,25-May-18,51300105356,-2337.29,DIMENSIONS (UK) LTD#1,CARE ESTABLISHMENT,LD - City Locality,LD - City - Special Needs,Suppported Living
Cambridgeshire County Council,25-May-18,51300134572,-2337.29,DIMENSIONS (UK) LTD#1,CARE ESTABLISHMENT,LD - City Locality,LD - City - Special Needs,Suppported Living
Cambridgeshire County Council,25-May-18,51300134604,-2337.29,DIMENSIONS (UK) LTD#1,CARE ESTABLISHMENT,LD - City Locality,LD - City - Special Needs,Suppported Living
Cambridgeshire County Council,25-May-18,51300113041,-2337.29,DIMENSIONS (UK) LTD#1,CARE ESTABLISHMENT,LD - City Locality,LD - City - Special Needs,Suppported Living
Cambridgeshire County Council,25-May-18,51300105359,-2337.29,DIMENSIONS (UK) LTD#1,CARE ESTABLISHMENT,LD - City Locality,LD - City - Special Needs,Suppported Living
Cambridgeshire County Council,25-May-18,51300105352,-2337.29,DIMENSIONS (UK) LTD#1,CARE ESTABLISHMENT,LD - City Locality,LD - City - Special Needs,Suppported Living
Cambridgeshire County Council,25-May-18,51300113054,-2337.29,DIMENSIONS (UK) LTD#1,CARE ESTABLISHMENT,LD - City Locality,LD - City - Special Needs,Suppported Living
Cambridgeshire County Council,25-May-18,51300113043,-2337.29,DIMENSIONS (UK) LTD#1,CARE ESTABLISHMENT,LD - City Locality,LD - City - Special Needs,Suppported Living
Cambridgeshire County Council,25-May-18,51300105351,-2337.29,DIMENSIONS (UK) LTD#1,CARE ESTABLISHMENT,LD - City Locality,LD - City - Special Needs,Suppported Living
Cambridgeshire County Council,25-May-18,51300134584,-2337.29,DIMENSIONS (UK) LTD#1,CARE ESTABLISHMENT,LD - City Locality,LD - City - Special Needs,Suppported Living
Cambridgeshire County Council,25-May-18,51300097360,-2337.29,DIMENSIONS (UK) LTD#1,CARE ESTABLISHMENT,LD - City Locality,LD - City - Special Needs,Suppported Living
Cambridgeshire County Council,25-May-18,51300113051,-2337.29,DIMENSIONS (UK) LTD#1,CARE ESTABLISHMENT,LD - City Locality,LD - City - Special Needs,Suppported Living
Cambridgeshire County Council,25-May-18,51300097358,-2337.29,DIMENSIONS (UK) LTD#1,CARE ESTABLISHMENT,LD - City Locality,LD - City - Special Needs,Suppported Living
Cambridgeshire County Council,25-May-18,51300097347,-2337.29,DIMENSIONS (UK) LTD#1,CARE ESTABLISHMENT,LD - City Locality,LD - City - Special Needs,Suppported Living
Cambridgeshire County Council,25-May-18,51300134603,-2337.29,DIMENSIONS (UK) LTD#1,CARE ESTABLISHMENT,LD - City Locality,LD - City - Special Needs,Suppported Living
Cambridgeshire County Council,06-May-18,65300004475,-2321.81,AURORA ORCHARD MANOR#1,CARE ESTABLISHMENT,LD - South Locality,LD - South Cambs - Care,Residential Care
Cambridgeshire County Council,13-May-18,65300000114,-2321.81,AURORA ORCHARD MANOR#1,CARE ESTABLISHMENT,LD - South Locality,LD - South Cambs - Care,Residential Care
Cambridgeshire County Council,03-May-18,51300015755,-2305.92,COSTAIN INTEGRATED TECHNOLOGY SOLUTIONS LIMITED,COMPANY,Control Accounts,Control Accounts - Payables,Migration Only - Marked as Do Not Use
Cambridgeshire County Council,06-May-18,65300005589,-2290.7,SENSE EAST,CARE ESTABLISHMENT,LD - South Locality,LD - South Cambs - Special Needs,Residential Care
Cambridgeshire County Council,13-May-18,65300003744,-2290.7,SENSE EAST,CARE ESTABLISHMENT,LD - South Locality,LD - South Cambs - Special Needs,Residential Care
Cambridgeshire County Council,06-May-18,51300043068,-2286.28,Redacted Personal Data ,SERVICE USER,LD - East Locality,LD - East Cambs - Special Needs,Direct Payments
Cambridgeshire County Council,13-May-18,51300043087,-2286.28,Redacted Personal Data ,SERVICE USER,LD - East Locality,LD - East Cambs - Special Needs,Direct Payments
Cambridgeshire County Council,20-May-18,51300043059,-2286.28,Redacted Personal Data ,SERVICE USER,LD - East Locality,LD - East Cambs - Special Needs,Direct Payments
Cambridgeshire County Council,27-May-18,51300043078,-2286.28,Redacted Personal Data ,SERVICE USER,LD - East Locality,LD - East Cambs - Special Needs,Direct Payments
Cambridgeshire County Council,06-May-18,65300000227,-2268.47,OAKLANDS,CARE ESTABLISHMENT,LD - Hunts Locality,LD - Huntigndonshire - Special Needs,Residential Care
Cambridgeshire County Council,13-May-18,65300004994,-2268.47,OAKLANDS,CARE ESTABLISHMENT,LD - Hunts Locality,LD - Huntigndonshire - Special Needs,Residential Care
Cambridgeshire County Council,04-May-18,51300094862,-2267.52,VOYAGE (LICHFIELD),CARE ESTABLISHMENT,LD - Fenland Locality,LD - Fenland - Special Needs,Residential Care
Cambridgeshire County Council,04-May-18,51300094867,-2267.52,VOYAGE (LICHFIELD),CARE ESTABLISHMENT,LD - Fenland Locality,LD - Fenland - Special Needs,Residential Care
Cambridgeshire County Council,04-May-18,51300094860,-2267.52,VOYAGE (LICHFIELD),CARE ESTABLISHMENT,LD - Fenland Locality,LD - Fenland - Special Needs,Residential Care
Cambridgeshire County Council,04-May-18,51300094874,-2267.52,VOYAGE (LICHFIELD),CARE ESTABLISHMENT,LD - Fenland Locality,LD - Fenland - Special Needs,Residential Care
Cambridgeshire County Council,06-May-18,65300005643,-2267.52,VOYAGE (LICHFIELD),CARE ESTABLISHMENT,LD - Fenland Locality,LD - Fenland - Special Needs,Residential Care
Cambridgeshire County Council,13-May-18,65300001176,-2267.52,VOYAGE (LICHFIELD),CARE ESTABLISHMENT,LD - Fenland Locality,LD - Fenland - Special Needs,Residential Care
Cambridgeshire County Council,06-May-18,65300000312,-2264.5,GRETTON HOMES,CARE ESTABLISHMENT,LD - South Locality,LD - South Cambs - Special Needs,Residential Care
Cambridgeshire County Council,13-May-18,65300002992,-2264.5,GRETTON HOMES,CARE ESTABLISHMENT,LD - South Locality,LD - South Cambs - Special Needs,Residential Care
Cambridgeshire County Council,17-May-18,51300108259,-2247.3,Redacted Personal Data ,INDIVIDUAL,OP - City & South Locality,Older People - City & South,Client Care Contributions
Cambridgeshire County Council,14-May-18,51300101572,-2241.54,AFFINITY TRUST#1,CARE ESTABLISHMENT,LD - Hunts Locality,LD - Huntigndonshire - Special Needs,Suppported Living
Cambridgeshire County Council,14-May-18,51300101563,-2241.54,AFFINITY TRUST#1,CARE ESTABLISHMENT,LD - Hunts Locality,LD - Huntigndonshire - Special Needs,Suppported Living
Cambridgeshire County Council,14-May-18,51300101562,-2241.54,AFFINITY TRUST#1,CARE ESTABLISHMENT,LD - Hunts Locality,LD - Huntigndonshire - Special Needs,Suppported Living
Cambridgeshire County Council,14-May-18,51300101571,-2241.54,AFFINITY TRUST#1,CARE ESTABLISHMENT,LD - Hunts Locality,LD - Huntigndonshire - Special Needs,Suppported Living
Cambridgeshire County Council,06-May-18,65300008528,-2231.48,NEWTON CHINNECK LTD T/A ST GEORGES GLATTON HALL,CARE ESTABLISHMENT,OP - Hunts Blocks,Hunts - Long term blocks,Residential Care
Cambridgeshire County Council,13-May-18,65300007729,-2231.48,NEWTON CHINNECK LTD T/A ST GEORGES GLATTON HALL,CARE ESTABLISHMENT,OP - Hunts Blocks,Hunts - Long term blocks,Residential Care
Cambridgeshire County Council,23-May-18,51300109425,-2226,GD GREEN,SOLETRADER,County Farms,County Farms,County Farms Maintenance unplanned
Cambridgeshire County Council,09-May-18,51300099561,-2217.67,INTEGRATED SERVICES PROGRAMME (ISP),CARE ESTABLISHMENT,LAC Placements,Placements - Social Care,Agency Placements - In County
Cambridgeshire County Council,09-May-18,51300099557,-2217.67,INTEGRATED SERVICES PROGRAMME (ISP),CARE ESTABLISHMENT,LAC Placements,Placements - Social Care,Agency Placements - In County
Cambridgeshire County Council,14-May-18,51300103759,-2185.93,AFFINITY TRUST#1,CARE ESTABLISHMENT,LD - Fenland Locality,LD - Fenland - Special Needs,Domiciliary Care
Cambridgeshire County Council,14-May-18,51300103773,-2185.93,AFFINITY TRUST#1,CARE ESTABLISHMENT,LD - Fenland Locality,LD - Fenland - Special Needs,Domiciliary Care
Cambridgeshire County Council,14-May-18,51300103762,-2185.93,AFFINITY TRUST#1,CARE ESTABLISHMENT,LD - Fenland Locality,LD - Fenland - Special Needs,Domiciliary Care
Cambridgeshire County Council,14-May-18,51300103772,-2185.93,AFFINITY TRUST#1,CARE ESTABLISHMENT,LD - Fenland Locality,LD - Fenland - Special Needs,Domiciliary Care
Cambridgeshire County Council,06-May-18,65300004459,-2146.52,ALDERTON HOUSE,CARE ESTABLISHMENT,LD - Young Adults Team,LD - Young Adults - Special Needs,Residential Care
Cambridgeshire County Council,13-May-18,65300002994,-2146.52,ALDERTON HOUSE,CARE ESTABLISHMENT,LD - Young Adults Team,LD - Young Adults - Special Needs,Residential Care
Cambridgeshire County Council,14-May-18,51300083317,-2126.74,DECOY FARM,CARE ESTABLISHMENT,LD - East Locality,LD - East Cambs - Special Needs,Residential Care
Cambridgeshire County Council,14-May-18,51300098084,-2120.5,CARETECH COMMUNITY SERVICES#1,CARE ESTABLISHMENT,LD - Hunts Locality,LD - Huntigndonshire - Care,Residential Care
Cambridgeshire County Council,14-May-18,51300098081,-2120.5,CARETECH COMMUNITY SERVICES#1,CARE ESTABLISHMENT,LD - Hunts Locality,LD - Huntigndonshire - Care,Residential Care
Cambridgeshire County Council,14-May-18,51300098083,-2120.5,CARETECH COMMUNITY SERVICES#1,CARE ESTABLISHMENT,LD - Hunts Locality,LD - Huntigndonshire - Care,Residential Care
Cambridgeshire County Council,14-May-18,51300098095,-2120.5,CARETECH COMMUNITY SERVICES#1,CARE ESTABLISHMENT,LD - Hunts Locality,LD - Huntigndonshire - Care,Residential Care
Cambridgeshire County Council,14-May-18,51300098092,-2120.5,CARETECH COMMUNITY SERVICES#1,CARE ESTABLISHMENT,LD - Hunts Locality,LD - Huntigndonshire - Care,Residential Care
Cambridgeshire County Council,14-May-18,51300098094,-2120.5,CARETECH COMMUNITY SERVICES#1,CARE ESTABLISHMENT,LD - Hunts Locality,LD - Huntigndonshire - Care,Residential Care
Cambridgeshire County Council,14-May-18,51300098091,-2120.5,CARETECH COMMUNITY SERVICES#1,CARE ESTABLISHMENT,LD - Hunts Locality,LD - Huntigndonshire - Care,Residential Care
Cambridgeshire County Council,14-May-18,51300098079,-2120.5,CARETECH COMMUNITY SERVICES#1,CARE ESTABLISHMENT,LD - Hunts Locality,LD - Huntigndonshire - Care,Residential Care
Cambridgeshire County Council,17-May-18,51300110116,-2108.88,HC-ONE,CARE ESTABLISHMENT,OP - Hunts Blocks,Hunts - Long term blocks,Nursing Care
Cambridgeshire County Council,06-May-18,65300000387,-2098.44,VOYAGE#2,CARE ESTABLISHMENT,LD - South Locality,LD - South Cambs - Care,Residential Care
Cambridgeshire County Council,13-May-18,65300003808,-2098.44,VOYAGE#2,CARE ESTABLISHMENT,LD - South Locality,LD - South Cambs - Care,Residential Care
Cambridgeshire County Council,06-May-18,65300003131,-2088.67,AN DARACH HOUSE ( KISIMUL GROUP LTD),CARE ESTABLISHMENT,LD - City Locality,LD - City - Special Needs,Residential Care
Cambridgeshire County Council,13-May-18,65300006713,-2088.67,AN DARACH HOUSE ( KISIMUL GROUP LTD),CARE ESTABLISHMENT,LD - City Locality,LD - City - Special Needs,Residential Care
Cambridgeshire County Council,31-May-18,51300153608,-2071.99,Redacted Personal Data ,PARENT/GUARDIAN,LD - Hunts Locality,LD - Huntigndonshire - Special Needs,Direct Payments
Cambridgeshire County Council,31-May-18,51300153617,-2071.99,Redacted Personal Data ,PARENT/GUARDIAN,LD - Hunts Locality,LD - Huntigndonshire - Special Needs,Direct Payments
Cambridgeshire County Council,31-May-18,51300153622,-2071.99,Redacted Personal Data ,PARENT/GUARDIAN,LD - Hunts Locality,LD - Huntigndonshire - Special Needs,Direct Payments
Cambridgeshire County Council,31-May-18,51300153619,-2071.99,Redacted Personal Data ,PARENT/GUARDIAN,LD - Hunts Locality,LD - Huntigndonshire - Special Needs,Direct Payments
Cambridgeshire County Council,31-May-18,51300153621,-2071.99,Redacted Personal Data ,PARENT/GUARDIAN,LD - Hunts Locality,LD - Huntigndonshire - Special Needs,Direct Payments
Cambridgeshire County Council,31-May-18,51300153610,-2071.99,Redacted Personal Data ,PARENT/GUARDIAN,LD - Hunts Locality,LD - Huntigndonshire - Special Needs,Direct Payments
Cambridgeshire County Council,31-May-18,51300153614,-2071.99,Redacted Personal Data ,PARENT/GUARDIAN,LD - Hunts Locality,LD - Huntigndonshire - Special Needs,Direct Payments
Cambridgeshire County Council,06-May-18,65300003860,-2004.26,VOYAGE#2,CARE ESTABLISHMENT,LD - South Locality,LD - South Cambs - Care,Residential Care
Cambridgeshire County Council,13-May-18,65300004104,-2004.26,VOYAGE#2,CARE ESTABLISHMENT,LD - South Locality,LD - South Cambs - Care,Residential Care
Cambridgeshire County Council,06-May-18,65300009178,-1996.94,CONQUEST CARE HOMES PETERBOROUGH#2,CARE ESTABLISHMENT,LD - Hunts Locality,LD - Huntigndonshire - Special Needs,Residential Care
Cambridgeshire County Council,13-May-18,65300007653,-1996.94,CONQUEST CARE HOMES PETERBOROUGH#2,CARE ESTABLISHMENT,LD - Hunts Locality,LD - Huntigndonshire - Special Needs,Residential Care
Cambridgeshire County Council,14-May-18,51300101818,-1985.27,AFFINITY TRUST#1,CARE ESTABLISHMENT,LD - Fenland Locality,LD - Fenland - Special Needs,Suppported Living
Cambridgeshire County Council,14-May-18,51300101813,-1985.27,AFFINITY TRUST#1,CARE ESTABLISHMENT,LD - Fenland Locality,LD - Fenland - Special Needs,Suppported Living
Cambridgeshire County Council,14-May-18,51300101812,-1985.27,AFFINITY TRUST#1,CARE ESTABLISHMENT,LD - Fenland Locality,LD - Fenland - Special Needs,Suppported Living
Cambridgeshire County Council,14-May-18,51300101816,-1985.27,AFFINITY TRUST#1,CARE ESTABLISHMENT,LD - Fenland Locality,LD - Fenland - Special Needs,Suppported Living
Cambridgeshire County Council,25-May-18,51300094636,-1955.49,UNIT 2B (DIMENSIONS),CARE ESTABLISHMENT,LD - Fenland Locality,LD - Fenland - Special Needs,Domiciliary Care
Cambridgeshire County Council,14-May-18,51300102550,-1950.58,AFFINITY TRUST#1,CARE ESTABLISHMENT,LD - Hunts Locality,LD - Huntigndonshire - Special Needs,Suppported Living
Cambridgeshire County Council,14-May-18,51300102547,-1950.58,AFFINITY TRUST#1,CARE ESTABLISHMENT,LD - Hunts Locality,LD - Huntigndonshire - Special Needs,Suppported Living
Cambridgeshire County Council,14-May-18,51300102546,-1950.58,AFFINITY TRUST#1,CARE ESTABLISHMENT,LD - Hunts Locality,LD - Huntigndonshire - Special Needs,Suppported Living
Cambridgeshire County Council,14-May-18,51300102552,-1950.58,AFFINITY TRUST#1,CARE ESTABLISHMENT,LD - Hunts Locality,LD - Huntigndonshire - Special Needs,Suppported Living
Cambridgeshire County Council,04-May-18,51300094871,-1943.59,VOYAGE (LICHFIELD),CARE ESTABLISHMENT,LD - Fenland Locality,LD - Fenland - Special Needs,Residential Care
Cambridgeshire County Council,14-May-18,51300103423,-1912.01,AFFINITY TRUST#1,CARE ESTABLISHMENT,LD - Fenland Locality,LD - Fenland - Special Needs,Domiciliary Care
Cambridgeshire County Council,14-May-18,51300103443,-1912.01,AFFINITY TRUST#1,CARE ESTABLISHMENT,LD - Fenland Locality,LD - Fenland - Special Needs,Domiciliary Care
Cambridgeshire County Council,14-May-18,51300103421,-1912.01,AFFINITY TRUST#1,CARE ESTABLISHMENT,LD - Fenland Locality,LD - Fenland - Special Needs,Domiciliary Care
Cambridgeshire County Council,14-May-18,51300103445,-1912.01,AFFINITY TRUST#1,CARE ESTABLISHMENT,LD - Fenland Locality,LD - Fenland - Special Needs,Domiciliary Care
Cambridgeshire County Council,06-May-18,65300006310,-1902.33,GRIFFIN LODGE,CARE ESTABLISHMENT,LD - South Locality,LD - South Cambs - Special Needs,Residential Care
Cambridgeshire County Council,13-May-18,65300002810,-1902.33,GRIFFIN LODGE,CARE ESTABLISHMENT,LD - South Locality,LD - South Cambs - Special Needs,Residential Care
Cambridgeshire County Council,14-May-18,51300107613,-1880.39,AFFINITY TRUST (WIMBLINGTON),CARE ESTABLISHMENT,LD - Fenland Locality,LD - Fenland - Special Needs,Suppported Living
Cambridgeshire County Council,14-May-18,51300107612,-1880.39,AFFINITY TRUST (WIMBLINGTON),CARE ESTABLISHMENT,LD - Fenland Locality,LD - Fenland - Special Needs,Suppported Living
Cambridgeshire County Council,14-May-18,51300107601,-1880.39,AFFINITY TRUST (WIMBLINGTON),CARE ESTABLISHMENT,LD - Fenland Locality,LD - Fenland - Special Needs,Suppported Living
Cambridgeshire County Council,14-May-18,51300107609,-1880.39,AFFINITY TRUST (WIMBLINGTON),CARE ESTABLISHMENT,LD - Fenland Locality,LD - Fenland - Special Needs,Suppported Living
Cambridgeshire County Council,06-May-18,65300004258,-1868.51,CARETECH COMMUNITY SERVICES LTD (161 WOOTTON RD)#1,CARE ESTABLISHMENT,LD - Hunts Locality,LD - Huntigndonshire - Special Needs,Residential Care
Cambridgeshire County Council,13-May-18,65300006420,-1868.51,CARETECH COMMUNITY SERVICES LTD (161 WOOTTON RD)#1,CARE ESTABLISHMENT,LD - Hunts Locality,LD - Huntigndonshire - Special Needs,Residential Care
Cambridgeshire County Council,06-May-18,65300005130,-1864.15,LANSDOWNE CARE SERVICES,CARE ESTABLISHMENT,LD - Hunts Locality,LD - Huntigndonshire - Special Needs,Residential Care
Cambridgeshire County Council,13-May-18,65300008258,-1864.15,LANSDOWNE CARE SERVICES,CARE ESTABLISHMENT,LD - Hunts Locality,LD - Huntigndonshire - Special Needs,Residential Care
Cambridgeshire County Council,14-May-18,51300104150,-1863.14,AFFINITY TRUST#1,CARE ESTABLISHMENT,LD - Fenland Locality,LD - Fenland - Special Needs,Domiciliary Care
Cambridgeshire County Council,14-May-18,51300104151,-1863.14,AFFINITY TRUST#1,CARE ESTABLISHMENT,LD - Fenland Locality,LD - Fenland - Special Needs,Domiciliary Care
Cambridgeshire County Council,14-May-18,51300104152,-1863.14,AFFINITY TRUST#1,CARE ESTABLISHMENT,LD - Fenland Locality,LD - Fenland - Special Needs,Domiciliary Care
Cambridgeshire County Council,14-May-18,51300104146,-1863.14,AFFINITY TRUST#1,CARE ESTABLISHMENT,LD - Fenland Locality,LD - Fenland - Special Needs,Domiciliary Care
Cambridgeshire County Council,14-May-18,51300106592,-1860.46,AFFINITY TRUST#1,CARE ESTABLISHMENT,LD - Fenland Locality,LD - Fenland - Special Needs,Domiciliary Care
Cambridgeshire County Council,14-May-18,51300106610,-1860.46,AFFINITY TRUST#1,CARE ESTABLISHMENT,LD - Fenland Locality,LD - Fenland - Special Needs,Domiciliary Care
Cambridgeshire County Council,14-May-18,51300106617,-1860.46,AFFINITY TRUST#1,CARE ESTABLISHMENT,LD - Fenland Locality,LD - Fenland - Special Needs,Domiciliary Care
Cambridgeshire County Council,14-May-18,51300106600,-1860.46,AFFINITY TRUST#1,CARE ESTABLISHMENT,LD - Fenland Locality,LD - Fenland - Special Needs,Domiciliary Care
Cambridgeshire County Council,06-May-18,65300007586,-1826.68,VOYAGE#2,CARE ESTABLISHMENT,LD - South Locality,LD - South Cambs - Special Needs,Residential Care
Cambridgeshire County Council,13-May-18,65300003329,-1826.68,VOYAGE#2,CARE ESTABLISHMENT,LD - South Locality,LD - South Cambs - Special Needs,Residential Care
Cambridgeshire County Council,14-May-18,51300102247,-1823.47,AFFINITY TRUST#1,CARE ESTABLISHMENT,LD - Fenland Locality,LD - Fenland - Special Needs,Domiciliary Care
Cambridgeshire County Council,14-May-18,51300102239,-1823.47,AFFINITY TRUST#1,CARE ESTABLISHMENT,LD - Fenland Locality,LD - Fenland - Special Needs,Domiciliary Care
Cambridgeshire County Council,14-May-18,51300102242,-1823.47,AFFINITY TRUST#1,CARE ESTABLISHMENT,LD - Fenland Locality,LD - Fenland - Special Needs,Domiciliary Care
Cambridgeshire County Council,14-May-18,51300102248,-1823.47,AFFINITY TRUST#1,CARE ESTABLISHMENT,LD - Fenland Locality,LD - Fenland - Special Needs,Domiciliary Care
Cambridgeshire County Council,04-May-18,51300094715,-1798.94,THERA EAST ANGLIA#2,CARE ESTABLISHMENT,LD - East Locality,LD - East Cambs - Special Needs,Suppported Living
Cambridgeshire County Council,06-May-18,65300002528,-1789.19,REDMOND HOUSE (VOYAGE),CARE ESTABLISHMENT,LD - City Locality,LD - City - Care,Residential Care
Cambridgeshire County Council,13-May-18,65300007478,-1789.19,REDMOND HOUSE (VOYAGE),CARE ESTABLISHMENT,LD - City Locality,LD - City - Care,Residential Care
Cambridgeshire County Council,06-May-18,65300005851,-1780.17,CONQUEST CARE HOMES PETERBOROUGH#2,CARE ESTABLISHMENT,LD - Fenland Locality,LD - Fenland - Special Needs,Residential Care
Cambridgeshire County Council,13-May-18,65300007490,-1780.17,CONQUEST CARE HOMES PETERBOROUGH#2,CARE ESTABLISHMENT,LD - Fenland Locality,LD - Fenland - Special Needs,Residential Care
Cambridgeshire County Council,06-May-18,65300005117,-1779.75,THE BRAMBLES (SOHAM) LTD,CARE ESTABLISHMENT,LD - East Locality,LD - East Cambs - Special Needs,Residential Care
Cambridgeshire County Council,13-May-18,65300007941,-1779.75,THE BRAMBLES (SOHAM) LTD,CARE ESTABLISHMENT,LD - East Locality,LD - East Cambs - Special Needs,Residential Care
Cambridgeshire County Council,06-May-18,65300000048,-1778.47,BROOKDALE HEALTHCARE LIMITED#1,CARE ESTABLISHMENT,LD - Hunts Locality,LD - Huntigndonshire - Special Needs,Residential Care
Cambridgeshire County Council,13-May-18,65300001228,-1778.47,BROOKDALE HEALTHCARE LIMITED#1,CARE ESTABLISHMENT,LD - Hunts Locality,LD - Huntigndonshire - Special Needs,Residential Care
Cambridgeshire County Council,14-May-18,51300103228,-1765.6,AFFINITY TRUST#1,CARE ESTABLISHMENT,LD - Fenland Locality,LD - Fenland - Special Needs,Domiciliary Care
Cambridgeshire County Council,14-May-18,51300103227,-1765.6,AFFINITY TRUST#1,CARE ESTABLISHMENT,LD - Fenland Locality,LD - Fenland - Special Needs,Domiciliary Care
Cambridgeshire County Council,14-May-18,51300103230,-1765.6,AFFINITY TRUST#1,CARE ESTABLISHMENT,LD - Fenland Locality,LD - Fenland - Special Needs,Domiciliary Care
Cambridgeshire County Council,14-May-18,51300103229,-1765.6,AFFINITY TRUST#1,CARE ESTABLISHMENT,LD - Fenland Locality,LD - Fenland - Special Needs,Domiciliary Care
Cambridgeshire County Council,14-May-18,51300105806,-1730.7,AFFINITY TRUST#1,CARE ESTABLISHMENT,LD - Fenland Locality,LD - Fenland - Special Needs,Domiciliary Care
Cambridgeshire County Council,14-May-18,51300105803,-1730.7,AFFINITY TRUST#1,CARE ESTABLISHMENT,LD - Fenland Locality,LD - Fenland - Special Needs,Domiciliary Care
Cambridgeshire County Council,14-May-18,51300105800,-1730.7,AFFINITY TRUST#1,CARE ESTABLISHMENT,LD - Fenland Locality,LD - Fenland - Special Needs,Domiciliary Care
Cambridgeshire County Council,14-May-18,51300105792,-1730.7,AFFINITY TRUST#1,CARE ESTABLISHMENT,LD - Fenland Locality,LD - Fenland - Special Needs,Domiciliary Care
Cambridgeshire County Council,14-May-18,51300087190,-1712.76,CONQUEST CARE HOMES PETERBOROUGH#2,CARE ESTABLISHMENT,LD - Fenland Locality,LD - Fenland - Special Needs,Residential Care
Cambridgeshire County Council,14-May-18,51300087188,-1712.76,CONQUEST CARE HOMES PETERBOROUGH#2,CARE ESTABLISHMENT,LD - Fenland Locality,LD - Fenland - Special Needs,Residential Care
Cambridgeshire County Council,14-May-18,51300087187,-1712.76,CONQUEST CARE HOMES PETERBOROUGH#2,CARE ESTABLISHMENT,LD - Fenland Locality,LD - Fenland - Special Needs,Residential Care
Cambridgeshire County Council,14-May-18,51300087191,-1712.76,CONQUEST CARE HOMES PETERBOROUGH#2,CARE ESTABLISHMENT,LD - Fenland Locality,LD - Fenland - Special Needs,Residential Care
Cambridgeshire County Council,14-May-18,51300087196,-1712.76,CONQUEST CARE HOMES PETERBOROUGH#2,CARE ESTABLISHMENT,LD - Fenland Locality,LD - Fenland - Special Needs,Residential Care
Cambridgeshire County Council,14-May-18,51300087205,-1712.76,CONQUEST CARE HOMES PETERBOROUGH#2,CARE ESTABLISHMENT,LD - Fenland Locality,LD - Fenland - Special Needs,Residential Care
Cambridgeshire County Council,14-May-18,51300087199,-1712.76,CONQUEST CARE HOMES PETERBOROUGH#2,CARE ESTABLISHMENT,LD - Fenland Locality,LD - Fenland - Special Needs,Residential Care
Cambridgeshire County Council,14-May-18,51300087201,-1712.76,CONQUEST CARE HOMES PETERBOROUGH#2,CARE ESTABLISHMENT,LD - Fenland Locality,LD - Fenland - Special Needs,Residential Care
Cambridgeshire County Council,04-May-18,51300096557,-1711.36,AFFINITY TRUST#1,CARE ESTABLISHMENT,LD - Fenland Locality,LD - Fenland - Special Needs,Suppported Living
Cambridgeshire County Council,04-May-18,51300096564,-1711.36,AFFINITY TRUST#1,CARE ESTABLISHMENT,LD - Fenland Locality,LD - Fenland - Care,Suppported Living
Cambridgeshire County Council,04-May-18,51300096580,-1711.36,AFFINITY TRUST#1,CARE ESTABLISHMENT,LD - Fenland Locality,LD - Fenland - Care,Suppported Living
Cambridgeshire County Council,04-May-18,51300096563,-1711.36,AFFINITY TRUST#1,CARE ESTABLISHMENT,LD - Fenland Locality,LD - Fenland - Care,Suppported Living
Cambridgeshire County Council,04-May-18,51300096571,-1711.36,AFFINITY TRUST#1,CARE ESTABLISHMENT,LD - Fenland Locality,LD - Fenland - Care,Suppported Living
Cambridgeshire County Council,04-May-18,51300096562,-1711.36,AFFINITY TRUST#1,CARE ESTABLISHMENT,LD - Fenland Locality,LD - Fenland - Special Needs,Suppported Living
Cambridgeshire County Council,04-May-18,51300096586,-1711.36,AFFINITY TRUST#1,CARE ESTABLISHMENT,LD - Fenland Locality,LD - Fenland - Special Needs,Suppported Living
Cambridgeshire County Council,04-May-18,51300096573,-1711.36,AFFINITY TRUST#1,CARE ESTABLISHMENT,LD - Fenland Locality,LD - Fenland - Special Needs,Suppported Living
Cambridgeshire County Council,04-May-18,51300096582,-1711.36,AFFINITY TRUST#1,CARE ESTABLISHMENT,LD - Fenland Locality,LD - Fenland - Special Needs,Suppported Living
Cambridgeshire County Council,04-May-18,51300096578,-1711.36,AFFINITY TRUST#1,CARE ESTABLISHMENT,LD - Fenland Locality,LD - Fenland - Special Needs,Suppported Living
Cambridgeshire County Council,04-May-18,51300096577,-1711.36,AFFINITY TRUST#1,CARE ESTABLISHMENT,LD - Fenland Locality,LD - Fenland - Special Needs,Suppported Living
Cambridgeshire County Council,04-May-18,51300096579,-1711.36,AFFINITY TRUST#1,CARE ESTABLISHMENT,LD - Fenland Locality,LD - Fenland - Special Needs,Suppported Living
Cambridgeshire County Council,04-May-18,51300096570,-1711.36,AFFINITY TRUST#1,CARE ESTABLISHMENT,LD - Fenland Locality,LD - Fenland - Special Needs,Suppported Living
Cambridgeshire County Council,04-May-18,51300096556,-1711.36,AFFINITY TRUST#1,CARE ESTABLISHMENT,LD - Fenland Locality,LD - Fenland - Special Needs,Suppported Living
Cambridgeshire County Council,04-May-18,51300096581,-1711.36,AFFINITY TRUST#1,CARE ESTABLISHMENT,LD - Fenland Locality,LD - Fenland - Care,Suppported Living
Cambridgeshire County Council,04-May-18,51300096554,-1711.36,AFFINITY TRUST#1,CARE ESTABLISHMENT,LD - Fenland Locality,LD - Fenland - Care,Suppported Living
Cambridgeshire County Council,14-May-18,51300104601,-1711.36,AFFINITY TRUST#1,CARE ESTABLISHMENT,LD - Fenland Locality,LD - Fenland - Care,Suppported Living
Cambridgeshire County Council,14-May-18,51300104566,-1711.36,AFFINITY TRUST#1,CARE ESTABLISHMENT,LD - Fenland Locality,LD - Fenland - Care,Suppported Living
Cambridgeshire County Council,14-May-18,51300104585,-1711.36,AFFINITY TRUST#1,CARE ESTABLISHMENT,LD - Fenland Locality,LD - Fenland - Care,Suppported Living
Cambridgeshire County Council,14-May-18,51300104567,-1711.36,AFFINITY TRUST#1,CARE ESTABLISHMENT,LD - Fenland Locality,LD - Fenland - Care,Suppported Living
Cambridgeshire County Council,14-May-18,51300104578,-1711.36,AFFINITY TRUST#1,CARE ESTABLISHMENT,LD - Fenland Locality,LD - Fenland - Special Needs,Suppported Living
Cambridgeshire County Council,14-May-18,51300104598,-1711.36,AFFINITY TRUST#1,CARE ESTABLISHMENT,LD - Fenland Locality,LD - Fenland - Special Needs,Suppported Living
Cambridgeshire County Council,14-May-18,51300104574,-1711.36,AFFINITY TRUST#1,CARE ESTABLISHMENT,LD - Fenland Locality,LD - Fenland - Special Needs,Suppported Living
Cambridgeshire County Council,14-May-18,51300104595,-1711.36,AFFINITY TRUST#1,CARE ESTABLISHMENT,LD - Fenland Locality,LD - Fenland - Special Needs,Suppported Living
Cambridgeshire County Council,14-May-18,51300104588,-1711.36,AFFINITY TRUST#1,CARE ESTABLISHMENT,LD - Fenland Locality,LD - Fenland - Special Needs,Suppported Living
Cambridgeshire County Council,14-May-18,51300104603,-1711.36,AFFINITY TRUST#1,CARE ESTABLISHMENT,LD - Fenland Locality,LD - Fenland - Special Needs,Suppported Living
Cambridgeshire County Council,14-May-18,51300104586,-1711.36,AFFINITY TRUST#1,CARE ESTABLISHMENT,LD - Fenland Locality,LD - Fenland - Special Needs,Suppported Living
Cambridgeshire County Council,14-May-18,51300104582,-1711.36,AFFINITY TRUST#1,CARE ESTABLISHMENT,LD - Fenland Locality,LD - Fenland - Special Needs,Suppported Living
Cambridgeshire County Council,14-May-18,51300104587,-1711.36,AFFINITY TRUST#1,CARE ESTABLISHMENT,LD - Fenland Locality,LD - Fenland - Special Needs,Suppported Living
Cambridgeshire County Council,14-May-18,51300104593,-1711.36,AFFINITY TRUST#1,CARE ESTABLISHMENT,LD - Fenland Locality,LD - Fenland - Special Needs,Suppported Living
Cambridgeshire County Council,14-May-18,51300104604,-1711.36,AFFINITY TRUST#1,CARE ESTABLISHMENT,LD - Fenland Locality,LD - Fenland - Special Needs,Suppported Living
Cambridgeshire County Council,14-May-18,51300104607,-1711.36,AFFINITY TRUST#1,CARE ESTABLISHMENT,LD - Fenland Locality,LD - Fenland - Special Needs,Suppported Living
Cambridgeshire County Council,14-May-18,51300104583,-1711.36,AFFINITY TRUST#1,CARE ESTABLISHMENT,LD - Fenland Locality,LD - Fenland - Care,Suppported Living
Cambridgeshire County Council,14-May-18,51300104571,-1711.36,AFFINITY TRUST#1,CARE ESTABLISHMENT,LD - Fenland Locality,LD - Fenland - Care,Suppported Living
Cambridgeshire County Council,14-May-18,51300104591,-1711.36,AFFINITY TRUST#1,CARE ESTABLISHMENT,LD - Fenland Locality,LD - Fenland - Care,Suppported Living
Cambridgeshire County Council,14-May-18,51300104596,-1711.36,AFFINITY TRUST#1,CARE ESTABLISHMENT,LD - Fenland Locality,LD - Fenland - Care,Suppported Living
Cambridgeshire County Council,25-May-18,51300112341,-1711.36,AFFINITY TRUST#1,CARE ESTABLISHMENT,LD - Fenland Locality,LD - Fenland - Special Needs,Suppported Living
Cambridgeshire County Council,25-May-18,51300112346,-1711.36,AFFINITY TRUST#1,CARE ESTABLISHMENT,LD - Fenland Locality,LD - Fenland - Special Needs,Suppported Living
Cambridgeshire County Council,25-May-18,51300132727,-1711.36,AFFINITY TRUST#1,CARE ESTABLISHMENT,LD - Fenland Locality,LD - Fenland - Special Needs,Suppported Living
Cambridgeshire County Council,25-May-18,51300112361,-1711.36,AFFINITY TRUST#1,CARE ESTABLISHMENT,LD - Fenland Locality,LD - Fenland - Care,Suppported Living
Cambridgeshire County Council,25-May-18,51300132738,-1711.36,AFFINITY TRUST#1,CARE ESTABLISHMENT,LD - Fenland Locality,LD - Fenland - Care,Suppported Living
Cambridgeshire County Council,25-May-18,51300132718,-1711.36,AFFINITY TRUST#1,CARE ESTABLISHMENT,LD - Fenland Locality,LD - Fenland - Care,Suppported Living
Cambridgeshire County Council,25-May-18,51300112345,-1711.36,AFFINITY TRUST#1,CARE ESTABLISHMENT,LD - Fenland Locality,LD - Fenland - Care,Suppported Living
Cambridgeshire County Council,25-May-18,51300132729,-1711.36,AFFINITY TRUST#1,CARE ESTABLISHMENT,LD - Fenland Locality,LD - Fenland - Care,Suppported Living
Cambridgeshire County Council,25-May-18,51300132736,-1711.36,AFFINITY TRUST#1,CARE ESTABLISHMENT,LD - Fenland Locality,LD - Fenland - Care,Suppported Living
Cambridgeshire County Council,25-May-18,51300112342,-1711.36,AFFINITY TRUST#1,CARE ESTABLISHMENT,LD - Fenland Locality,LD - Fenland - Care,Suppported Living
Cambridgeshire County Council,25-May-18,51300132748,-1711.36,AFFINITY TRUST#1,CARE ESTABLISHMENT,LD - Fenland Locality,LD - Fenland - Special Needs,Suppported Living
Cambridgeshire County Council,25-May-18,51300112336,-1711.36,AFFINITY TRUST#1,CARE ESTABLISHMENT,LD - Fenland Locality,LD - Fenland - Special Needs,Suppported Living
Cambridgeshire County Council,25-May-18,51300132735,-1711.36,AFFINITY TRUST#1,CARE ESTABLISHMENT,LD - Fenland Locality,LD - Fenland - Special Needs,Suppported Living
Cambridgeshire County Council,25-May-18,51300112349,-1711.36,AFFINITY TRUST#1,CARE ESTABLISHMENT,LD - Fenland Locality,LD - Fenland - Special Needs,Suppported Living
Cambridgeshire County Council,25-May-18,51300112347,-1711.36,AFFINITY TRUST#1,CARE ESTABLISHMENT,LD - Fenland Locality,LD - Fenland - Special Needs,Suppported Living
Cambridgeshire County Council,25-May-18,51300112353,-1711.36,AFFINITY TRUST#1,CARE ESTABLISHMENT,LD - Fenland Locality,LD - Fenland - Special Needs,Suppported Living
Cambridgeshire County Council,25-May-18,51300132741,-1711.36,AFFINITY TRUST#1,CARE ESTABLISHMENT,LD - Fenland Locality,LD - Fenland - Special Needs,Suppported Living
Cambridgeshire County Council,25-May-18,51300112357,-1711.36,AFFINITY TRUST#1,CARE ESTABLISHMENT,LD - Fenland Locality,LD - Fenland - Special Needs,Suppported Living
Cambridgeshire County Council,25-May-18,51300112350,-1711.36,AFFINITY TRUST#1,CARE ESTABLISHMENT,LD - Fenland Locality,LD - Fenland - Special Needs,Suppported Living
Cambridgeshire County Council,25-May-18,51300132730,-1711.36,AFFINITY TRUST#1,CARE ESTABLISHMENT,LD - Fenland Locality,LD - Fenland - Special Needs,Suppported Living
Cambridgeshire County Council,25-May-18,51300112344,-1711.36,AFFINITY TRUST#1,CARE ESTABLISHMENT,LD - Fenland Locality,LD - Fenland - Care,Suppported Living
Cambridgeshire County Council,25-May-18,51300132752,-1711.36,AFFINITY TRUST#1,CARE ESTABLISHMENT,LD - Fenland Locality,LD - Fenland - Care,Suppported Living
Cambridgeshire County Council,25-May-18,51300132751,-1711.36,AFFINITY TRUST#1,CARE ESTABLISHMENT,LD - Fenland Locality,LD - Fenland - Care,Suppported Living
Cambridgeshire County Council,25-May-18,51300132731,-1711.36,AFFINITY TRUST#1,CARE ESTABLISHMENT,LD - Fenland Locality,LD - Fenland - Care,Suppported Living
Cambridgeshire County Council,25-May-18,51300112338,-1711.36,AFFINITY TRUST#1,CARE ESTABLISHMENT,LD - Fenland Locality,LD - Fenland - Care,Suppported Living
Cambridgeshire County Council,25-May-18,51300132728,-1711.36,AFFINITY TRUST#1,CARE ESTABLISHMENT,LD - Fenland Locality,LD - Fenland - Care,Suppported Living
Cambridgeshire County Council,25-May-18,51300132721,-1711.36,AFFINITY TRUST#1,CARE ESTABLISHMENT,LD - Fenland Locality,LD - Fenland - Care,Suppported Living
Cambridgeshire County Council,25-May-18,51300132750,-1711.36,AFFINITY TRUST#1,CARE ESTABLISHMENT,LD - Fenland Locality,LD - Fenland - Care,Suppported Living
Cambridgeshire County Council,25-May-18,51300132749,-1711.36,AFFINITY TRUST#1,CARE ESTABLISHMENT,LD - Fenland Locality,LD - Fenland - Care,Suppported Living
Cambridgeshire County Council,25-May-18,51300112331,-1711.36,AFFINITY TRUST#1,CARE ESTABLISHMENT,LD - Fenland Locality,LD - Fenland - Care,Suppported Living
Cambridgeshire County Council,25-May-18,51300112333,-1711.36,AFFINITY TRUST#1,CARE ESTABLISHMENT,LD - Fenland Locality,LD - Fenland - Care,Suppported Living
Cambridgeshire County Council,25-May-18,51300112337,-1711.36,AFFINITY TRUST#1,CARE ESTABLISHMENT,LD - Fenland Locality,LD - Fenland - Care,Suppported Living
Cambridgeshire County Council,14-May-18,51300078533,-1711.24,CONQUEST CARE HOMES PETERBOROUGH#2,CARE ESTABLISHMENT,LD - Fenland Locality,LD - Fenland - Care,Residential Care
Cambridgeshire County Council,14-May-18,51300078524,-1711.24,CONQUEST CARE HOMES PETERBOROUGH#2,CARE ESTABLISHMENT,LD - Fenland Locality,LD - Fenland - Care,Residential Care
Cambridgeshire County Council,14-May-18,51300078534,-1711.24,CONQUEST CARE HOMES PETERBOROUGH#2,CARE ESTABLISHMENT,LD - Fenland Locality,LD - Fenland - Care,Residential Care
Cambridgeshire County Council,14-May-18,51300078538,-1711.24,CONQUEST CARE HOMES PETERBOROUGH#2,CARE ESTABLISHMENT,LD - Fenland Locality,LD - Fenland - Care,Residential Care
Cambridgeshire County Council,14-May-18,51300078536,-1711.24,CONQUEST CARE HOMES PETERBOROUGH#2,CARE ESTABLISHMENT,LD - Fenland Locality,LD - Fenland - Care,Residential Care
Cambridgeshire County Council,14-May-18,51300078535,-1711.24,CONQUEST CARE HOMES PETERBOROUGH#2,CARE ESTABLISHMENT,LD - Fenland Locality,LD - Fenland - Care,Residential Care
Cambridgeshire County Council,14-May-18,51300078525,-1711.24,CONQUEST CARE HOMES PETERBOROUGH#2,CARE ESTABLISHMENT,LD - Fenland Locality,LD - Fenland - Care,Residential Care
Cambridgeshire County Council,14-May-18,51300078528,-1711.24,CONQUEST CARE HOMES PETERBOROUGH#2,CARE ESTABLISHMENT,LD - Fenland Locality,LD - Fenland - Care,Residential Care
Cambridgeshire County Council,14-May-18,51300078527,-1711.24,CONQUEST CARE HOMES PETERBOROUGH#2,CARE ESTABLISHMENT,LD - Fenland Locality,LD - Fenland - Care,Residential Care
Cambridgeshire County Council,14-May-18,51300078521,-1711.24,CONQUEST CARE HOMES PETERBOROUGH#2,CARE ESTABLISHMENT,LD - Fenland Locality,LD - Fenland - Care,Residential Care
Cambridgeshire County Council,14-May-18,51300078530,-1711.24,CONQUEST CARE HOMES PETERBOROUGH#2,CARE ESTABLISHMENT,LD - Fenland Locality,LD - Fenland - Care,Residential Care
Cambridgeshire County Council,06-May-18,65300008684,-1704.24,CONIFER LODGE,CARE ESTABLISHMENT,LD - City Locality,LD - City - Care,Residential Care
Cambridgeshire County Council,13-May-18,65300001472,-1704.24,CONIFER LODGE,CARE ESTABLISHMENT,LD - City Locality,LD - City - Care,Residential Care
Cambridgeshire County Council,06-May-18,65300006151,-1704,THE CAMBRIDGE NURSING CENTRE,CARE ESTABLISHMENT,OP - City & South Blocks,City and South - Long term blocks,Residential Care
Cambridgeshire County Council,13-May-18,65300005183,-1704,THE CAMBRIDGE NURSING CENTRE,CARE ESTABLISHMENT,OP - City & South Blocks,City and South - Long term blocks,Residential Care
Cambridgeshire County Council,06-May-18,65300003518,-1700.4,ALDERTON HOUSE,CARE ESTABLISHMENT,LD - Young Adults Team,LD - Young Adults - Special Needs,Residential Care
Cambridgeshire County Council,13-May-18,65300006760,-1700.4,ALDERTON HOUSE,CARE ESTABLISHMENT,LD - Young Adults Team,LD - Young Adults - Special Needs,Residential Care
Cambridgeshire County Council,04-May-18,51300094724,-1693.03,THERA EAST ANGLIA#2,CARE ESTABLISHMENT,LD - East Locality,LD - East Cambs - Special Needs,Suppported Living
Cambridgeshire County Council,04-May-18,51300094716,-1693.03,THERA EAST ANGLIA#2,CARE ESTABLISHMENT,LD - East Locality,LD - East Cambs - Special Needs,Suppported Living
Cambridgeshire County Council,04-May-18,51300094708,-1693.03,THERA EAST ANGLIA#2,CARE ESTABLISHMENT,LD - East Locality,LD - East Cambs - Special Needs,Suppported Living
Cambridgeshire County Council,04-May-18,51300094711,-1693.03,THERA EAST ANGLIA#2,CARE ESTABLISHMENT,LD - East Locality,LD - East Cambs - Special Needs,Suppported Living
Cambridgeshire County Council,04-May-18,51300094734,-1693.03,THERA EAST ANGLIA#2,CARE ESTABLISHMENT,LD - East Locality,LD - East Cambs - Special Needs,Suppported Living
Cambridgeshire County Council,04-May-18,51300094729,-1693.03,THERA EAST ANGLIA#2,CARE ESTABLISHMENT,LD - East Locality,LD - East Cambs - Special Needs,Suppported Living
Cambridgeshire County Council,04-May-18,51300094732,-1693.03,THERA EAST ANGLIA#2,CARE ESTABLISHMENT,LD - East Locality,LD - East Cambs - Special Needs,Suppported Living
Cambridgeshire County Council,04-May-18,51300094721,-1693.03,THERA EAST ANGLIA#2,CARE ESTABLISHMENT,LD - East Locality,LD - East Cambs - Special Needs,Suppported Living
Cambridgeshire County Council,14-May-18,51300107824,-1690.5,AFFINITY TRUST#1,CARE ESTABLISHMENT,LD - Fenland Locality,LD - Fenland - Special Needs,Domiciliary Care
Cambridgeshire County Council,14-May-18,51300107831,-1690.5,AFFINITY TRUST#1,CARE ESTABLISHMENT,LD - Fenland Locality,LD - Fenland - Special Needs,Domiciliary Care
Cambridgeshire County Council,14-May-18,51300107839,-1690.5,AFFINITY TRUST#1,CARE ESTABLISHMENT,LD - Fenland Locality,LD - Fenland - Special Needs,Domiciliary Care
Cambridgeshire County Council,14-May-18,51300107832,-1690.5,AFFINITY TRUST#1,CARE ESTABLISHMENT,LD - Fenland Locality,LD - Fenland - Special Needs,Domiciliary Care
Cambridgeshire County Council,25-May-18,51300094635,-1676.13,UNIT 2B (DIMENSIONS),CARE ESTABLISHMENT,LD - Fenland Locality,LD - Fenland - Special Needs,Domiciliary Care
Cambridgeshire County Council,14-May-18,51300104623,-1639.47,AFFINITY TRUST#1,CARE ESTABLISHMENT,LD - Hunts Locality,LD - Huntigndonshire - Special Needs,Suppported Living
Cambridgeshire County Council,14-May-18,51300104631,-1639.47,AFFINITY TRUST#1,CARE ESTABLISHMENT,LD - Hunts Locality,LD - Huntigndonshire - Special Needs,Suppported Living
Cambridgeshire County Council,14-May-18,51300104625,-1639.47,AFFINITY TRUST#1,CARE ESTABLISHMENT,LD - Hunts Locality,LD - Huntigndonshire - Special Needs,Suppported Living
Cambridgeshire County Council,14-May-18,51300104634,-1639.47,AFFINITY TRUST#1,CARE ESTABLISHMENT,LD - Hunts Locality,LD - Huntigndonshire - Special Needs,Suppported Living
Cambridgeshire County Council,06-May-18,65300006209,-1638.22,GLENHOLME HEALTHCARE LTD#1,CARE ESTABLISHMENT,LD - Hunts Locality,LD - Huntigndonshire - Special Needs,Residential Care
Cambridgeshire County Council,13-May-18,65300001235,-1638.22,GLENHOLME HEALTHCARE LTD#1,CARE ESTABLISHMENT,LD - Hunts Locality,LD - Huntigndonshire - Special Needs,Residential Care
Cambridgeshire County Council,14-May-18,51300107369,-1628.55,AFFINITY TRUST#1,CARE ESTABLISHMENT,LD - Fenland Locality,LD - Fenland - Special Needs,Suppported Living
Cambridgeshire County Council,14-May-18,51300107367,-1628.55,AFFINITY TRUST#1,CARE ESTABLISHMENT,LD - Fenland Locality,LD - Fenland - Special Needs,Suppported Living
Cambridgeshire County Council,14-May-18,51300107364,-1628.55,AFFINITY TRUST#1,CARE ESTABLISHMENT,LD - Fenland Locality,LD - Fenland - Special Needs,Suppported Living
Cambridgeshire County Council,14-May-18,51300107392,-1628.55,AFFINITY TRUST#1,CARE ESTABLISHMENT,LD - Fenland Locality,LD - Fenland - Special Needs,Suppported Living
Cambridgeshire County Council,14-May-18,51300106798,-1601.25,AFFINITY TRUST#1,CARE ESTABLISHMENT,LD - Fenland Locality,LD - Fenland - Special Needs,Domiciliary Care
Cambridgeshire County Council,14-May-18,51300106796,-1601.25,AFFINITY TRUST#1,CARE ESTABLISHMENT,LD - Fenland Locality,LD - Fenland - Special Needs,Domiciliary Care
Cambridgeshire County Council,14-May-18,51300106793,-1601.25,AFFINITY TRUST#1,CARE ESTABLISHMENT,LD - Fenland Locality,LD - Fenland - Special Needs,Domiciliary Care
Cambridgeshire County Council,14-May-18,51300106797,-1601.25,AFFINITY TRUST#1,CARE ESTABLISHMENT,LD - Fenland Locality,LD - Fenland - Special Needs,Domiciliary Care
Cambridgeshire County Council,14-May-18,51300101695,-1597.06,AFFINITY TRUST#1,CARE ESTABLISHMENT,LD - Fenland Locality,LD - Fenland - Special Needs,Domiciliary Care
Cambridgeshire County Council,14-May-18,51300101684,-1597.06,AFFINITY TRUST#1,CARE ESTABLISHMENT,LD - Fenland Locality,LD - Fenland - Special Needs,Domiciliary Care
Cambridgeshire County Council,14-May-18,51300101696,-1597.06,AFFINITY TRUST#1,CARE ESTABLISHMENT,LD - Fenland Locality,LD - Fenland - Special Needs,Domiciliary Care
Cambridgeshire County Council,14-May-18,51300101692,-1597.06,AFFINITY TRUST#1,CARE ESTABLISHMENT,LD - Fenland Locality,LD - Fenland - Special Needs,Domiciliary Care
Cambridgeshire County Council,06-May-18,65300000099,-1561.41,SENSE EAST,CARE ESTABLISHMENT,LD - City Locality,LD - City - Care,Residential Care
Cambridgeshire County Council,13-May-18,65300005916,-1561.41,SENSE EAST,CARE ESTABLISHMENT,LD - City Locality,LD - City - Care,Residential Care
Cambridgeshire County Council,25-May-18,51300099200,-1535.29,6C PRIORY LANE (AFFINITY TRUST),CARE ESTABLISHMENT,LD - Hunts Locality,LD - Huntigndonshire - Special Needs,Suppported Living
Cambridgeshire County Council,25-May-18,51300097508,-1535.29,6C PRIORY LANE (AFFINITY TRUST),CARE ESTABLISHMENT,LD - Hunts Locality,LD - Huntigndonshire - Special Needs,Suppported Living
Cambridgeshire County Council,25-May-18,51300097506,-1535.29,6C PRIORY LANE (AFFINITY TRUST),CARE ESTABLISHMENT,LD - Hunts Locality,LD - Huntigndonshire - Special Needs,Suppported Living
Cambridgeshire County Council,25-May-18,51300099194,-1535.29,6C PRIORY LANE (AFFINITY TRUST),CARE ESTABLISHMENT,LD - Hunts Locality,LD - Huntigndonshire - Special Needs,Suppported Living
Cambridgeshire County Council,25-May-18,51300097496,-1535.29,6C PRIORY LANE (AFFINITY TRUST),CARE ESTABLISHMENT,LD - Hunts Locality,LD - Huntigndonshire - Special Needs,Suppported Living
Cambridgeshire County Council,25-May-18,51300099208,-1535.29,6C PRIORY LANE (AFFINITY TRUST),CARE ESTABLISHMENT,LD - Hunts Locality,LD - Huntigndonshire - Special Needs,Suppported Living
Cambridgeshire County Council,25-May-18,51300099204,-1535.29,6C PRIORY LANE (AFFINITY TRUST),CARE ESTABLISHMENT,LD - Hunts Locality,LD - Huntigndonshire - Special Needs,Suppported Living
Cambridgeshire County Council,25-May-18,51300097503,-1535.29,6C PRIORY LANE (AFFINITY TRUST),CARE ESTABLISHMENT,LD - Hunts Locality,LD - Huntigndonshire - Special Needs,Suppported Living
Cambridgeshire County Council,06-May-18,65300008012,-1523.71,AURORA ORCHARD MANOR#1,CARE ESTABLISHMENT,LD - Young Adults Team,LD - Young Adults - Special Needs,Residential Care
Cambridgeshire County Council,13-May-18,65300000302,-1523.71,AURORA ORCHARD MANOR#1,CARE ESTABLISHMENT,LD - Young Adults Team,LD - Young Adults - Special Needs,Residential Care
Cambridgeshire County Council,14-May-18,51300107890,-1484.55,AFFINITY TRUST#1,CARE ESTABLISHMENT,LD - Fenland Locality,LD - Fenland - Special Needs,Suppported Living
Cambridgeshire County Council,14-May-18,51300107896,-1484.55,AFFINITY TRUST#1,CARE ESTABLISHMENT,LD - Fenland Locality,LD - Fenland - Special Needs,Suppported Living
Cambridgeshire County Council,14-May-18,51300107894,-1484.55,AFFINITY TRUST#1,CARE ESTABLISHMENT,LD - Fenland Locality,LD - Fenland - Special Needs,Suppported Living
Cambridgeshire County Council,14-May-18,51300107902,-1484.55,AFFINITY TRUST#1,CARE ESTABLISHMENT,LD - Fenland Locality,LD - Fenland - Special Needs,Suppported Living
Cambridgeshire County Council,06-May-18,65300002665,-1481.06,BROAD OAKS VCT LTD#1,CARE ESTABLISHMENT,LD - Fenland Locality,LD - Fenland - Special Needs,Residential Care
Cambridgeshire County Council,13-May-18,65300005225,-1481.06,BROAD OAKS VCT LTD#1,CARE ESTABLISHMENT,LD - Fenland Locality,LD - Fenland - Special Needs,Residential Care
Cambridgeshire County Council,31-May-18,51300153613,-1479.99,Redacted Personal Data ,PARENT/GUARDIAN,LD - Hunts Locality,LD - Huntigndonshire - Special Needs,Direct Payments
Cambridgeshire County Council,04-May-18,51300094655,-1474.13,AFFINITY TRUST#1,CARE ESTABLISHMENT,LD - Fenland Locality,LD - Fenland - Special Needs,Suppported Living
Cambridgeshire County Council,04-May-18,51300094657,-1474.13,AFFINITY TRUST#1,CARE ESTABLISHMENT,LD - Fenland Locality,LD - Fenland - Special Needs,Suppported Living
Cambridgeshire County Council,04-May-18,51300094664,-1474.13,AFFINITY TRUST#1,CARE ESTABLISHMENT,LD - Fenland Locality,LD - Fenland - Special Needs,Suppported Living
Cambridgeshire County Council,04-May-18,51300094668,-1474.13,AFFINITY TRUST#1,CARE ESTABLISHMENT,LD - Fenland Locality,LD - Fenland - Special Needs,Suppported Living
Cambridgeshire County Council,06-May-18,65300004268,-1438.98,73 HIGH ROAD,CARE ESTABLISHMENT,OP - Fenland Locality,Older People - Fenland,Residential Care
Cambridgeshire County Council,13-May-18,65300008778,-1438.98,73 HIGH ROAD,CARE ESTABLISHMENT,OP - Fenland Locality,Older People - Fenland,Residential Care
Cambridgeshire County Council,06-May-18,65300002490,-1438.69,VOYAGE#2,CARE ESTABLISHMENT,LD - South Locality,LD - South Cambs - Special Needs,Residential Care
Cambridgeshire County Council,13-May-18,65300000652,-1438.69,VOYAGE#2,CARE ESTABLISHMENT,LD - South Locality,LD - South Cambs - Special Needs,Residential Care
Cambridgeshire County Council,06-May-18,65300002641,-1421.14,CHOICECARE 2000 LTD,CARE ESTABLISHMENT,Physical Disablity,Countywide PD Service - Care,Residential Care
Cambridgeshire County Council,13-May-18,65300001243,-1421.14,CHOICECARE 2000 LTD,CARE ESTABLISHMENT,Physical Disablity,Countywide PD Service - Care,Residential Care
Cambridgeshire County Council,06-May-18,65300002344,-1410.67,MAKING SPACE#1#2,CARE ESTABLISHMENT,LD - Hunts Locality,LD - Huntigndonshire - Special Needs,Nursing Care
Cambridgeshire County Council,13-May-18,65300002168,-1410.67,MAKING SPACE#1#2,CARE ESTABLISHMENT,LD - Hunts Locality,LD - Huntigndonshire - Special Needs,Nursing Care
Cambridgeshire County Council,06-May-18,65300000512,-1405.92,HC-ONE,CARE ESTABLISHMENT,OP - City & South Blocks,City and South - Long term blocks,Nursing Care
Cambridgeshire County Council,13-May-18,65300008285,-1405.92,HC-ONE,CARE ESTABLISHMENT,OP - City & South Blocks,City and South - Long term blocks,Nursing Care
Cambridgeshire County Council,06-May-18,65300000139,-1400,WOODLANDS CARE CENTRE#1,CARE ESTABLISHMENT,OPMH - City & South,Older People Mental Health City & South,Nursing Care
Cambridgeshire County Council,13-May-18,65300002590,-1400,WOODLANDS CARE CENTRE#1,CARE ESTABLISHMENT,OPMH - City & South,Older People Mental Health City & South,Nursing Care
Cambridgeshire County Council,06-May-18,65300009280,-1398.8,WOODLANDS CARE CENTRE#1,CARE ESTABLISHMENT,OPMH - City & South,Older People Mental Health City & South,Nursing Care
Cambridgeshire County Council,13-May-18,65300000422,-1398.8,WOODLANDS CARE CENTRE#1,CARE ESTABLISHMENT,OPMH - City & South,Older People Mental Health City & South,Nursing Care
Cambridgeshire County Council,04-May-18,51300094725,-1396.87,THERA EAST ANGLIA#2,CARE ESTABLISHMENT,LD - East Locality,LD - East Cambs - Special Needs,Suppported Living
Cambridgeshire County Council,04-May-18,51300094723,-1396.87,THERA EAST ANGLIA#2,CARE ESTABLISHMENT,LD - East Locality,LD - East Cambs - Special Needs,Suppported Living
Cambridgeshire County Council,04-May-18,51300094719,-1396.87,THERA EAST ANGLIA#2,CARE ESTABLISHMENT,LD - East Locality,LD - East Cambs - Special Needs,Suppported Living
Cambridgeshire County Council,04-May-18,51300094707,-1396.87,THERA EAST ANGLIA#2,CARE ESTABLISHMENT,LD - East Locality,LD - East Cambs - Special Needs,Suppported Living
Cambridgeshire County Council,04-May-18,51300094738,-1396.87,THERA EAST ANGLIA#2,CARE ESTABLISHMENT,LD - East Locality,LD - East Cambs - Special Needs,Suppported Living
Cambridgeshire County Council,04-May-18,51300094736,-1396.87,THERA EAST ANGLIA#2,CARE ESTABLISHMENT,LD - East Locality,LD - East Cambs - Special Needs,Suppported Living
Cambridgeshire County Council,04-May-18,51300094733,-1396.87,THERA EAST ANGLIA#2,CARE ESTABLISHMENT,LD - East Locality,LD - East Cambs - Special Needs,Suppported Living
Cambridgeshire County Council,04-May-18,51300094737,-1396.87,THERA EAST ANGLIA#2,CARE ESTABLISHMENT,LD - East Locality,LD - East Cambs - Special Needs,Suppported Living
Cambridgeshire County Council,06-May-18,65300003587,-1389.26,HILL HOUSE,CARE ESTABLISHMENT,LD - Hunts Locality,LD - Huntigndonshire - Special Needs,Residential Care
Cambridgeshire County Council,13-May-18,65300006287,-1389.26,HILL HOUSE,CARE ESTABLISHMENT,LD - Hunts Locality,LD - Huntigndonshire - Special Needs,Residential Care
Cambridgeshire County Council,06-May-18,65300006191,-1389.15,FITZROY SUPPORTED,CARE ESTABLISHMENT,LD - South Locality,LD - South Cambs - Care,Residential Care
Cambridgeshire County Council,13-May-18,65300006641,-1389.15,FITZROY SUPPORTED,CARE ESTABLISHMENT,LD - South Locality,LD - South Cambs - Care,Residential Care
Cambridgeshire County Council,14-May-18,51300066434,-1382.14,CONQUEST CARE HOMES PETERBOROUGH#2,CARE ESTABLISHMENT,LD - Hunts Locality,LD - Huntigndonshire - Special Needs,Residential Care
Cambridgeshire County Council,14-May-18,51300066415,-1382.14,CONQUEST CARE HOMES PETERBOROUGH#2,CARE ESTABLISHMENT,LD - Hunts Locality,LD - Huntigndonshire - Special Needs,Residential Care
Cambridgeshire County Council,14-May-18,51300066416,-1382.14,CONQUEST CARE HOMES PETERBOROUGH#2,CARE ESTABLISHMENT,LD - Hunts Locality,LD - Huntigndonshire - Special Needs,Residential Care
Cambridgeshire County Council,14-May-18,51300066430,-1382.14,CONQUEST CARE HOMES PETERBOROUGH#2,CARE ESTABLISHMENT,LD - Hunts Locality,LD - Huntigndonshire - Special Needs,Residential Care
Cambridgeshire County Council,14-May-18,51300066424,-1382.14,CONQUEST CARE HOMES PETERBOROUGH#2,CARE ESTABLISHMENT,LD - Hunts Locality,LD - Huntigndonshire - Special Needs,Residential Care
Cambridgeshire County Council,14-May-18,51300066423,-1382.14,CONQUEST CARE HOMES PETERBOROUGH#2,CARE ESTABLISHMENT,LD - Hunts Locality,LD - Huntigndonshire - Special Needs,Residential Care
Cambridgeshire County Council,14-May-18,51300066418,-1382.14,CONQUEST CARE HOMES PETERBOROUGH#2,CARE ESTABLISHMENT,LD - Hunts Locality,LD - Huntigndonshire - Special Needs,Residential Care
Cambridgeshire County Council,14-May-18,51300066429,-1382.14,CONQUEST CARE HOMES PETERBOROUGH#2,CARE ESTABLISHMENT,LD - Hunts Locality,LD - Huntigndonshire - Special Needs,Residential Care
Cambridgeshire County Council,14-May-18,51300066422,-1382.14,CONQUEST CARE HOMES PETERBOROUGH#2,CARE ESTABLISHMENT,LD - Hunts Locality,LD - Huntigndonshire - Special Needs,Residential Care
Cambridgeshire County Council,14-May-18,51300066417,-1382.14,CONQUEST CARE HOMES PETERBOROUGH#2,CARE ESTABLISHMENT,LD - Hunts Locality,LD - Huntigndonshire - Special Needs,Residential Care
Cambridgeshire County Council,06-May-18,65300009086,-1344.99,VOYAGE#2,CARE ESTABLISHMENT,LD - South Locality,LD - South Cambs - Special Needs,Residential Care
Cambridgeshire County Council,06-May-18,65300005677,-1344.99,VOYAGE#2,CARE ESTABLISHMENT,LD - South Locality,LD - South Cambs - Special Needs,Residential Care
Cambridgeshire County Council,13-May-18,65300004011,-1344.99,VOYAGE#2,CARE ESTABLISHMENT,LD - South Locality,LD - South Cambs - Special Needs,Residential Care
Cambridgeshire County Council,13-May-18,65300004627,-1344.99,VOYAGE#2,CARE ESTABLISHMENT,LD - South Locality,LD - South Cambs - Special Needs,Residential Care
Cambridgeshire County Council,06-May-18,65300006086,-1337.66,OAKLANDS,CARE ESTABLISHMENT,LD - Hunts Locality,LD - Huntigndonshire - Special Needs,Residential Care
Cambridgeshire County Council,13-May-18,65300006564,-1337.66,OAKLANDS,CARE ESTABLISHMENT,LD - Hunts Locality,LD - Huntigndonshire - Special Needs,Residential Care
Cambridgeshire County Council,06-May-18,65300000867,-1336.87,ALDERTON HOUSE,CARE ESTABLISHMENT,LD - East Locality,LD - East Cambs - Special Needs,Residential Care
Cambridgeshire County Council,13-May-18,65300001066,-1336.87,ALDERTON HOUSE,CARE ESTABLISHMENT,LD - East Locality,LD - East Cambs - Special Needs,Residential Care
Cambridgeshire County Council,10-May-18,51300003707,-1335.6,POSITIVE STEPS (CARE SERVICES) LTD,CARE ESTABLISHMENT,Control Accounts,Control Accounts - Payables,Migration Only - Marked as Do Not Use
Cambridgeshire County Council,10-May-18,51300003709,-1335.6,POSITIVE STEPS (CARE SERVICES) LTD,CARE ESTABLISHMENT,Control Accounts,Control Accounts - Payables,Migration Only - Marked as Do Not Use
Cambridgeshire County Council,10-May-18,51300003713,-1335.6,POSITIVE STEPS (CARE SERVICES) LTD,CARE ESTABLISHMENT,Control Accounts,Control Accounts - Payables,Migration Only - Marked as Do Not Use
Cambridgeshire County Council,10-May-18,51300003711,-1335.6,POSITIVE STEPS (CARE SERVICES) LTD,CARE ESTABLISHMENT,Control Accounts,Control Accounts - Payables,Migration Only - Marked as Do Not Use
Cambridgeshire County Council,23-May-18,51300109427,-1332,GD GREEN,SOLETRADER,County Farms,County Farms,County Farms Maintenance unplanned
Cambridgeshire County Council,14-May-18,51300073936,-1328.44,CARE MANAGEMENT GROUP (64-66 CARLTON),CARE ESTABLISHMENT,LD - East Locality,LD - East Cambs - Special Needs,Residential Care
Cambridgeshire County Council,14-May-18,51300090573,-1328.44,CARE MANAGEMENT GROUP (64-66 CARLTON),CARE ESTABLISHMENT,LD - East Locality,LD - East Cambs - Special Needs,Residential Care
Cambridgeshire County Council,14-May-18,51300097848,-1328.44,CARE MANAGEMENT GROUP (64-66 CARLTON),CARE ESTABLISHMENT,LD - East Locality,LD - East Cambs - Special Needs,Residential Care
Cambridgeshire County Council,14-May-18,51300097940,-1328.44,CARE MANAGEMENT GROUP (64-66 CARLTON),CARE ESTABLISHMENT,LD - East Locality,LD - East Cambs - Special Needs,Residential Care
Cambridgeshire County Council,14-May-18,51300073855,-1328.44,CARE MANAGEMENT GROUP (64-66 CARLTON),CARE ESTABLISHMENT,LD - East Locality,LD - East Cambs - Special Needs,Residential Care
Cambridgeshire County Council,14-May-18,51300074030,-1328.44,CARE MANAGEMENT GROUP (64-66 CARLTON),CARE ESTABLISHMENT,LD - East Locality,LD - East Cambs - Special Needs,Residential Care
Cambridgeshire County Council,14-May-18,51300059177,-1328.44,CARE MANAGEMENT GROUP (64-66 CARLTON),CARE ESTABLISHMENT,LD - East Locality,LD - East Cambs - Special Needs,Residential Care
Cambridgeshire County Council,14-May-18,51300073909,-1328.44,CARE MANAGEMENT GROUP (64-66 CARLTON),CARE ESTABLISHMENT,LD - East Locality,LD - East Cambs - Special Needs,Residential Care
Cambridgeshire County Council,14-May-18,51300073827,-1328.44,CARE MANAGEMENT GROUP (64-66 CARLTON),CARE ESTABLISHMENT,LD - East Locality,LD - East Cambs - Special Needs,Residential Care
Cambridgeshire County Council,14-May-18,51300073900,-1328.44,CARE MANAGEMENT GROUP (64-66 CARLTON),CARE ESTABLISHMENT,LD - East Locality,LD - East Cambs - Special Needs,Residential Care
Cambridgeshire County Council,14-May-18,51300073942,-1328.44,CARE MANAGEMENT GROUP (64-66 CARLTON),CARE ESTABLISHMENT,LD - East Locality,LD - East Cambs - Special Needs,Residential Care
Cambridgeshire County Council,14-May-18,51300059101,-1328.44,CARE MANAGEMENT GROUP (64-66 CARLTON),CARE ESTABLISHMENT,LD - East Locality,LD - East Cambs - Special Needs,Residential Care
Cambridgeshire County Council,14-May-18,51300097839,-1328.44,CARE MANAGEMENT GROUP (64-66 CARLTON),CARE ESTABLISHMENT,LD - East Locality,LD - East Cambs - Special Needs,Residential Care
Cambridgeshire County Council,14-May-18,51300097892,-1328.44,CARE MANAGEMENT GROUP (64-66 CARLTON),CARE ESTABLISHMENT,LD - East Locality,LD - East Cambs - Special Needs,Residential Care
Cambridgeshire County Council,14-May-18,51300090588,-1328.44,CARE MANAGEMENT GROUP (64-66 CARLTON),CARE ESTABLISHMENT,LD - East Locality,LD - East Cambs - Special Needs,Residential Care
Cambridgeshire County Council,14-May-18,51300059091,-1328.44,CARE MANAGEMENT GROUP (64-66 CARLTON),CARE ESTABLISHMENT,LD - East Locality,LD - East Cambs - Special Needs,Residential Care
Cambridgeshire County Council,14-May-18,51300073791,-1328.44,CARE MANAGEMENT GROUP (64-66 CARLTON),CARE ESTABLISHMENT,LD - East Locality,LD - East Cambs - Special Needs,Residential Care
Cambridgeshire County Council,14-May-18,51300097875,-1328.44,CARE MANAGEMENT GROUP (64-66 CARLTON),CARE ESTABLISHMENT,LD - East Locality,LD - East Cambs - Special Needs,Residential Care
Cambridgeshire County Council,14-May-18,51300059164,-1328.44,CARE MANAGEMENT GROUP (64-66 CARLTON),CARE ESTABLISHMENT,LD - East Locality,LD - East Cambs - Special Needs,Residential Care
Cambridgeshire County Council,14-May-18,51300059261,-1328.44,CARE MANAGEMENT GROUP (64-66 CARLTON),CARE ESTABLISHMENT,LD - East Locality,LD - East Cambs - Special Needs,Residential Care
Cambridgeshire County Council,14-May-18,51300073823,-1328.44,CARE MANAGEMENT GROUP (64-66 CARLTON),CARE ESTABLISHMENT,LD - East Locality,LD - East Cambs - Special Needs,Residential Care
Cambridgeshire County Council,14-May-18,51300106322,-1328.44,CARE MANAGEMENT GROUP (64-66 CARLTON),CARE ESTABLISHMENT,LD - East Locality,LD - East Cambs - Special Needs,Residential Care
Cambridgeshire County Council,14-May-18,51300097966,-1328.44,CARE MANAGEMENT GROUP (64-66 CARLTON),CARE ESTABLISHMENT,LD - East Locality,LD - East Cambs - Special Needs,Residential Care
Cambridgeshire County Council,14-May-18,51300059188,-1328.44,CARE MANAGEMENT GROUP (64-66 CARLTON),CARE ESTABLISHMENT,LD - East Locality,LD - East Cambs - Special Needs,Residential Care
Cambridgeshire County Council,14-May-18,51300073803,-1328.44,CARE MANAGEMENT GROUP (64-66 CARLTON),CARE ESTABLISHMENT,LD - East Locality,LD - East Cambs - Special Needs,Residential Care
Cambridgeshire County Council,14-May-18,51300073986,-1328.44,CARE MANAGEMENT GROUP (64-66 CARLTON),CARE ESTABLISHMENT,LD - East Locality,LD - East Cambs - Special Needs,Residential Care
Cambridgeshire County Council,14-May-18,51300059324,-1328.44,CARE MANAGEMENT GROUP (64-66 CARLTON),CARE ESTABLISHMENT,LD - East Locality,LD - East Cambs - Special Needs,Residential Care
Cambridgeshire County Council,14-May-18,51300059262,-1328.44,CARE MANAGEMENT GROUP (64-66 CARLTON),CARE ESTABLISHMENT,LD - East Locality,LD - East Cambs - Special Needs,Residential Care
Cambridgeshire County Council,14-May-18,51300097845,-1328.44,CARE MANAGEMENT GROUP (64-66 CARLTON),CARE ESTABLISHMENT,LD - East Locality,LD - East Cambs - Special Needs,Residential Care
Cambridgeshire County Council,14-May-18,51300106315,-1328.44,CARE MANAGEMENT GROUP (64-66 CARLTON),CARE ESTABLISHMENT,LD - East Locality,LD - East Cambs - Special Needs,Residential Care
Cambridgeshire County Council,14-May-18,51300073979,-1328.44,CARE MANAGEMENT GROUP (64-66 CARLTON),CARE ESTABLISHMENT,LD - East Locality,LD - East Cambs - Special Needs,Residential Care
Cambridgeshire County Council,14-May-18,51300073807,-1328.44,CARE MANAGEMENT GROUP (64-66 CARLTON),CARE ESTABLISHMENT,LD - East Locality,LD - East Cambs - Special Needs,Residential Care
Cambridgeshire County Council,14-May-18,51300073869,-1328.44,CARE MANAGEMENT GROUP (64-66 CARLTON),CARE ESTABLISHMENT,LD - East Locality,LD - East Cambs - Special Needs,Residential Care
Cambridgeshire County Council,14-May-18,51300073958,-1328.44,CARE MANAGEMENT GROUP (64-66 CARLTON),CARE ESTABLISHMENT,LD - East Locality,LD - East Cambs - Special Needs,Residential Care
Cambridgeshire County Council,14-May-18,51300074059,-1328.44,CARE MANAGEMENT GROUP (64-66 CARLTON),CARE ESTABLISHMENT,LD - East Locality,LD - East Cambs - Special Needs,Residential Care
Cambridgeshire County Council,14-May-18,51300106376,-1328.44,CARE MANAGEMENT GROUP (64-66 CARLTON),CARE ESTABLISHMENT,LD - East Locality,LD - East Cambs - Special Needs,Residential Care
Cambridgeshire County Council,14-May-18,51300106278,-1328.44,CARE MANAGEMENT GROUP (64-66 CARLTON),CARE ESTABLISHMENT,LD - East Locality,LD - East Cambs - Special Needs,Residential Care
Cambridgeshire County Council,14-May-18,51300106249,-1328.44,CARE MANAGEMENT GROUP (64-66 CARLTON),CARE ESTABLISHMENT,LD - East Locality,LD - East Cambs - Special Needs,Residential Care
Cambridgeshire County Council,14-May-18,51300106343,-1328.44,CARE MANAGEMENT GROUP (64-66 CARLTON),CARE ESTABLISHMENT,LD - East Locality,LD - East Cambs - Special Needs,Residential Care
Cambridgeshire County Council,14-May-18,51300097880,-1328.44,CARE MANAGEMENT GROUP (64-66 CARLTON),CARE ESTABLISHMENT,LD - East Locality,LD - East Cambs - Special Needs,Residential Care
Cambridgeshire County Council,14-May-18,51300074003,-1328.44,CARE MANAGEMENT GROUP (64-66 CARLTON),CARE ESTABLISHMENT,LD - East Locality,LD - East Cambs - Special Needs,Residential Care
Cambridgeshire County Council,14-May-18,51300059278,-1328.44,CARE MANAGEMENT GROUP (64-66 CARLTON),CARE ESTABLISHMENT,LD - East Locality,LD - East Cambs - Special Needs,Residential Care
Cambridgeshire County Council,14-May-18,51300097969,-1328.44,CARE MANAGEMENT GROUP (64-66 CARLTON),CARE ESTABLISHMENT,LD - East Locality,LD - East Cambs - Special Needs,Residential Care
Cambridgeshire County Council,14-May-18,51300059193,-1328.44,CARE MANAGEMENT GROUP (64-66 CARLTON),CARE ESTABLISHMENT,LD - East Locality,LD - East Cambs - Special Needs,Residential Care
Cambridgeshire County Council,14-May-18,51300097844,-1328.44,CARE MANAGEMENT GROUP (64-66 CARLTON),CARE ESTABLISHMENT,LD - East Locality,LD - East Cambs - Special Needs,Residential Care
Cambridgeshire County Council,14-May-18,51300073793,-1328.44,CARE MANAGEMENT GROUP (64-66 CARLTON),CARE ESTABLISHMENT,LD - East Locality,LD - East Cambs - Special Needs,Residential Care
Cambridgeshire County Council,14-May-18,51300059207,-1328.44,CARE MANAGEMENT GROUP (64-66 CARLTON),CARE ESTABLISHMENT,LD - East Locality,LD - East Cambs - Special Needs,Residential Care
Cambridgeshire County Council,14-May-18,51300074014,-1328.44,CARE MANAGEMENT GROUP (64-66 CARLTON),CARE ESTABLISHMENT,LD - East Locality,LD - East Cambs - Special Needs,Residential Care
Cambridgeshire County Council,14-May-18,51300059122,-1328.44,CARE MANAGEMENT GROUP (64-66 CARLTON),CARE ESTABLISHMENT,LD - East Locality,LD - East Cambs - Special Needs,Residential Care
Cambridgeshire County Council,14-May-18,51300074023,-1328.44,CARE MANAGEMENT GROUP (64-66 CARLTON),CARE ESTABLISHMENT,LD - East Locality,LD - East Cambs - Special Needs,Residential Care
Cambridgeshire County Council,14-May-18,51300097930,-1328.44,CARE MANAGEMENT GROUP (64-66 CARLTON),CARE ESTABLISHMENT,LD - East Locality,LD - East Cambs - Special Needs,Residential Care
Cambridgeshire County Council,14-May-18,51300106234,-1328.44,CARE MANAGEMENT GROUP (64-66 CARLTON),CARE ESTABLISHMENT,LD - East Locality,LD - East Cambs - Special Needs,Residential Care
Cambridgeshire County Council,14-May-18,51300106293,-1328.44,CARE MANAGEMENT GROUP (64-66 CARLTON),CARE ESTABLISHMENT,LD - East Locality,LD - East Cambs - Special Needs,Residential Care
Cambridgeshire County Council,14-May-18,51300097924,-1328.44,CARE MANAGEMENT GROUP (64-66 CARLTON),CARE ESTABLISHMENT,LD - East Locality,LD - East Cambs - Special Needs,Residential Care
Cambridgeshire County Council,14-May-18,51300073888,-1328.44,CARE MANAGEMENT GROUP (64-66 CARLTON),CARE ESTABLISHMENT,LD - East Locality,LD - East Cambs - Special Needs,Residential Care
Cambridgeshire County Council,14-May-18,51300106358,-1328.44,CARE MANAGEMENT GROUP (64-66 CARLTON),CARE ESTABLISHMENT,LD - East Locality,LD - East Cambs - Special Needs,Residential Care
Cambridgeshire County Council,14-May-18,51300097889,-1328.44,CARE MANAGEMENT GROUP (64-66 CARLTON),CARE ESTABLISHMENT,LD - East Locality,LD - East Cambs - Special Needs,Residential Care
Cambridgeshire County Council,14-May-18,51300059287,-1328.44,CARE MANAGEMENT GROUP (64-66 CARLTON),CARE ESTABLISHMENT,LD - East Locality,LD - East Cambs - Special Needs,Residential Care
Cambridgeshire County Council,14-May-18,51300074056,-1328.44,CARE MANAGEMENT GROUP (64-66 CARLTON),CARE ESTABLISHMENT,LD - East Locality,LD - East Cambs - Special Needs,Residential Care
Cambridgeshire County Council,14-May-18,51300097965,-1328.44,CARE MANAGEMENT GROUP (64-66 CARLTON),CARE ESTABLISHMENT,LD - East Locality,LD - East Cambs - Special Needs,Residential Care
Cambridgeshire County Council,14-May-18,51300097954,-1328.44,CARE MANAGEMENT GROUP (64-66 CARLTON),CARE ESTABLISHMENT,LD - East Locality,LD - East Cambs - Special Needs,Residential Care
Cambridgeshire County Council,14-May-18,51300059187,-1328.44,CARE MANAGEMENT GROUP (64-66 CARLTON),CARE ESTABLISHMENT,LD - East Locality,LD - East Cambs - Special Needs,Residential Care
Cambridgeshire County Council,14-May-18,51300059263,-1328.44,CARE MANAGEMENT GROUP (64-66 CARLTON),CARE ESTABLISHMENT,LD - East Locality,LD - East Cambs - Special Needs,Residential Care
Cambridgeshire County Council,14-May-18,51300106254,-1328.44,CARE MANAGEMENT GROUP (64-66 CARLTON),CARE ESTABLISHMENT,LD - East Locality,LD - East Cambs - Special Needs,Residential Care
Cambridgeshire County Council,14-May-18,51300059183,-1328.44,CARE MANAGEMENT GROUP (64-66 CARLTON),CARE ESTABLISHMENT,LD - East Locality,LD - East Cambs - Special Needs,Residential Care
Cambridgeshire County Council,14-May-18,51300059243,-1328.44,CARE MANAGEMENT GROUP (64-66 CARLTON),CARE ESTABLISHMENT,LD - East Locality,LD - East Cambs - Special Needs,Residential Care
Cambridgeshire County Council,14-May-18,51300059333,-1328.44,CARE MANAGEMENT GROUP (64-66 CARLTON),CARE ESTABLISHMENT,LD - East Locality,LD - East Cambs - Special Needs,Residential Care
Cambridgeshire County Council,14-May-18,51300059300,-1328.44,CARE MANAGEMENT GROUP (64-66 CARLTON),CARE ESTABLISHMENT,LD - East Locality,LD - East Cambs - Special Needs,Residential Care
Cambridgeshire County Council,14-May-18,51300073833,-1328.44,CARE MANAGEMENT GROUP (64-66 CARLTON),CARE ESTABLISHMENT,LD - East Locality,LD - East Cambs - Special Needs,Residential Care
Cambridgeshire County Council,14-May-18,51300073872,-1328.44,CARE MANAGEMENT GROUP (64-66 CARLTON),CARE ESTABLISHMENT,LD - East Locality,LD - East Cambs - Special Needs,Residential Care
Cambridgeshire County Council,14-May-18,51300073820,-1328.44,CARE MANAGEMENT GROUP (64-66 CARLTON),CARE ESTABLISHMENT,LD - East Locality,LD - East Cambs - Special Needs,Residential Care
Cambridgeshire County Council,14-May-18,51300073856,-1328.44,CARE MANAGEMENT GROUP (64-66 CARLTON),CARE ESTABLISHMENT,LD - East Locality,LD - East Cambs - Special Needs,Residential Care
Cambridgeshire County Council,14-May-18,51300059087,-1328.44,CARE MANAGEMENT GROUP (64-66 CARLTON),CARE ESTABLISHMENT,LD - East Locality,LD - East Cambs - Special Needs,Residential Care
Cambridgeshire County Council,14-May-18,51300059200,-1328.44,CARE MANAGEMENT GROUP (64-66 CARLTON),CARE ESTABLISHMENT,LD - East Locality,LD - East Cambs - Special Needs,Residential Care
Cambridgeshire County Council,14-May-18,51300106307,-1328.44,CARE MANAGEMENT GROUP (64-66 CARLTON),CARE ESTABLISHMENT,LD - East Locality,LD - East Cambs - Special Needs,Residential Care
Cambridgeshire County Council,14-May-18,51300074062,-1328.44,CARE MANAGEMENT GROUP (64-66 CARLTON),CARE ESTABLISHMENT,LD - East Locality,LD - East Cambs - Special Needs,Residential Care
Cambridgeshire County Council,14-May-18,51300074039,-1328.44,CARE MANAGEMENT GROUP (64-66 CARLTON),CARE ESTABLISHMENT,LD - East Locality,LD - East Cambs - Special Needs,Residential Care
Cambridgeshire County Council,14-May-18,51300073862,-1328.44,CARE MANAGEMENT GROUP (64-66 CARLTON),CARE ESTABLISHMENT,LD - East Locality,LD - East Cambs - Special Needs,Residential Care
Cambridgeshire County Council,14-May-18,51300073937,-1328.44,CARE MANAGEMENT GROUP (64-66 CARLTON),CARE ESTABLISHMENT,LD - East Locality,LD - East Cambs - Special Needs,Residential Care
Cambridgeshire County Council,14-May-18,51300059161,-1328.44,CARE MANAGEMENT GROUP (64-66 CARLTON),CARE ESTABLISHMENT,LD - East Locality,LD - East Cambs - Special Needs,Residential Care
Cambridgeshire County Council,14-May-18,51300059251,-1328.44,CARE MANAGEMENT GROUP (64-66 CARLTON),CARE ESTABLISHMENT,LD - East Locality,LD - East Cambs - Special Needs,Residential Care
Cambridgeshire County Council,14-May-18,51300059120,-1328.44,CARE MANAGEMENT GROUP (64-66 CARLTON),CARE ESTABLISHMENT,LD - East Locality,LD - East Cambs - Special Needs,Residential Care
Cambridgeshire County Council,14-May-18,51300097830,-1328.44,CARE MANAGEMENT GROUP (64-66 CARLTON),CARE ESTABLISHMENT,LD - East Locality,LD - East Cambs - Special Needs,Residential Care
Cambridgeshire County Council,14-May-18,51300059306,-1328.44,CARE MANAGEMENT GROUP (64-66 CARLTON),CARE ESTABLISHMENT,LD - East Locality,LD - East Cambs - Special Needs,Residential Care
Cambridgeshire County Council,14-May-18,51300106377,-1328.44,CARE MANAGEMENT GROUP (64-66 CARLTON),CARE ESTABLISHMENT,LD - East Locality,LD - East Cambs - Special Needs,Residential Care
Cambridgeshire County Council,14-May-18,51300059132,-1328.44,CARE MANAGEMENT GROUP (64-66 CARLTON),CARE ESTABLISHMENT,LD - East Locality,LD - East Cambs - Special Needs,Residential Care
Cambridgeshire County Council,14-May-18,51300059339,-1328.44,CARE MANAGEMENT GROUP (64-66 CARLTON),CARE ESTABLISHMENT,LD - East Locality,LD - East Cambs - Special Needs,Residential Care
Cambridgeshire County Council,14-May-18,51300059218,-1328.44,CARE MANAGEMENT GROUP (64-66 CARLTON),CARE ESTABLISHMENT,LD - East Locality,LD - East Cambs - Special Needs,Residential Care
Cambridgeshire County Council,14-May-18,51300106283,-1328.44,CARE MANAGEMENT GROUP (64-66 CARLTON),CARE ESTABLISHMENT,LD - East Locality,LD - East Cambs - Special Needs,Residential Care
Cambridgeshire County Council,14-May-18,51300059205,-1328.44,CARE MANAGEMENT GROUP (64-66 CARLTON),CARE ESTABLISHMENT,LD - East Locality,LD - East Cambs - Special Needs,Residential Care
Cambridgeshire County Council,14-May-18,51300059105,-1328.44,CARE MANAGEMENT GROUP (64-66 CARLTON),CARE ESTABLISHMENT,LD - East Locality,LD - East Cambs - Special Needs,Residential Care
Cambridgeshire County Council,14-May-18,51300059328,-1328.44,CARE MANAGEMENT GROUP (64-66 CARLTON),CARE ESTABLISHMENT,LD - East Locality,LD - East Cambs - Special Needs,Residential Care
Cambridgeshire County Council,14-May-18,51300074067,-1328.44,CARE MANAGEMENT GROUP (64-66 CARLTON),CARE ESTABLISHMENT,LD - East Locality,LD - East Cambs - Special Needs,Residential Care
Cambridgeshire County Council,14-May-18,51300097970,-1328.44,CARE MANAGEMENT GROUP (64-66 CARLTON),CARE ESTABLISHMENT,LD - East Locality,LD - East Cambs - Special Needs,Residential Care
Cambridgeshire County Council,14-May-18,51300059179,-1328.44,CARE MANAGEMENT GROUP (64-66 CARLTON),CARE ESTABLISHMENT,LD - East Locality,LD - East Cambs - Special Needs,Residential Care
Cambridgeshire County Council,14-May-18,51300097831,-1328.44,CARE MANAGEMENT GROUP (64-66 CARLTON),CARE ESTABLISHMENT,LD - East Locality,LD - East Cambs - Special Needs,Residential Care
Cambridgeshire County Council,14-May-18,51300097937,-1328.44,CARE MANAGEMENT GROUP (64-66 CARLTON),CARE ESTABLISHMENT,LD - East Locality,LD - East Cambs - Special Needs,Residential Care
Cambridgeshire County Council,14-May-18,51300106257,-1328.44,CARE MANAGEMENT GROUP (64-66 CARLTON),CARE ESTABLISHMENT,LD - East Locality,LD - East Cambs - Special Needs,Residential Care
Cambridgeshire County Council,14-May-18,51300106339,-1328.44,CARE MANAGEMENT GROUP (64-66 CARLTON),CARE ESTABLISHMENT,LD - East Locality,LD - East Cambs - Special Needs,Residential Care
Cambridgeshire County Council,14-May-18,51300097952,-1328.44,CARE MANAGEMENT GROUP (64-66 CARLTON),CARE ESTABLISHMENT,LD - East Locality,LD - East Cambs - Special Needs,Residential Care
Cambridgeshire County Council,14-May-18,51300106303,-1328.44,CARE MANAGEMENT GROUP (64-66 CARLTON),CARE ESTABLISHMENT,LD - East Locality,LD - East Cambs - Special Needs,Residential Care
Cambridgeshire County Council,14-May-18,51300059298,-1328.44,CARE MANAGEMENT GROUP (64-66 CARLTON),CARE ESTABLISHMENT,LD - East Locality,LD - East Cambs - Special Needs,Residential Care
Cambridgeshire County Council,14-May-18,51300106365,-1328.44,CARE MANAGEMENT GROUP (64-66 CARLTON),CARE ESTABLISHMENT,LD - East Locality,LD - East Cambs - Special Needs,Residential Care
Cambridgeshire County Council,14-May-18,51300106321,-1328.44,CARE MANAGEMENT GROUP (64-66 CARLTON),CARE ESTABLISHMENT,LD - East Locality,LD - East Cambs - Special Needs,Residential Care
Cambridgeshire County Council,14-May-18,51300106359,-1328.44,CARE MANAGEMENT GROUP (64-66 CARLTON),CARE ESTABLISHMENT,LD - East Locality,LD - East Cambs - Special Needs,Residential Care
Cambridgeshire County Council,14-May-18,51300106384,-1328.44,CARE MANAGEMENT GROUP (64-66 CARLTON),CARE ESTABLISHMENT,LD - East Locality,LD - East Cambs - Special Needs,Residential Care
Cambridgeshire County Council,14-May-18,51300059331,-1328.44,CARE MANAGEMENT GROUP (64-66 CARLTON),CARE ESTABLISHMENT,LD - East Locality,LD - East Cambs - Special Needs,Residential Care
Cambridgeshire County Council,14-May-18,51300059171,-1328.44,CARE MANAGEMENT GROUP (64-66 CARLTON),CARE ESTABLISHMENT,LD - East Locality,LD - East Cambs - Special Needs,Residential Care
Cambridgeshire County Council,14-May-18,51300059203,-1328.44,CARE MANAGEMENT GROUP (64-66 CARLTON),CARE ESTABLISHMENT,LD - East Locality,LD - East Cambs - Special Needs,Residential Care
Cambridgeshire County Council,14-May-18,51300073874,-1328.44,CARE MANAGEMENT GROUP (64-66 CARLTON),CARE ESTABLISHMENT,LD - East Locality,LD - East Cambs - Special Needs,Residential Care
Cambridgeshire County Council,14-May-18,51300074007,-1328.44,CARE MANAGEMENT GROUP (64-66 CARLTON),CARE ESTABLISHMENT,LD - East Locality,LD - East Cambs - Special Needs,Residential Care
Cambridgeshire County Council,14-May-18,51300073892,-1328.44,CARE MANAGEMENT GROUP (64-66 CARLTON),CARE ESTABLISHMENT,LD - East Locality,LD - East Cambs - Special Needs,Residential Care
Cambridgeshire County Council,14-May-18,51300073868,-1328.44,CARE MANAGEMENT GROUP (64-66 CARLTON),CARE ESTABLISHMENT,LD - East Locality,LD - East Cambs - Special Needs,Residential Care
Cambridgeshire County Council,14-May-18,51300073997,-1328.44,CARE MANAGEMENT GROUP (64-66 CARLTON),CARE ESTABLISHMENT,LD - East Locality,LD - East Cambs - Special Needs,Residential Care
Cambridgeshire County Council,14-May-18,51300073797,-1328.44,CARE MANAGEMENT GROUP (64-66 CARLTON),CARE ESTABLISHMENT,LD - East Locality,LD - East Cambs - Special Needs,Residential Care
Cambridgeshire County Council,14-May-18,51300059196,-1328.44,CARE MANAGEMENT GROUP (64-66 CARLTON),CARE ESTABLISHMENT,LD - East Locality,LD - East Cambs - Special Needs,Residential Care
Cambridgeshire County Council,14-May-18,51300059149,-1328.44,CARE MANAGEMENT GROUP (64-66 CARLTON),CARE ESTABLISHMENT,LD - East Locality,LD - East Cambs - Special Needs,Residential Care
Cambridgeshire County Council,14-May-18,51300106261,-1328.44,CARE MANAGEMENT GROUP (64-66 CARLTON),CARE ESTABLISHMENT,LD - East Locality,LD - East Cambs - Special Needs,Residential Care
Cambridgeshire County Council,14-May-18,51300097973,-1328.44,CARE MANAGEMENT GROUP (64-66 CARLTON),CARE ESTABLISHMENT,LD - East Locality,LD - East Cambs - Special Needs,Residential Care
Cambridgeshire County Council,14-May-18,51300097873,-1328.44,CARE MANAGEMENT GROUP (64-66 CARLTON),CARE ESTABLISHMENT,LD - East Locality,LD - East Cambs - Special Needs,Residential Care
Cambridgeshire County Council,14-May-18,51300097843,-1328.44,CARE MANAGEMENT GROUP (64-66 CARLTON),CARE ESTABLISHMENT,LD - East Locality,LD - East Cambs - Special Needs,Residential Care
Cambridgeshire County Council,14-May-18,51300059274,-1328.44,CARE MANAGEMENT GROUP (64-66 CARLTON),CARE ESTABLISHMENT,LD - East Locality,LD - East Cambs - Special Needs,Residential Care
Cambridgeshire County Council,14-May-18,51300073824,-1328.44,CARE MANAGEMENT GROUP (64-66 CARLTON),CARE ESTABLISHMENT,LD - East Locality,LD - East Cambs - Special Needs,Residential Care
Cambridgeshire County Council,14-May-18,51300106232,-1328.44,CARE MANAGEMENT GROUP (64-66 CARLTON),CARE ESTABLISHMENT,LD - East Locality,LD - East Cambs - Special Needs,Residential Care
Cambridgeshire County Council,14-May-18,51300059209,-1328.44,CARE MANAGEMENT GROUP (64-66 CARLTON),CARE ESTABLISHMENT,LD - East Locality,LD - East Cambs - Special Needs,Residential Care
Cambridgeshire County Council,14-May-18,51300106252,-1328.44,CARE MANAGEMENT GROUP (64-66 CARLTON),CARE ESTABLISHMENT,LD - East Locality,LD - East Cambs - Special Needs,Residential Care
Cambridgeshire County Council,14-May-18,51300059289,-1328.44,CARE MANAGEMENT GROUP (64-66 CARLTON),CARE ESTABLISHMENT,LD - East Locality,LD - East Cambs - Special Needs,Residential Care
Cambridgeshire County Council,14-May-18,51300074058,-1328.44,CARE MANAGEMENT GROUP (64-66 CARLTON),CARE ESTABLISHMENT,LD - East Locality,LD - East Cambs - Special Needs,Residential Care
Cambridgeshire County Council,14-May-18,51300073993,-1328.44,CARE MANAGEMENT GROUP (64-66 CARLTON),CARE ESTABLISHMENT,LD - East Locality,LD - East Cambs - Special Needs,Residential Care
Cambridgeshire County Council,14-May-18,51300097953,-1328.44,CARE MANAGEMENT GROUP (64-66 CARLTON),CARE ESTABLISHMENT,LD - East Locality,LD - East Cambs - Special Needs,Residential Care
Cambridgeshire County Council,14-May-18,51300097955,-1328.44,CARE MANAGEMENT GROUP (64-66 CARLTON),CARE ESTABLISHMENT,LD - East Locality,LD - East Cambs - Special Needs,Residential Care
Cambridgeshire County Council,14-May-18,51300097881,-1328.44,CARE MANAGEMENT GROUP (64-66 CARLTON),CARE ESTABLISHMENT,LD - East Locality,LD - East Cambs - Special Needs,Residential Care
Cambridgeshire County Council,14-May-18,51300073960,-1328.44,CARE MANAGEMENT GROUP (64-66 CARLTON),CARE ESTABLISHMENT,LD - East Locality,LD - East Cambs - Special Needs,Residential Care
Cambridgeshire County Council,14-May-18,51300106255,-1328.44,CARE MANAGEMENT GROUP (64-66 CARLTON),CARE ESTABLISHMENT,LD - East Locality,LD - East Cambs - Special Needs,Residential Care
Cambridgeshire County Council,14-May-18,51300073913,-1328.44,CARE MANAGEMENT GROUP (64-66 CARLTON),CARE ESTABLISHMENT,LD - East Locality,LD - East Cambs - Special Needs,Residential Care
Cambridgeshire County Council,14-May-18,51300073865,-1328.44,CARE MANAGEMENT GROUP (64-66 CARLTON),CARE ESTABLISHMENT,LD - East Locality,LD - East Cambs - Special Needs,Residential Care
Cambridgeshire County Council,14-May-18,51300106285,-1328.44,CARE MANAGEMENT GROUP (64-66 CARLTON),CARE ESTABLISHMENT,LD - East Locality,LD - East Cambs - Special Needs,Residential Care
Cambridgeshire County Council,14-May-18,51300059093,-1328.44,CARE MANAGEMENT GROUP (64-66 CARLTON),CARE ESTABLISHMENT,LD - East Locality,LD - East Cambs - Special Needs,Residential Care
Cambridgeshire County Council,14-May-18,51300059256,-1328.44,CARE MANAGEMENT GROUP (64-66 CARLTON),CARE ESTABLISHMENT,LD - East Locality,LD - East Cambs - Special Needs,Residential Care
Cambridgeshire County Council,14-May-18,51300097863,-1328.44,CARE MANAGEMENT GROUP (64-66 CARLTON),CARE ESTABLISHMENT,LD - East Locality,LD - East Cambs - Special Needs,Residential Care
Cambridgeshire County Council,14-May-18,51300073800,-1328.44,CARE MANAGEMENT GROUP (64-66 CARLTON),CARE ESTABLISHMENT,LD - East Locality,LD - East Cambs - Special Needs,Residential Care
Cambridgeshire County Council,14-May-18,51300073954,-1328.44,CARE MANAGEMENT GROUP (64-66 CARLTON),CARE ESTABLISHMENT,LD - East Locality,LD - East Cambs - Special Needs,Residential Care
Cambridgeshire County Council,14-May-18,51300106265,-1328.44,CARE MANAGEMENT GROUP (64-66 CARLTON),CARE ESTABLISHMENT,LD - East Locality,LD - East Cambs - Special Needs,Residential Care
Cambridgeshire County Council,14-May-18,51300059214,-1328.44,CARE MANAGEMENT GROUP (64-66 CARLTON),CARE ESTABLISHMENT,LD - East Locality,LD - East Cambs - Special Needs,Residential Care
Cambridgeshire County Council,14-May-18,51300059253,-1328.44,CARE MANAGEMENT GROUP (64-66 CARLTON),CARE ESTABLISHMENT,LD - East Locality,LD - East Cambs - Special Needs,Residential Care
Cambridgeshire County Council,14-May-18,51300059318,-1328.44,CARE MANAGEMENT GROUP (64-66 CARLTON),CARE ESTABLISHMENT,LD - East Locality,LD - East Cambs - Special Needs,Residential Care
Cambridgeshire County Council,14-May-18,51300073904,-1328.44,CARE MANAGEMENT GROUP (64-66 CARLTON),CARE ESTABLISHMENT,LD - East Locality,LD - East Cambs - Special Needs,Residential Care
Cambridgeshire County Council,14-May-18,51300097869,-1328.44,CARE MANAGEMENT GROUP (64-66 CARLTON),CARE ESTABLISHMENT,LD - East Locality,LD - East Cambs - Special Needs,Residential Care
Cambridgeshire County Council,14-May-18,51300074021,-1328.44,CARE MANAGEMENT GROUP (64-66 CARLTON),CARE ESTABLISHMENT,LD - East Locality,LD - East Cambs - Special Needs,Residential Care
Cambridgeshire County Council,14-May-18,51300106247,-1328.44,CARE MANAGEMENT GROUP (64-66 CARLTON),CARE ESTABLISHMENT,LD - East Locality,LD - East Cambs - Special Needs,Residential Care
Cambridgeshire County Council,14-May-18,51300097901,-1328.44,CARE MANAGEMENT GROUP (64-66 CARLTON),CARE ESTABLISHMENT,LD - East Locality,LD - East Cambs - Special Needs,Residential Care
Cambridgeshire County Council,14-May-18,51300059265,-1328.44,CARE MANAGEMENT GROUP (64-66 CARLTON),CARE ESTABLISHMENT,LD - East Locality,LD - East Cambs - Special Needs,Residential Care
Cambridgeshire County Council,14-May-18,51300106280,-1328.44,CARE MANAGEMENT GROUP (64-66 CARLTON),CARE ESTABLISHMENT,LD - East Locality,LD - East Cambs - Special Needs,Residential Care
Cambridgeshire County Council,14-May-18,51300106242,-1328.44,CARE MANAGEMENT GROUP (64-66 CARLTON),CARE ESTABLISHMENT,LD - East Locality,LD - East Cambs - Special Needs,Residential Care
Cambridgeshire County Council,14-May-18,51300059280,-1328.44,CARE MANAGEMENT GROUP (64-66 CARLTON),CARE ESTABLISHMENT,LD - East Locality,LD - East Cambs - Special Needs,Residential Care
Cambridgeshire County Council,14-May-18,51300106330,-1328.44,CARE MANAGEMENT GROUP (64-66 CARLTON),CARE ESTABLISHMENT,LD - East Locality,LD - East Cambs - Special Needs,Residential Care
Cambridgeshire County Council,14-May-18,51300097957,-1328.44,CARE MANAGEMENT GROUP (64-66 CARLTON),CARE ESTABLISHMENT,LD - East Locality,LD - East Cambs - Special Needs,Residential Care
Cambridgeshire County Council,14-May-18,51300097836,-1328.44,CARE MANAGEMENT GROUP (64-66 CARLTON),CARE ESTABLISHMENT,LD - East Locality,LD - East Cambs - Special Needs,Residential Care
Cambridgeshire County Council,14-May-18,51300059296,-1328.44,CARE MANAGEMENT GROUP (64-66 CARLTON),CARE ESTABLISHMENT,LD - East Locality,LD - East Cambs - Special Needs,Residential Care
Cambridgeshire County Council,14-May-18,51300097861,-1328.44,CARE MANAGEMENT GROUP (64-66 CARLTON),CARE ESTABLISHMENT,LD - East Locality,LD - East Cambs - Special Needs,Residential Care
Cambridgeshire County Council,14-May-18,51300059089,-1328.44,CARE MANAGEMENT GROUP (64-66 CARLTON),CARE ESTABLISHMENT,LD - East Locality,LD - East Cambs - Special Needs,Residential Care
Cambridgeshire County Council,14-May-18,51300073972,-1328.44,CARE MANAGEMENT GROUP (64-66 CARLTON),CARE ESTABLISHMENT,LD - East Locality,LD - East Cambs - Special Needs,Residential Care
Cambridgeshire County Council,14-May-18,51300059327,-1328.44,CARE MANAGEMENT GROUP (64-66 CARLTON),CARE ESTABLISHMENT,LD - East Locality,LD - East Cambs - Special Needs,Residential Care
Cambridgeshire County Council,14-May-18,51300059112,-1328.44,CARE MANAGEMENT GROUP (64-66 CARLTON),CARE ESTABLISHMENT,LD - East Locality,LD - East Cambs - Special Needs,Residential Care
Cambridgeshire County Council,14-May-18,51300097958,-1328.44,CARE MANAGEMENT GROUP (64-66 CARLTON),CARE ESTABLISHMENT,LD - East Locality,LD - East Cambs - Special Needs,Residential Care
Cambridgeshire County Council,14-May-18,51300074042,-1328.44,CARE MANAGEMENT GROUP (64-66 CARLTON),CARE ESTABLISHMENT,LD - East Locality,LD - East Cambs - Special Needs,Residential Care
Cambridgeshire County Council,14-May-18,51300097900,-1328.44,CARE MANAGEMENT GROUP (64-66 CARLTON),CARE ESTABLISHMENT,LD - East Locality,LD - East Cambs - Special Needs,Residential Care
Cambridgeshire County Council,14-May-18,51300106272,-1328.44,CARE MANAGEMENT GROUP (64-66 CARLTON),CARE ESTABLISHMENT,LD - East Locality,LD - East Cambs - Special Needs,Residential Care
Cambridgeshire County Council,14-May-18,51300106335,-1328.44,CARE MANAGEMENT GROUP (64-66 CARLTON),CARE ESTABLISHMENT,LD - East Locality,LD - East Cambs - Special Needs,Residential Care
Cambridgeshire County Council,14-May-18,51300059304,-1328.44,CARE MANAGEMENT GROUP (64-66 CARLTON),CARE ESTABLISHMENT,LD - East Locality,LD - East Cambs - Special Needs,Residential Care
Cambridgeshire County Council,14-May-18,51300073998,-1328.44,CARE MANAGEMENT GROUP (64-66 CARLTON),CARE ESTABLISHMENT,LD - East Locality,LD - East Cambs - Special Needs,Residential Care
Cambridgeshire County Council,14-May-18,51300073871,-1328.44,CARE MANAGEMENT GROUP (64-66 CARLTON),CARE ESTABLISHMENT,LD - East Locality,LD - East Cambs - Special Needs,Residential Care
Cambridgeshire County Council,14-May-18,51300073921,-1328.44,CARE MANAGEMENT GROUP (64-66 CARLTON),CARE ESTABLISHMENT,LD - East Locality,LD - East Cambs - Special Needs,Residential Care
Cambridgeshire County Council,14-May-18,51300097887,-1328.44,CARE MANAGEMENT GROUP (64-66 CARLTON),CARE ESTABLISHMENT,LD - East Locality,LD - East Cambs - Special Needs,Residential Care
Cambridgeshire County Council,14-May-18,51300073917,-1328.44,CARE MANAGEMENT GROUP (64-66 CARLTON),CARE ESTABLISHMENT,LD - East Locality,LD - East Cambs - Special Needs,Residential Care
Cambridgeshire County Council,14-May-18,51300097913,-1328.44,CARE MANAGEMENT GROUP (64-66 CARLTON),CARE ESTABLISHMENT,LD - East Locality,LD - East Cambs - Special Needs,Residential Care
Cambridgeshire County Council,14-May-18,51300073950,-1328.44,CARE MANAGEMENT GROUP (64-66 CARLTON),CARE ESTABLISHMENT,LD - East Locality,LD - East Cambs - Special Needs,Residential Care
Cambridgeshire County Council,14-May-18,51300073796,-1328.44,CARE MANAGEMENT GROUP (64-66 CARLTON),CARE ESTABLISHMENT,LD - East Locality,LD - East Cambs - Special Needs,Residential Care
Cambridgeshire County Council,14-May-18,51300106238,-1328.44,CARE MANAGEMENT GROUP (64-66 CARLTON),CARE ESTABLISHMENT,LD - East Locality,LD - East Cambs - Special Needs,Residential Care
Cambridgeshire County Council,14-May-18,51300059311,-1328.44,CARE MANAGEMENT GROUP (64-66 CARLTON),CARE ESTABLISHMENT,LD - East Locality,LD - East Cambs - Special Needs,Residential Care
Cambridgeshire County Council,14-May-18,51300059241,-1328.44,CARE MANAGEMENT GROUP (64-66 CARLTON),CARE ESTABLISHMENT,LD - East Locality,LD - East Cambs - Special Needs,Residential Care
Cambridgeshire County Council,14-May-18,51300106317,-1328.44,CARE MANAGEMENT GROUP (64-66 CARLTON),CARE ESTABLISHMENT,LD - East Locality,LD - East Cambs - Special Needs,Residential Care
Cambridgeshire County Council,14-May-18,51300073932,-1328.44,CARE MANAGEMENT GROUP (64-66 CARLTON),CARE ESTABLISHMENT,LD - East Locality,LD - East Cambs - Special Needs,Residential Care
Cambridgeshire County Council,14-May-18,51300074051,-1328.44,CARE MANAGEMENT GROUP (64-66 CARLTON),CARE ESTABLISHMENT,LD - East Locality,LD - East Cambs - Special Needs,Residential Care
Cambridgeshire County Council,14-May-18,51300073928,-1328.44,CARE MANAGEMENT GROUP (64-66 CARLTON),CARE ESTABLISHMENT,LD - East Locality,LD - East Cambs - Special Needs,Residential Care
Cambridgeshire County Council,14-May-18,51300073930,-1328.44,CARE MANAGEMENT GROUP (64-66 CARLTON),CARE ESTABLISHMENT,LD - East Locality,LD - East Cambs - Special Needs,Residential Care
Cambridgeshire County Council,14-May-18,51300073870,-1328.44,CARE MANAGEMENT GROUP (64-66 CARLTON),CARE ESTABLISHMENT,LD - East Locality,LD - East Cambs - Special Needs,Residential Care
Cambridgeshire County Council,14-May-18,51300073847,-1328.44,CARE MANAGEMENT GROUP (64-66 CARLTON),CARE ESTABLISHMENT,LD - East Locality,LD - East Cambs - Special Needs,Residential Care
Cambridgeshire County Council,14-May-18,51300059141,-1328.44,CARE MANAGEMENT GROUP (64-66 CARLTON),CARE ESTABLISHMENT,LD - East Locality,LD - East Cambs - Special Needs,Residential Care
Cambridgeshire County Council,14-May-18,51300097840,-1328.44,CARE MANAGEMENT GROUP (64-66 CARLTON),CARE ESTABLISHMENT,LD - East Locality,LD - East Cambs - Special Needs,Residential Care
Cambridgeshire County Council,14-May-18,51300097923,-1328.44,CARE MANAGEMENT GROUP (64-66 CARLTON),CARE ESTABLISHMENT,LD - East Locality,LD - East Cambs - Special Needs,Residential Care
Cambridgeshire County Council,14-May-18,51300097975,-1328.44,CARE MANAGEMENT GROUP (64-66 CARLTON),CARE ESTABLISHMENT,LD - East Locality,LD - East Cambs - Special Needs,Residential Care
Cambridgeshire County Council,14-May-18,51300059102,-1328.44,CARE MANAGEMENT GROUP (64-66 CARLTON),CARE ESTABLISHMENT,LD - East Locality,LD - East Cambs - Special Needs,Residential Care
Cambridgeshire County Council,14-May-18,51300059268,-1328.44,CARE MANAGEMENT GROUP (64-66 CARLTON),CARE ESTABLISHMENT,LD - East Locality,LD - East Cambs - Special Needs,Residential Care
Cambridgeshire County Council,14-May-18,51300059097,-1328.44,CARE MANAGEMENT GROUP (64-66 CARLTON),CARE ESTABLISHMENT,LD - East Locality,LD - East Cambs - Special Needs,Residential Care
Cambridgeshire County Council,14-May-18,51300074066,-1328.44,CARE MANAGEMENT GROUP (64-66 CARLTON),CARE ESTABLISHMENT,LD - East Locality,LD - East Cambs - Special Needs,Residential Care
Cambridgeshire County Council,14-May-18,51300059309,-1328.44,CARE MANAGEMENT GROUP (64-66 CARLTON),CARE ESTABLISHMENT,LD - East Locality,LD - East Cambs - Special Needs,Residential Care
Cambridgeshire County Council,14-May-18,51300074001,-1328.44,CARE MANAGEMENT GROUP (64-66 CARLTON),CARE ESTABLISHMENT,LD - East Locality,LD - East Cambs - Special Needs,Residential Care
Cambridgeshire County Council,14-May-18,51300074002,-1328.44,CARE MANAGEMENT GROUP (64-66 CARLTON),CARE ESTABLISHMENT,LD - East Locality,LD - East Cambs - Special Needs,Residential Care
Cambridgeshire County Council,14-May-18,51300097934,-1328.44,CARE MANAGEMENT GROUP (64-66 CARLTON),CARE ESTABLISHMENT,LD - East Locality,LD - East Cambs - Special Needs,Residential Care
Cambridgeshire County Council,14-May-18,51300106354,-1328.44,CARE MANAGEMENT GROUP (64-66 CARLTON),CARE ESTABLISHMENT,LD - East Locality,LD - East Cambs - Special Needs,Residential Care
Cambridgeshire County Council,14-May-18,51300097854,-1328.44,CARE MANAGEMENT GROUP (64-66 CARLTON),CARE ESTABLISHMENT,LD - East Locality,LD - East Cambs - Special Needs,Residential Care
Cambridgeshire County Council,14-May-18,51300073829,-1328.44,CARE MANAGEMENT GROUP (64-66 CARLTON),CARE ESTABLISHMENT,LD - East Locality,LD - East Cambs - Special Needs,Residential Care
Cambridgeshire County Council,14-May-18,51300106356,-1328.44,CARE MANAGEMENT GROUP (64-66 CARLTON),CARE ESTABLISHMENT,LD - East Locality,LD - East Cambs - Special Needs,Residential Care
Cambridgeshire County Council,14-May-18,51300059190,-1328.44,CARE MANAGEMENT GROUP (64-66 CARLTON),CARE ESTABLISHMENT,LD - East Locality,LD - East Cambs - Special Needs,Residential Care
Cambridgeshire County Council,14-May-18,51300059238,-1328.44,CARE MANAGEMENT GROUP (64-66 CARLTON),CARE ESTABLISHMENT,LD - East Locality,LD - East Cambs - Special Needs,Residential Care
Cambridgeshire County Council,14-May-18,51300059138,-1328.44,CARE MANAGEMENT GROUP (64-66 CARLTON),CARE ESTABLISHMENT,LD - East Locality,LD - East Cambs - Special Needs,Residential Care
Cambridgeshire County Council,14-May-18,51300106277,-1328.44,CARE MANAGEMENT GROUP (64-66 CARLTON),CARE ESTABLISHMENT,LD - East Locality,LD - East Cambs - Special Needs,Residential Care
Cambridgeshire County Council,14-May-18,51300059158,-1328.44,CARE MANAGEMENT GROUP (64-66 CARLTON),CARE ESTABLISHMENT,LD - East Locality,LD - East Cambs - Special Needs,Residential Care
Cambridgeshire County Council,14-May-18,51300097860,-1328.44,CARE MANAGEMENT GROUP (64-66 CARLTON),CARE ESTABLISHMENT,LD - East Locality,LD - East Cambs - Special Needs,Residential Care
Cambridgeshire County Council,14-May-18,51300059206,-1328.44,CARE MANAGEMENT GROUP (64-66 CARLTON),CARE ESTABLISHMENT,LD - East Locality,LD - East Cambs - Special Needs,Residential Care
Cambridgeshire County Council,14-May-18,51300073898,-1328.44,CARE MANAGEMENT GROUP (64-66 CARLTON),CARE ESTABLISHMENT,LD - East Locality,LD - East Cambs - Special Needs,Residential Care
Cambridgeshire County Council,14-May-18,51300106357,-1328.44,CARE MANAGEMENT GROUP (64-66 CARLTON),CARE ESTABLISHMENT,LD - East Locality,LD - East Cambs - Special Needs,Residential Care
Cambridgeshire County Council,14-May-18,51300106309,-1328.44,CARE MANAGEMENT GROUP (64-66 CARLTON),CARE ESTABLISHMENT,LD - East Locality,LD - East Cambs - Special Needs,Residential Care
Cambridgeshire County Council,14-May-18,51300073915,-1328.44,CARE MANAGEMENT GROUP (64-66 CARLTON),CARE ESTABLISHMENT,LD - East Locality,LD - East Cambs - Special Needs,Residential Care
Cambridgeshire County Council,14-May-18,51300073815,-1328.44,CARE MANAGEMENT GROUP (64-66 CARLTON),CARE ESTABLISHMENT,LD - East Locality,LD - East Cambs - Special Needs,Residential Care
Cambridgeshire County Council,14-May-18,51300106306,-1328.44,CARE MANAGEMENT GROUP (64-66 CARLTON),CARE ESTABLISHMENT,LD - East Locality,LD - East Cambs - Special Needs,Residential Care
Cambridgeshire County Council,14-May-18,51300059119,-1328.44,CARE MANAGEMENT GROUP (64-66 CARLTON),CARE ESTABLISHMENT,LD - East Locality,LD - East Cambs - Special Needs,Residential Care
Cambridgeshire County Council,14-May-18,51300059134,-1328.44,CARE MANAGEMENT GROUP (64-66 CARLTON),CARE ESTABLISHMENT,LD - East Locality,LD - East Cambs - Special Needs,Residential Care
Cambridgeshire County Council,14-May-18,51300106244,-1328.44,CARE MANAGEMENT GROUP (64-66 CARLTON),CARE ESTABLISHMENT,LD - East Locality,LD - East Cambs - Special Needs,Residential Care
Cambridgeshire County Council,14-May-18,51300074057,-1328.44,CARE MANAGEMENT GROUP (64-66 CARLTON),CARE ESTABLISHMENT,LD - East Locality,LD - East Cambs - Special Needs,Residential Care
Cambridgeshire County Council,14-May-18,51300059181,-1328.44,CARE MANAGEMENT GROUP (64-66 CARLTON),CARE ESTABLISHMENT,LD - East Locality,LD - East Cambs - Special Needs,Residential Care
Cambridgeshire County Council,14-May-18,51300106382,-1328.44,CARE MANAGEMENT GROUP (64-66 CARLTON),CARE ESTABLISHMENT,LD - East Locality,LD - East Cambs - Special Needs,Residential Care
Cambridgeshire County Council,14-May-18,51300059233,-1328.44,CARE MANAGEMENT GROUP (64-66 CARLTON),CARE ESTABLISHMENT,LD - East Locality,LD - East Cambs - Special Needs,Residential Care
Cambridgeshire County Council,14-May-18,51300059125,-1328.44,CARE MANAGEMENT GROUP (64-66 CARLTON),CARE ESTABLISHMENT,LD - East Locality,LD - East Cambs - Special Needs,Residential Care
Cambridgeshire County Council,14-May-18,51300097851,-1328.44,CARE MANAGEMENT GROUP (64-66 CARLTON),CARE ESTABLISHMENT,LD - East Locality,LD - East Cambs - Special Needs,Residential Care
Cambridgeshire County Council,14-May-18,51300097914,-1328.44,CARE MANAGEMENT GROUP (64-66 CARLTON),CARE ESTABLISHMENT,LD - East Locality,LD - East Cambs - Special Needs,Residential Care
Cambridgeshire County Council,14-May-18,51300059227,-1328.44,CARE MANAGEMENT GROUP (64-66 CARLTON),CARE ESTABLISHMENT,LD - East Locality,LD - East Cambs - Special Needs,Residential Care
Cambridgeshire County Council,14-May-18,51300106336,-1328.44,CARE MANAGEMENT GROUP (64-66 CARLTON),CARE ESTABLISHMENT,LD - East Locality,LD - East Cambs - Special Needs,Residential Care
Cambridgeshire County Council,14-May-18,51300106337,-1328.44,CARE MANAGEMENT GROUP (64-66 CARLTON),CARE ESTABLISHMENT,LD - East Locality,LD - East Cambs - Special Needs,Residential Care
Cambridgeshire County Council,14-May-18,51300059173,-1328.44,CARE MANAGEMENT GROUP (64-66 CARLTON),CARE ESTABLISHMENT,LD - East Locality,LD - East Cambs - Special Needs,Residential Care
Cambridgeshire County Council,14-May-18,51300059121,-1328.44,CARE MANAGEMENT GROUP (64-66 CARLTON),CARE ESTABLISHMENT,LD - East Locality,LD - East Cambs - Special Needs,Residential Care
Cambridgeshire County Council,14-May-18,51300106326,-1328.44,CARE MANAGEMENT GROUP (64-66 CARLTON),CARE ESTABLISHMENT,LD - East Locality,LD - East Cambs - Special Needs,Residential Care
Cambridgeshire County Council,14-May-18,51300074054,-1328.44,CARE MANAGEMENT GROUP (64-66 CARLTON),CARE ESTABLISHMENT,LD - East Locality,LD - East Cambs - Special Needs,Residential Care
Cambridgeshire County Council,14-May-18,51300059144,-1328.44,CARE MANAGEMENT GROUP (64-66 CARLTON),CARE ESTABLISHMENT,LD - East Locality,LD - East Cambs - Special Needs,Residential Care
Cambridgeshire County Council,14-May-18,51300106262,-1328.44,CARE MANAGEMENT GROUP (64-66 CARLTON),CARE ESTABLISHMENT,LD - East Locality,LD - East Cambs - Special Needs,Residential Care
Cambridgeshire County Council,14-May-18,51300059332,-1328.44,CARE MANAGEMENT GROUP (64-66 CARLTON),CARE ESTABLISHMENT,LD - East Locality,LD - East Cambs - Special Needs,Residential Care
Cambridgeshire County Council,14-May-18,51300073918,-1328.44,CARE MANAGEMENT GROUP (64-66 CARLTON),CARE ESTABLISHMENT,LD - East Locality,LD - East Cambs - Special Needs,Residential Care
Cambridgeshire County Council,14-May-18,51300059266,-1328.44,CARE MANAGEMENT GROUP (64-66 CARLTON),CARE ESTABLISHMENT,LD - East Locality,LD - East Cambs - Special Needs,Residential Care
Cambridgeshire County Council,14-May-18,51300073945,-1328.44,CARE MANAGEMENT GROUP (64-66 CARLTON),CARE ESTABLISHMENT,LD - East Locality,LD - East Cambs - Special Needs,Residential Care
Cambridgeshire County Council,14-May-18,51300097825,-1328.44,CARE MANAGEMENT GROUP (64-66 CARLTON),CARE ESTABLISHMENT,LD - East Locality,LD - East Cambs - Special Needs,Residential Care
Cambridgeshire County Council,14-May-18,51300073832,-1328.44,CARE MANAGEMENT GROUP (64-66 CARLTON),CARE ESTABLISHMENT,LD - East Locality,LD - East Cambs - Special Needs,Residential Care
Cambridgeshire County Council,14-May-18,51300073969,-1328.44,CARE MANAGEMENT GROUP (64-66 CARLTON),CARE ESTABLISHMENT,LD - East Locality,LD - East Cambs - Special Needs,Residential Care
Cambridgeshire County Council,14-May-18,51300059129,-1328.44,CARE MANAGEMENT GROUP (64-66 CARLTON),CARE ESTABLISHMENT,LD - East Locality,LD - East Cambs - Special Needs,Residential Care
Cambridgeshire County Council,14-May-18,51300073877,-1328.44,CARE MANAGEMENT GROUP (64-66 CARLTON),CARE ESTABLISHMENT,LD - East Locality,LD - East Cambs - Special Needs,Residential Care
Cambridgeshire County Council,14-May-18,51300059250,-1328.44,CARE MANAGEMENT GROUP (64-66 CARLTON),CARE ESTABLISHMENT,LD - East Locality,LD - East Cambs - Special Needs,Residential Care
Cambridgeshire County Council,14-May-18,51300097893,-1328.44,CARE MANAGEMENT GROUP (64-66 CARLTON),CARE ESTABLISHMENT,LD - East Locality,LD - East Cambs - Special Needs,Residential Care
Cambridgeshire County Council,14-May-18,51300106372,-1328.44,CARE MANAGEMENT GROUP (64-66 CARLTON),CARE ESTABLISHMENT,LD - East Locality,LD - East Cambs - Special Needs,Residential Care
Cambridgeshire County Council,14-May-18,51300059239,-1328.44,CARE MANAGEMENT GROUP (64-66 CARLTON),CARE ESTABLISHMENT,LD - East Locality,LD - East Cambs - Special Needs,Residential Care
Cambridgeshire County Council,14-May-18,51300097882,-1328.44,CARE MANAGEMENT GROUP (64-66 CARLTON),CARE ESTABLISHMENT,LD - East Locality,LD - East Cambs - Special Needs,Residential Care
Cambridgeshire County Council,14-May-18,51300059195,-1328.44,CARE MANAGEMENT GROUP (64-66 CARLTON),CARE ESTABLISHMENT,LD - East Locality,LD - East Cambs - Special Needs,Residential Care
Cambridgeshire County Council,14-May-18,51300073866,-1328.44,CARE MANAGEMENT GROUP (64-66 CARLTON),CARE ESTABLISHMENT,LD - East Locality,LD - East Cambs - Special Needs,Residential Care
Cambridgeshire County Council,14-May-18,51300059159,-1328.44,CARE MANAGEMENT GROUP (64-66 CARLTON),CARE ESTABLISHMENT,LD - East Locality,LD - East Cambs - Special Needs,Residential Care
Cambridgeshire County Council,14-May-18,51300106245,-1328.44,CARE MANAGEMENT GROUP (64-66 CARLTON),CARE ESTABLISHMENT,LD - East Locality,LD - East Cambs - Special Needs,Residential Care
Cambridgeshire County Council,14-May-18,51300106351,-1328.44,CARE MANAGEMENT GROUP (64-66 CARLTON),CARE ESTABLISHMENT,LD - East Locality,LD - East Cambs - Special Needs,Residential Care
Cambridgeshire County Council,14-May-18,51300073910,-1328.44,CARE MANAGEMENT GROUP (64-66 CARLTON),CARE ESTABLISHMENT,LD - East Locality,LD - East Cambs - Special Needs,Residential Care
